{"text_format":"1","workbook":"xlsx","n_sheets":6,"sheets":["Sheet1","Sheet2","Sheet3","Sheet6","Sheet7","saad"],"not_rendered":{"charts":0,"images":0,"macros":0,"external_links":2,"defined_names":3,"comments":0,"pivot_tables":0},"unopened":[],"bounds":{"document_bytes":16777216,"sheet_cells":100000,"rows_first":2000,"rows_last":500,"rows_between":2000,"halvings":0,"cell_chars":16384,"cell_head_chars":4096},"cells_cut":0,"cells_raw":0,"read":"whole","date_system":"1900"}

{"sheet":"Sheet1","index":0,"n_rows":604,"n_cols":25,"rows_kept":604,"cut":false,"hidden":false,"merged":[[0,3,1,7],[0,13,2,21],[2,3,3,3],[2,4,2,5]]}
[null,null,null,"الصف الخامس الابتدائي",null,null,null,null,null,null,null,null,null,"اكتب فى الخلايا ذات اللون الابيض فقط"]
[null,null,null,null,null,null,null,null,null,"العدد",{"$f":"SUM(G5:G44)","v":212}]
[null,null,null,"م","اكتب اول رقم جلوس",null,{"$f":"SUM(G5:G44)","v":212},{"$f":"COUNT(H5:H44)","v":11},null,"أعلى رقم",{"$f":"MAX(E5:F44)","v":712},null,null,null,null,null,null,null,null,null,null,null,null,{"$f":"COUNT(K5:K297)","v":212},{"$f":"COUNTA(N5:N297)","v":212}]
[null,null,null,null,"من","إلى","عدد اللجنة","اللجنة",null,"م","رقم الجلوس","م","الكود"," الاسم","النوع","الديانة","حالة القيد","الفصل","الدمج","الصف","الترم الأول","الترم الثاني",null,"اللجنة","نهاية اللجنة"]
[null,"مقيد",{"$f":"COUNTA(N5:N297)","v":212},{"$f":"IF(E5=\"\",\"\",COUNT($E$5:E5))","v":1},501,{"$f":"IF(G5=\"\",\"\",E5+G5-1)","v":520},20,{"$f":"IF(E5=\"\",\"\",COUNT($E$5:E5))","v":1},null,1,{"$f":"$E$5","v":501},1,481881908,"س1","ذكر","مسلم","ناجح ومنقول","(4 / 5)","لا يوجد","الخامس","نصف العام","آخر العام","ص",{"$f":"IF(K5=\"\",\"\",VLOOKUP(K5,جلوس,4))","v":1},{"$f":"IF(X5=X6,\"\",\"نهاية اللجنة\")","v":""}]
[null,"موزع",{"$f":"SUM(G5:G44)","v":212},{"$f":"IF(E6=\"\",\"\",COUNT($E$5:E6))","v":2},{"$f":"IF(G6=\"\",\"\",F5+1)","v":521},{"$f":"IF(G6=\"\",\"\",E6+G6-1)","v":540},20,{"$f":"IF(E6=\"\",\"\",COUNT($E$5:E6))","v":2},null,{"$f":"IF(J5=\"\",\"\",IF(J5+1>$K$2,\"\",J5+1))","v":2},{"$f":"IF(K5=\"\",\"\",IF(K5+1>$K$3,\"\",K5+1))","v":502},2,480318593,"س2","ذكر","مسلم","ناجح ومنقول","(3 / 5)","لا يوجد","الخامس","نصف العام","آخر العام","ص",1,{"$f":"IF(X6=X7,\"\",\"نهاية اللجنة\")","v":""}]
[null,"متبقى",{"$f":"C5-C6","v":0},{"$f":"IF(E7=\"\",\"\",COUNT($E$5:E7))","v":3},{"$f":"IF(G7=\"\",\"\",F6+1)","v":541},560,20,{"$f":"IF(E7=\"\",\"\",COUNT($E$5:E7))","v":3},null,3,{"$f":"IF(K6=\"\",\"\",IF(K6+1>$K$3,\"\",K6+1))","v":503},3,480264281,"س3","ذكر","مسلم","ناجح ومنقول","(1 / 5)","لا يوجد","الخامس","نصف العام","آخر العام","ص",1,""]
[null,null,null,{"$f":"IF(E8=\"\",\"\",COUNT($E$5:E8))","v":4},561,580,20,{"$f":"IF(E8=\"\",\"\",COUNT($E$5:E8))","v":4},null,4,504,4,480262429,"س4","ذكر","مسلم","ناجح ومنقول","(1 / 5)","لا يوجد","الخامس","نصف العام","آخر العام","ص",1,""]
[null,null,"ذكر",{"$f":"IF(E9=\"\",\"\",COUNT($E$5:E9))","v":5},581,600,20,{"$f":"IF(E9=\"\",\"\",COUNT($E$5:E9))","v":5},null,5,505,5,480284782,"س5","ذكر","مسلم","ناجح ومنقول","(3 / 5)","لا يوجد","الخامس","نصف العام","آخر العام","ص",1,""]
[null,null,"انثى",{"$f":"IF(E10=\"\",\"\",COUNT($E$5:E10))","v":6},601,620,20,{"$f":"IF(E10=\"\",\"\",COUNT($E$5:E10))","v":6},null,6,506,6,480287033,"س6","ذكر","مسلم","ناجح ومنقول","(4 / 5)","لا يوجد","الخامس","نصف العام","آخر العام","ص",1,""]
[null,null,null,{"$f":"IF(E11=\"\",\"\",COUNT($E$5:E11))","v":7},621,640,20,{"$f":"IF(E11=\"\",\"\",COUNT($E$5:E11))","v":7},null,7,507,7,480325012,"س7","ذكر","مسلم","ناجح ومنقول","(1 / 5)","لا يوجد","الخامس","نصف العام","آخر العام","ص",1,""]
[null,null,null,{"$f":"IF(E12=\"\",\"\",COUNT($E$5:E12))","v":8},641,660,20,{"$f":"IF(E12=\"\",\"\",COUNT($E$5:E12))","v":8},null,8,508,8,480300046,"س8","ذكر","مسلم","ناجح ومنقول","(1 / 5)","لا يوجد","الخامس","نصف العام","آخر العام","ص",1,""]
[null,null,null,{"$f":"IF(E13=\"\",\"\",COUNT($E$5:E13))","v":9},661,680,20,{"$f":"IF(E13=\"\",\"\",COUNT($E$5:E13))","v":9},null,9,509,9,480286161,"س9","ذكر","مسلم","ناجح ومنقول","(4 / 5)","لا يوجد","الخامس","نصف العام","آخر العام","ص",1,""]
[null,null,null,{"$f":"IF(E14=\"\",\"\",COUNT($E$5:E14))","v":10},681,700,20,{"$f":"IF(E14=\"\",\"\",COUNT($E$5:E14))","v":10},null,10,510,10,480286889,"س10","ذكر","مسلم","ناجح ومنقول","(2 / 5)","لا يوجد","الخامس","نصف العام","آخر العام","ص",1,""]
[null,null,null,{"$f":"IF(E15=\"\",\"\",COUNT($E$5:E15))","v":11},701,712,12,{"$f":"IF(E15=\"\",\"\",COUNT($E$5:E15))","v":11},null,11,511,11,480299837,"س11","ذكر","مسلم","ناجح ومنقول","(4 / 5)","لا يوجد","الخامس","نصف العام","آخر العام","ص",1,""]
[null,null,null,{"$f":"IF(E16=\"\",\"\",COUNT($E$5:E16))","v":""},"","",null,{"$f":"IF(E16=\"\",\"\",COUNT($E$5:E16))","v":""},null,12,512,12,479159444,"س12","ذكر","مسلم","ناجح ومنقول","(3 / 5)","لا يوجد","الخامس","نصف العام","آخر العام","ص",1,""]
[null,null,null,{"$f":"IF(E17=\"\",\"\",COUNT($E$5:E17))","v":""},"","",null,{"$f":"IF(E17=\"\",\"\",COUNT($E$5:E17))","v":""},null,13,513,13,475934067,"س13","ذكر","مسلم","ناجح ومنقول","(1 / 5)","لا يوجد","الخامس","نصف العام","آخر العام","ص",1,""]
[null,null,null,{"$f":"IF(E18=\"\",\"\",COUNT($E$5:E18))","v":""},"","",null,{"$f":"IF(E18=\"\",\"\",COUNT($E$5:E18))","v":""},null,14,514,14,476158697,"س14","ذكر","مسلم","ناجح ومنقول","(1 / 5)","لا يوجد","الخامس","نصف العام","آخر العام","ص",1,""]
[null,null,null,{"$f":"IF(E19=\"\",\"\",COUNT($E$5:E19))","v":""},"","",null,{"$f":"IF(E19=\"\",\"\",COUNT($E$5:E19))","v":""},null,15,515,15,480298459,"س15","ذكر","مسلم","ناجح ومنقول","(1 / 5)","لا يوجد","الخامس","نصف العام","آخر العام","ص",1,""]
[null,null,null,{"$f":"IF(E20=\"\",\"\",COUNT($E$5:E20))","v":""},"","",null,{"$f":"IF(E20=\"\",\"\",COUNT($E$5:E20))","v":""},null,16,516,16,480264878,"س16","ذكر","مسلم","ناجح ومنقول","(3 / 5)","لا يوجد","الخامس","نصف العام","آخر العام","ص",1,""]
[null,null,null,{"$f":"IF(E21=\"\",\"\",COUNT($E$5:E21))","v":""},"","",null,{"$f":"IF(E21=\"\",\"\",COUNT($E$5:E21))","v":""},null,17,517,17,480288615,"س17","ذكر","مسلم","ناجح ومنقول","(4 / 5)","لا يوجد","الخامس","نصف العام","آخر العام","ص",1,""]
[null,null,null,{"$f":"IF(E22=\"\",\"\",COUNT($E$5:E22))","v":""},"","",null,{"$f":"IF(E22=\"\",\"\",COUNT($E$5:E22))","v":""},null,18,518,18,473849178,"س18","ذكر","مسلم","ناجح ومنقول","(1 / 5)","لا يوجد","الخامس","نصف العام","آخر العام","ص",1,""]
[null,null,null,{"$f":"IF(E23=\"\",\"\",COUNT($E$5:E23))","v":""},"","",null,{"$f":"IF(E23=\"\",\"\",COUNT($E$5:E23))","v":""},null,19,519,19,480286579,"س19","ذكر","مسلم","ناجح ومنقول","(2 / 5)","لا يوجد","الخامس","نصف العام","آخر العام","ص",1,""]
[null,null,null,{"$f":"IF(E24=\"\",\"\",COUNT($E$5:E24))","v":""},"","",null,{"$f":"IF(E24=\"\",\"\",COUNT($E$5:E24))","v":""},null,20,520,20,480265975,"س20","ذكر","مسلم","ناجح ومنقول","(4 / 5)","لا يوجد","الخامس","نصف العام","آخر العام","ص",1,"نهاية اللجنة"]
[null,null,null,{"$f":"IF(E25=\"\",\"\",COUNT($E$5:E25))","v":""},"","",null,{"$f":"IF(E25=\"\",\"\",COUNT($E$5:E25))","v":""},null,21,521,21,478880792,"س21","ذكر","مسلم","ناجح ومنقول","(3 / 5)","لا يوجد","الخامس","نصف العام","آخر العام","ص",2,""]
[null,null,null,{"$f":"IF(E26=\"\",\"\",COUNT($E$5:E26))","v":""},"","",null,{"$f":"IF(E26=\"\",\"\",COUNT($E$5:E26))","v":""},null,22,522,22,480297759,"س22","ذكر","مسلم","ناجح ومنقول","(2 / 5)","لا يوجد","الخامس","نصف العام","آخر العام","ص",2,""]
[null,null,null,{"$f":"IF(E27=\"\",\"\",COUNT($E$5:E27))","v":""},"","",null,{"$f":"IF(E27=\"\",\"\",COUNT($E$5:E27))","v":""},null,23,523,23,480323452,"س23","ذكر","مسلم","ناجح ومنقول","(3 / 5)","لا يوجد","الخامس","نصف العام","آخر العام","ص",2,""]
[null,null,null,{"$f":"IF(E28=\"\",\"\",COUNT($E$5:E28))","v":""},"","",null,{"$f":"IF(E28=\"\",\"\",COUNT($E$5:E28))","v":""},null,24,524,24,480265010,"س24","ذكر","مسلم","ناجح ومنقول","(2 / 5)","لا يوجد","الخامس","نصف العام","آخر العام","ص",2,""]
[null,null,null,{"$f":"IF(E29=\"\",\"\",COUNT($E$5:E29))","v":""},"","",null,{"$f":"IF(E29=\"\",\"\",COUNT($E$5:E29))","v":""},null,25,525,25,481718793,"س25","ذكر","مسلم","ناجح ومنقول","(3 / 5)","لا يوجد","الخامس","نصف العام","آخر العام","ص",2,""]
[null,null,null,{"$f":"IF(E30=\"\",\"\",COUNT($E$5:E30))","v":""},"","",null,{"$f":"IF(E30=\"\",\"\",COUNT($E$5:E30))","v":""},null,26,526,26,480321015,"س26","ذكر","مسلم","ناجح ومنقول","(1 / 2)","لا يوجد","الخامس","نصف العام","آخر العام","ص",2,""]
[null,null,null,{"$f":"IF(E31=\"\",\"\",COUNT($E$5:E31))","v":""},"","",null,{"$f":"IF(E31=\"\",\"\",COUNT($E$5:E31))","v":""},null,27,527,27,480286739,"س27","ذكر","مسلم","ناجح ومنقول","(1 / 5)","لا يوجد","الخامس","نصف العام","آخر العام","ص",2,""]
[null,null,null,{"$f":"IF(E32=\"\",\"\",COUNT($E$5:E32))","v":""},"","",null,{"$f":"IF(E32=\"\",\"\",COUNT($E$5:E32))","v":""},null,28,528,28,481756834,"س28","ذكر","مسلم","ناجح ومنقول","(3 / 5)","لا يوجد","الخامس","نصف العام","آخر العام","ص",2,""]
[null,null,null,{"$f":"IF(E33=\"\",\"\",COUNT($E$5:E33))","v":""},"","",null,{"$f":"IF(E33=\"\",\"\",COUNT($E$5:E33))","v":""},null,29,529,29,480321302,"س29","ذكر","مسلم","ناجح ومنقول","(4 / 5)","لا يوجد","الخامس","نصف العام","آخر العام","ص",2,""]
[null,null,null,{"$f":"IF(E34=\"\",\"\",COUNT($E$5:E34))","v":""},"","",null,{"$f":"IF(E34=\"\",\"\",COUNT($E$5:E34))","v":""},null,30,530,30,478642564,"س30","ذكر","مسلم","ناجح ومنقول","(2 / 5)","لا يوجد","الخامس","نصف العام","آخر العام","ص",2,""]
[null,null,null,{"$f":"IF(E35=\"\",\"\",COUNT($E$5:E35))","v":""},"","",null,{"$f":"IF(E35=\"\",\"\",COUNT($E$5:E35))","v":""},null,31,531,31,479537204,"س31","ذكر","مسلم","ناجح ومنقول","(4 / 5)","لا يوجد","الخامس","نصف العام","آخر العام","ص",2,""]
[null,null,null,{"$f":"IF(E36=\"\",\"\",COUNT($E$5:E36))","v":""},"","",null,{"$f":"IF(E36=\"\",\"\",COUNT($E$5:E36))","v":""},null,32,532,32,473278535,"س32","ذكر","مسلم","ناجح ومنقول","(2 / 5)","لا يوجد","الخامس","نصف العام","آخر العام","ص",2,""]
[null,null,null,{"$f":"IF(E37=\"\",\"\",COUNT($E$5:E37))","v":""},"","",null,{"$f":"IF(E37=\"\",\"\",COUNT($E$5:E37))","v":""},null,33,533,33,478978663,"س33","ذكر","مسلم","ناجح ومنقول","(3 / 5)","لا يوجد","الخامس","نصف العام","آخر العام","ص",2,""]
[null,null,null,{"$f":"IF(E38=\"\",\"\",COUNT($E$5:E38))","v":""},"","",null,{"$f":"IF(E38=\"\",\"\",COUNT($E$5:E38))","v":""},null,34,534,34,494343331,"س34","ذكر","مسلم","ناجح ومنقول","(3 / 5)","لا يوجد","الخامس","نصف العام","آخر العام","ص",2,""]
[null,null,null,{"$f":"IF(E39=\"\",\"\",COUNT($E$5:E39))","v":""},"","",null,{"$f":"IF(E39=\"\",\"\",COUNT($E$5:E39))","v":""},null,35,535,35,476107399,"س35","ذكر","مسلم","ناجح ومنقول","(3 / 5)","لا يوجد","الخامس","نصف العام","آخر العام","ص",2,""]
[null,null,null,{"$f":"IF(E40=\"\",\"\",COUNT($E$5:E40))","v":""},"","",null,{"$f":"IF(E40=\"\",\"\",COUNT($E$5:E40))","v":""},null,36,536,36,480288661,"س36","ذكر","مسلم","ناجح ومنقول","(3 / 5)","لا يوجد","الخامس","نصف العام","آخر العام","ص",2,""]
[null,null,null,{"$f":"IF(E41=\"\",\"\",COUNT($E$5:E41))","v":""},"","",null,{"$f":"IF(E41=\"\",\"\",COUNT($E$5:E41))","v":""},null,37,537,37,480287265,"س37","ذكر","مسلم","ناجح ومنقول","(1 / 5)","لا يوجد","الخامس","نصف العام","آخر العام","ص",2,""]
[null,null,null,{"$f":"IF(E42=\"\",\"\",COUNT($E$5:E42))","v":""},"","",null,{"$f":"IF(E42=\"\",\"\",COUNT($E$5:E42))","v":""},null,38,538,38,482037750,"س38","ذكر","مسلم","ناجح ومنقول","(4 / 5)","لا يوجد","الخامس","نصف العام","آخر العام","ص",2,""]
[null,null,null,{"$f":"IF(E43=\"\",\"\",COUNT($E$5:E43))","v":""},"","",null,{"$f":"IF(E43=\"\",\"\",COUNT($E$5:E43))","v":""},null,39,539,39,476139535,"س39","ذكر","مسلم","ناجح ومنقول","(3 / 5)","لا يوجد","الخامس","نصف العام","آخر العام","ص",2,""]
[null,null,null,{"$f":"IF(E44=\"\",\"\",COUNT($E$5:E44))","v":""},"","",null,{"$f":"IF(E44=\"\",\"\",COUNT($E$5:E44))","v":""},null,40,540,40,480265225,"س40","ذكر","مسلم","ناجح ومنقول","(3 / 5)","لا يوجد","الخامس","نصف العام","آخر العام","ص",2,"نهاية اللجنة"]
[null,null,null,null,null,null,null,null,null,41,541,41,479559964,"س41","ذكر","مسلم","ناجح ومنقول","(3 / 5)","لا يوجد","الخامس","نصف العام","آخر العام","ص",3,""]
[null,null,null,null,null,null,null,null,null,42,542,42,479440895,"س42","ذكر","مسلم","ناجح ومنقول","(3 / 5)","لا يوجد","الخامس","نصف العام","آخر العام","ص",3,""]
[null,null,null,null,null,null,null,null,null,43,543,43,480451971,"س43","ذكر","مسلم","ناجح ومنقول","(1 / 5)","لا يوجد","الخامس","نصف العام","آخر العام","ص",3,""]
[null,null,null,null,null,null,null,null,null,44,544,44,480263711,"س44","ذكر","مسلم","ناجح ومنقول","(1 / 5)","لا يوجد","الخامس","نصف العام","آخر العام","ص",3,""]
[null,null,null,null,null,null,null,null,null,45,545,45,480324564,"س45","ذكر","مسلم","ناجح ومنقول","(2 / 5)","لا يوجد","الخامس","نصف العام","آخر العام","ص",3,""]
[null,null,null,null,null,null,null,null,null,46,546,46,480264451,"س46","ذكر","مسلم","ناجح ومنقول","(4 / 5)","لا يوجد","الخامس","نصف العام","آخر العام","ص",3,""]
[null,null,null,null,null,null,null,null,null,47,547,47,480911367,"س47","ذكر","مسلم","ناجح ومنقول","(4 / 5)","لا يوجد","الخامس","نصف العام","آخر العام","ص",3,""]
[null,null,null,null,null,null,null,null,null,48,548,48,479693040,"س48","ذكر","مسلم","ناجح ومنقول","(1 / 5)","لا يوجد","الخامس","نصف العام","آخر العام","ص",3,""]
[null,null,null,null,null,null,null,null,null,49,549,49,480300810,"س49","ذكر","مسلم","ناجح ومنقول","(1 / 5)","لا يوجد","الخامس","نصف العام","آخر العام","ص",3,""]
[null,null,null,null,null,null,null,null,null,50,550,50,480299651,"س50","ذكر","مسلم","ناجح ومنقول","(1 / 5)","لا يوجد","الخامس","نصف العام","آخر العام","ص",3,""]
[null,null,null,null,null,null,null,null,null,51,551,51,480298854,"س51","ذكر","مسلم","ناجح ومنقول","(4 / 5)","لا يوجد","الخامس","نصف العام","آخر العام","ص",3,""]
[null,null,null,null,null,null,null,null,null,52,552,52,480326098,"س52","ذكر","مسلم","ناجح ومنقول","(1 / 5)","لا يوجد","الخامس","نصف العام","آخر العام","ص",3,""]
[null,null,null,null,null,null,null,null,null,53,553,53,480265459,"س53","ذكر","مسلم","ناجح ومنقول","(3 / 5)","لا يوجد","الخامس","نصف العام","آخر العام","ص",3,""]
[null,null,null,null,null,null,null,null,null,54,554,54,480463448,"س54","ذكر","مسلم","ناجح ومنقول","(4 / 5)","لا يوجد","الخامس","نصف العام","آخر العام","ص",3,""]
[null,null,null,null,null,null,null,null,null,55,555,55,479654851,"س55","ذكر","مسلم","ناجح ومنقول","(4 / 5)","لا يوجد","الخامس","نصف العام","آخر العام","ص",3,""]
[null,null,null,null,null,null,null,null,null,56,556,56,480297065,"س56","ذكر","مسلم","ناجح ومنقول","(1 / 5)","لا يوجد","الخامس","نصف العام","آخر العام","ص",3,""]
[null,null,null,null,null,null,null,null,null,57,557,57,472632016,"س57","ذكر","مسلم","ناجح ومنقول","(1 / 5)","لا يوجد","الخامس","نصف العام","آخر العام","ص",3,""]
[null,null,null,null,null,null,null,null,null,58,558,58,480326473,"س58","ذكر","مسلم","ناجح ومنقول","(4 / 5)","لا يوجد","الخامس","نصف العام","آخر العام","ص",3,""]
[null,null,null,null,null,null,null,null,null,59,559,59,480285979,"س59","ذكر","مسلم","ناجح ومنقول","(3 / 5)","لا يوجد","الخامس","نصف العام","آخر العام","ص",3,""]
[null,null,null,null,null,null,null,null,null,60,560,60,480296406,"س60","ذكر","مسلم","ناجح ومنقول","(4 / 5)","لا يوجد","الخامس","نصف العام","آخر العام","ص",3,"نهاية اللجنة"]
[null,null,null,null,null,null,null,null,null,61,561,61,480295795,"س61","ذكر","مسلم","ناجح ومنقول","(1 / 5)","لا يوجد","الخامس","نصف العام","آخر العام","ص",4,""]
[null,null,null,null,null,null,null,null,null,62,562,62,480265352,"س62","ذكر","مسلم","ناجح ومنقول","(4 / 5)","لا يوجد","الخامس","نصف العام","آخر العام","ص",4,""]
[null,null,null,null,null,null,null,null,null,63,563,63,479640048,"س63","ذكر","مسلم","ناجح ومنقول","(3 / 5)","لا يوجد","الخامس","نصف العام","آخر العام","ص",4,""]
[null,null,null,null,null,null,null,null,null,64,564,64,480285276,"س64","ذكر","مسلم","ناجح ومنقول","(3 / 5)","لا يوجد","الخامس","نصف العام","آخر العام","ص",4,""]
[null,null,null,null,null,null,null,null,null,65,565,65,480262797,"س65","ذكر","مسلم","ناجح ومنقول","(4 / 5)","لا يوجد","الخامس","نصف العام","آخر العام","ص",{"$f":"IF(K69=\"\",\"\",VLOOKUP(K69,جلوس,4))","v":4},""]
[null,null,null,null,null,null,null,null,null,{"$f":"IF(J69=\"\",\"\",IF(J69+1>$K$2,\"\",J69+1))","v":66},566,66,480286672,"س66","ذكر","مسلم","ناجح ومنقول","(4 / 5)","لا يوجد","الخامس","نصف العام","آخر العام","ص",4,{"$f":"IF(X70=X71,\"\",\"نهاية اللجنة\")","v":""}]
[null,null,null,null,null,null,null,null,null,67,{"$f":"IF(K70=\"\",\"\",IF(K70+1>$K$3,\"\",K70+1))","v":567},67,476009366,"س67","ذكر","مسلم","ناجح ومنقول","(1 / 5)","لا يوجد","الخامس","نصف العام","آخر العام","ص",4,""]
[null,null,null,null,null,null,null,null,null,68,568,68,480325952,"س68","ذكر","مسلم","ناجح ومنقول","(4 / 5)","لا يوجد","الخامس","نصف العام","آخر العام","ص",4,""]
[null,null,null,null,null,null,null,null,null,69,569,69,480248496,"س69","ذكر","مسلم","ناجح ومنقول","(1 / 5)","لا يوجد","الخامس","نصف العام","آخر العام","ص",4,""]
[null,null,null,null,null,null,null,null,null,70,570,70,478687603,"س70","ذكر","مسلم","ناجح ومنقول","(4 / 5)","لا يوجد","الخامس","نصف العام","آخر العام","ص",4,""]
[null,null,null,null,null,null,null,null,null,71,571,71,480298285,"س71","ذكر","مسلم","ناجح ومنقول","(4 / 5)","لا يوجد","الخامس","نصف العام","آخر العام","ص",4,""]
[null,null,null,null,null,null,null,null,null,72,572,72,480249118,"س72","ذكر","مسلم","ناجح ومنقول","(3 / 5)","لا يوجد","الخامس","نصف العام","آخر العام","ص",4,""]
[null,null,null,null,null,null,null,null,null,73,573,73,480326690,"س73","ذكر","مسلم","ناجح ومنقول","(2 / 5)","لا يوجد","الخامس","نصف العام","آخر العام","ص",4,""]
[null,null,null,null,null,null,null,null,null,74,574,74,480300558,"س74","ذكر","مسلم","ناجح ومنقول","(2 / 5)","لا يوجد","الخامس","نصف العام","آخر العام","ص",4,""]
[null,null,null,null,null,null,null,null,null,75,575,75,480280659,"س75","ذكر","مسلم","ناجح ومنقول","(3 / 5)","لا يوجد","الخامس","نصف العام","آخر العام","ص",4,""]
[null,null,null,null,null,null,null,null,null,76,576,76,480317885,"س76","ذكر","مسلم","ناجح ومنقول","(1 / 5)","لا يوجد","الخامس","نصف العام","آخر العام","ص",4,""]
[null,null,null,null,null,null,null,null,null,77,577,77,480294916,"س77","ذكر","مسلم","ناجح ومنقول","(2 / 5)","لا يوجد","الخامس","نصف العام","آخر العام","ص",4,""]
[null,null,null,null,null,null,null,null,null,78,578,78,480324155,"س78","ذكر","مسلم","ناجح ومنقول","(2 / 5)","لا يوجد","الخامس","نصف العام","آخر العام","ص",4,""]
[null,null,null,null,null,null,null,null,null,79,579,79,479747749,"س79","ذكر","مسلم","ناجح ومنقول","(4 / 5)","لا يوجد","الخامس","نصف العام","آخر العام","ص",4,""]
[null,null,null,null,null,null,null,null,null,80,580,80,480248779,"س80","ذكر","مسلم","ناجح ومنقول","(3 / 5)","لا يوجد","الخامس","نصف العام","آخر العام","ص",4,"نهاية اللجنة"]
[null,null,null,null,null,null,null,null,null,81,581,81,480301290,"س81","ذكر","مسلم","ناجح ومنقول","(2 / 5)","لا يوجد","الخامس","نصف العام","آخر العام","ص",5,""]
[null,null,null,null,null,null,null,null,null,82,582,82,480875516,"س82","ذكر","مسلم","ناجح ومنقول","(4 / 5)","لا يوجد","الخامس","نصف العام","آخر العام","ص",5,""]
[null,null,null,null,null,null,null,null,null,83,583,83,480301005,"س83","ذكر","مسلم","ناجح ومنقول","(4 / 5)","لا يوجد","الخامس","نصف العام","آخر العام","ص",5,""]
[null,null,null,null,null,null,null,null,null,84,584,84,483003926,"س84","ذكر","مسلم","ناجح ومنقول","(1 / 5)","لا يوجد","الخامس","نصف العام","آخر العام","ص",5,""]
[null,null,null,null,null,null,null,null,null,85,585,85,476141103,"س85","ذكر","مسلم","ناجح ومنقول","(1 / 5)","لا يوجد","الخامس","نصف العام","آخر العام","ص",5,""]
[null,null,null,null,null,null,null,null,null,86,586,86,479627021,"س86","ذكر","مسلم","ناجح ومنقول","(1 / 5)","لا يوجد","الخامس","نصف العام","آخر العام","ص",5,""]
[null,null,null,null,null,null,null,null,null,87,587,87,480285800,"س87","ذكر","مسلم","ناجح ومنقول","(1 / 5)","لا يوجد","الخامس","نصف العام","آخر العام","ص",5,""]
[null,null,null,null,null,null,null,null,null,88,588,88,473281219,"س88","ذكر","مسلم","ناجح ومنقول","(1 / 5)","لا يوجد","الخامس","نصف العام","آخر العام","ص",5,""]
[null,null,null,null,null,null,null,null,null,89,589,89,480293924,"س89","ذكر","مسلم","ناجح ومنقول","(1 / 5)","لا يوجد","الخامس","نصف العام","آخر العام","ص",5,""]
[null,null,null,null,null,null,null,null,null,90,590,90,480285009,"س90","ذكر","مسلم","ناجح ومنقول","(3 / 5)","لا يوجد","الخامس","نصف العام","آخر العام","ص",5,""]
[null,null,null,null,null,null,null,null,null,91,591,91,480284295,"س91","ذكر","مسلم","ناجح ومنقول","(2 / 5)","لا يوجد","الخامس","نصف العام","آخر العام","ص",5,""]
[null,null,null,null,null,null,null,null,null,92,592,92,481691051,"س92","ذكر","مسلم","ناجح ومنقول","(4 / 5)","لا يوجد","الخامس","نصف العام","آخر العام","ص",5,""]
[null,null,null,null,null,null,null,null,null,93,593,93,480294408,"س93","ذكر","مسلم","ناجح ومنقول","(2 / 5)","لا يوجد","الخامس","نصف العام","آخر العام","ص",5,""]
[null,null,null,null,null,null,null,null,null,94,594,94,480326251,"س94","ذكر","مسلم","ناجح ومنقول","(2 / 5)","لا يوجد","الخامس","نصف العام","آخر العام","ص",5,""]
[null,null,null,null,null,null,null,null,null,95,595,95,472928978,"س95","ذكر","مسلم","ناجح ومنقول","(4 / 5)","لا يوجد","الخامس","نصف العام","آخر العام","ص",5,""]
[null,null,null,null,null,null,null,null,null,96,596,96,480263508,"س96","ذكر","مسلم","ناجح ومنقول","(4 / 5)","لا يوجد","الخامس","نصف العام","آخر العام","ص",5,""]
[null,null,null,null,null,null,null,null,null,97,597,97,480298123,"س97","ذكر","مسلم","ناجح ومنقول","(1 / 5)","لا يوجد","الخامس","نصف العام","آخر العام","ص",5,""]
[null,null,null,null,null,null,null,null,null,98,598,98,480294094,"س98","ذكر","مسلم","ناجح ومنقول","(4 / 5)","لا يوجد","الخامس","نصف العام","آخر العام","ص",5,""]
[null,null,null,null,null,null,null,null,null,99,599,99,480264573,"س99","ذكر","مسلم","ناجح ومنقول","(3 / 5)","لا يوجد","الخامس","نصف العام","آخر العام","ص",5,""]
[null,null,null,null,null,null,null,null,null,100,600,100,479129819,"س100","ذكر","مسلم","ناجح ومنقول","(4 / 5)","لا يوجد","الخامس","نصف العام","آخر العام","ص",5,"نهاية اللجنة"]
[null,null,null,null,null,null,null,null,null,101,601,101,480037544,"س101","ذكر","مسلم","ناجح ومنقول","(2 / 5)","لا يوجد","الخامس","نصف العام","آخر العام","ص",6,""]
[null,null,null,null,null,null,null,null,null,102,602,102,482264834,"س102","ذكر","مسلم","ناجح ومنقول","(1 / 5)","لا يوجد","الخامس","نصف العام","آخر العام","ص",6,""]
[null,null,null,null,null,null,null,null,null,103,603,103,480297349,"س103","ذكر","مسلم","ناجح ومنقول","(1 / 5)","لا يوجد","الخامس","نصف العام","آخر العام","ص",6,""]
[null,null,null,null,null,null,null,null,null,104,604,104,491458568,"س104","ذكر","مسلم","ناجح ومنقول","(4 / 5)","لا يوجد","الخامس","نصف العام","آخر العام","ص",6,""]
[null,null,null,null,null,null,null,null,null,105,605,105,480324398,"س105","ذكر","مسلم","ناجح ومنقول","(1 / 5)","لا يوجد","الخامس","نصف العام","آخر العام","ص",6,""]
[null,null,null,null,null,null,null,null,null,106,606,106,480325200,"س106","ذكر","مسلم","ناجح ومنقول","(2 / 5)","لا يوجد","الخامس","نصف العام","آخر العام","ص",6,""]
[null,null,null,null,null,null,null,null,null,107,607,107,478983217,"س107","ذكر","مسلم","ناجح ومنقول","(4 / 5)","لا يوجد","الخامس","نصف العام","آخر العام","ص",6,""]
[null,null,null,null,null,null,null,null,null,108,608,108,480287629,"س108","أنثى","مسلمة","ناجح ومنقول","(2 / 5)","لا يوجد","الخامس","نصف العام","آخر العام","ص",6,""]
[null,null,null,null,null,null,null,null,null,109,609,109,480268264,"س109","أنثى","مسلمة","ناجح ومنقول","(4 / 5)","لا يوجد","الخامس","نصف العام","آخر العام","ص",6,""]
[null,null,null,null,null,null,null,null,null,110,610,110,480312241,"س110","أنثى","مسلمة","ناجح ومنقول","(2 / 5)","لا يوجد","الخامس","نصف العام","آخر العام","ص",6,""]
[null,null,null,null,null,null,null,null,null,111,611,111,480285455,"س111","أنثى","مسيحية","ناجح ومنقول","(2 / 5)","لا يوجد","الخامس","نصف العام","آخر العام","ص",6,""]
[null,null,null,null,null,null,null,null,null,112,612,112,477599609,"س112","أنثى","مسلمة","ناجح ومنقول","(2 / 5)","لا يوجد","الخامس","نصف العام","آخر العام","ص",6,""]
[null,null,null,null,null,null,null,null,null,113,613,113,480311469,"س113","أنثى","مسلمة","ناجح ومنقول","(2 / 5)","لا يوجد","الخامس","نصف العام","آخر العام","ص",6,""]
[null,null,null,null,null,null,null,null,null,114,614,114,480267586,"س114","أنثى","مسلمة","ناجح ومنقول","(2 / 5)","لا يوجد","الخامس","نصف العام","آخر العام","ص",6,""]
[null,null,null,null,null,null,null,null,null,115,615,115,480268207,"س115","أنثى","مسلمة","ناجح ومنقول","(2 / 5)","لا يوجد","الخامس","نصف العام","آخر العام","ص",6,""]
[null,null,null,null,null,null,null,null,null,116,616,116,480288104,"س116","أنثى","مسلمة","ناجح ومنقول","(1 / 5)","لا يوجد","الخامس","نصف العام","آخر العام","ص",6,""]
[null,null,null,null,null,null,null,null,null,117,617,117,472281776,"س117","أنثى","مسلمة","ناجح ومنقول","(2 / 5)","لا يوجد","الخامس","نصف العام","آخر العام","ص",6,""]
[null,null,null,null,null,null,null,null,null,118,618,118,483001776,"س118","أنثى","مسلمة","ناجح ومنقول","(1 / 5)","لا يوجد","الخامس","نصف العام","آخر العام","ص",6,""]
[null,null,null,null,null,null,null,null,null,119,619,119,480328548,"س119","أنثى","مسلمة","ناجح ومنقول","(1 / 5)","لا يوجد","الخامس","نصف العام","آخر العام","ص",6,""]
[null,null,null,null,null,null,null,null,null,120,620,120,480288057,"س120","أنثى","مسلمة","ناجح ومنقول","(1 / 5)","لا يوجد","الخامس","نصف العام","آخر العام","ص",6,"نهاية اللجنة"]
[null,null,null,null,null,null,null,null,null,121,621,121,480266434,"س121","أنثى","مسلمة","ناجح ومنقول","(1 / 5)","لا يوجد","الخامس","نصف العام","آخر العام","ص",7,""]
[null,null,null,null,null,null,null,null,null,122,622,122,472770997,"س122","أنثى","مسلمة","ناجح ومنقول","(2 / 5)","لا يوجد","الخامس","نصف العام","آخر العام","ص",7,""]
[null,null,null,null,null,null,null,null,null,123,623,123,480266261,"س123","أنثى","مسلمة","ناجح ومنقول","(4 / 5)","لا يوجد","الخامس","نصف العام","آخر العام","ص",7,""]
[null,null,null,null,null,null,null,null,null,124,624,124,480267345,"س124","أنثى","مسلمة","ناجح ومنقول","(2 / 5)","لا يوجد","الخامس","نصف العام","آخر العام","ص",7,""]
[null,null,null,null,null,null,null,null,null,125,625,125,480329318,"س125","أنثى","مسلمة","ناجح ومنقول","(3 / 5)","لا يوجد","الخامس","نصف العام","آخر العام","ص",7,""]
[null,null,null,null,null,null,null,null,null,126,626,126,480304032,"س126","أنثى","مسلمة","ناجح ومنقول","(2 / 5)","لا يوجد","الخامس","نصف العام","آخر العام","ص",7,""]
[null,null,null,null,null,null,null,null,null,127,627,127,480311742,"س127","أنثى","مسلمة","ناجح ومنقول","(3 / 5)","لا يوجد","الخامس","نصف العام","آخر العام","ص",7,""]
[null,null,null,null,null,null,null,null,null,128,628,128,480330339,"س128","أنثى","مسلمة","ناجح ومنقول","(4 / 5)","لا يوجد","الخامس","نصف العام","آخر العام","ص",7,""]
[null,null,null,null,null,null,null,null,null,129,629,129,480327977,"س129","أنثى","مسلمة","ناجح ومنقول","(4 / 5)","لا يوجد","الخامس","نصف العام","آخر العام","ص",{"$f":"IF(K133=\"\",\"\",VLOOKUP(K133,جلوس,4))","v":7},""]
[null,null,null,null,null,null,null,null,null,{"$f":"IF(J133=\"\",\"\",IF(J133+1>$K$2,\"\",J133+1))","v":130},630,130,480309385,"س130","أنثى","مسلمة","ناجح ومنقول","(4 / 5)","لا يوجد","الخامس","نصف العام","آخر العام","ص",7,{"$f":"IF(X134=X135,\"\",\"نهاية اللجنة\")","v":""}]
[null,null,null,null,null,null,null,null,null,131,{"$f":"IF(K134=\"\",\"\",IF(K134+1>$K$3,\"\",K134+1))","v":631},131,480287693,"س131","أنثى","مسلمة","ناجح ومنقول","(1 / 5)","لا يوجد","الخامس","نصف العام","آخر العام","ص",7,""]
[null,null,null,null,null,null,null,null,null,132,632,132,472771329,"س132","أنثى","مسلمة","ناجح ومنقول","(2 / 5)","لا يوجد","الخامس","نصف العام","آخر العام","ص",7,""]
[null,null,null,null,null,null,null,null,null,133,633,133,480307700,"س133","أنثى","مسلمة","ناجح ومنقول","(4 / 5)","لا يوجد","الخامس","نصف العام","آخر العام","ص",7,""]
[null,null,null,null,null,null,null,null,null,134,634,134,480268578,"س134","أنثى","مسلمة","ناجح ومنقول","(3 / 5)","لا يوجد","الخامس","نصف العام","آخر العام","ص",7,""]
[null,null,null,null,null,null,null,null,null,135,635,135,478665490,"س135","أنثى","مسلمة","ناجح ومنقول","(1 / 5)","لا يوجد","الخامس","نصف العام","آخر العام","ص",7,""]
[null,null,null,null,null,null,null,null,null,136,636,136,480328858,"س136","أنثى","مسلمة","ناجح ومنقول","(4 / 5)","لا يوجد","الخامس","نصف العام","آخر العام","ص",7,""]
[null,null,null,null,null,null,null,null,null,137,637,137,480287426,"س137","أنثى","مسلمة","ناجح ومنقول","(2 / 5)","لا يوجد","الخامس","نصف العام","آخر العام","ص",7,""]
[null,null,null,null,null,null,null,null,null,138,638,138,480329953,"س138","أنثى","مسلمة","ناجح ومنقول","(2 / 5)","لا يوجد","الخامس","نصف العام","آخر العام","ص",7,""]
[null,null,null,null,null,null,null,null,null,139,639,139,480278407,"س139","أنثى","مسلمة","ناجح ومنقول","(2 / 5)","لا يوجد","الخامس","نصف العام","آخر العام","ص",7,""]
[null,null,null,null,null,null,null,null,null,140,640,140,480268791,"س140","أنثى","مسلمة","ناجح ومنقول","(1 / 5)","لا يوجد","الخامس","نصف العام","آخر العام","ص",7,"نهاية اللجنة"]
[null,null,null,null,null,null,null,null,null,141,641,141,480266590,"س141","أنثى","مسلمة","ناجح ومنقول","(2 / 5)","لا يوجد","الخامس","نصف العام","آخر العام","ص",8,""]
[null,null,null,null,null,null,null,null,null,142,642,142,481250833,"س142","أنثى","مسلمة","ناجح ومنقول","(2 / 5)","لا يوجد","الخامس","نصف العام","آخر العام","ص",8,""]
[null,null,null,null,null,null,null,null,null,143,643,143,480268141,"س143","أنثى","مسلمة","ناجح ومنقول","(2 / 5)","لا يوجد","الخامس","نصف العام","آخر العام","ص",8,""]
[null,null,null,null,null,null,null,null,null,144,644,144,481190852,"س144","أنثى","مسلمة","ناجح ومنقول","(1 / 5)","لا يوجد","الخامس","نصف العام","آخر العام","ص",8,""]
[null,null,null,null,null,null,null,null,null,145,645,145,479609162,"س145","أنثى","مسلمة","ناجح ومنقول","(2 / 5)","لا يوجد","الخامس","نصف العام","آخر العام","ص",8,""]
[null,null,null,null,null,null,null,null,null,146,646,146,480287363,"س146","أنثى","مسلمة","ناجح ومنقول","(4 / 5)","لا يوجد","الخامس","نصف العام","آخر العام","ص",8,""]
[null,null,null,null,null,null,null,null,null,147,647,147,480287494,"س147","أنثى","مسلمة","ناجح ومنقول","(3 / 5)","لا يوجد","الخامس","نصف العام","آخر العام","ص",8,""]
[null,null,null,null,null,null,null,null,null,148,648,148,480313042,"س148","أنثى","مسلمة","ناجح ومنقول","(2 / 5)","لا يوجد","الخامس","نصف العام","آخر العام","ص",8,""]
[null,null,null,null,null,null,null,null,null,149,649,149,480330451,"س149","أنثى","مسلمة","ناجح ومنقول","(3 / 5)","لا يوجد","الخامس","نصف العام","آخر العام","ص",8,""]
[null,null,null,null,null,null,null,null,null,150,650,150,480329780,"س150","أنثى","مسلمة","ناجح ومنقول","(3 / 5)","لا يوجد","الخامس","نصف العام","آخر العام","ص",8,""]
[null,null,null,null,null,null,null,null,null,151,651,151,480312830,"س151","أنثى","مسلمة","ناجح ومنقول","(4 / 5)","لا يوجد","الخامس","نصف العام","آخر العام","ص",8,""]
[null,null,null,null,null,null,null,null,null,152,652,152,480329870,"س152","أنثى","مسلمة","ناجح ومنقول","(3 / 5)","لا يوجد","الخامس","نصف العام","آخر العام","ص",8,""]
[null,null,null,null,null,null,null,null,null,153,653,153,480287752,"س153","أنثى","مسلمة","ناجح ومنقول","(1 / 5)","لا يوجد","الخامس","نصف العام","آخر العام","ص",8,""]
[null,null,null,null,null,null,null,null,null,154,654,154,480309998,"س154","أنثى","مسلمة","ناجح ومنقول","(4 / 5)","لا يوجد","الخامس","نصف العام","آخر العام","ص",8,""]
[null,null,null,null,null,null,null,null,null,155,655,155,481190624,"س155","أنثى","مسلمة","ناجح ومنقول","(1 / 5)","لا يوجد","الخامس","نصف العام","آخر العام","ص",8,""]
[null,null,null,null,null,null,null,null,null,156,656,156,480330105,"س156","أنثى","مسلمة","ناجح ومنقول","(3 / 5)","لا يوجد","الخامس","نصف العام","آخر العام","ص",8,""]
[null,null,null,null,null,null,null,null,null,157,657,157,480308045,"س157","أنثى","مسلمة","ناجح ومنقول","(4 / 5)","لا يوجد","الخامس","نصف العام","آخر العام","ص",8,""]
[null,null,null,null,null,null,null,null,null,158,658,158,473728128,"س158","أنثى","مسلمة","ناجح ومنقول","(2 / 5)","لا يوجد","الخامس","نصف العام","آخر العام","ص",8,""]
[null,null,null,null,null,null,null,null,null,159,659,159,480330779,"س159","أنثى","مسلمة","ناجح ومنقول","(4 / 5)","لا يوجد","الخامس","نصف العام","آخر العام","ص",8,""]
[null,null,null,null,null,null,null,null,null,160,660,160,479817461,"س160","أنثى","مسلمة","ناجح ومنقول","(4 / 5)","لا يوجد","الخامس","نصف العام","آخر العام","ص",8,"نهاية اللجنة"]
[null,null,null,null,null,null,null,null,null,161,661,161,480289452,"س161","أنثى","مسلمة","ناجح ومنقول","(4 / 5)","لا يوجد","الخامس","نصف العام","آخر العام","ص",9,""]
[null,null,null,null,null,null,null,null,null,162,662,162,480305654,"س162","أنثى","مسلمة","ناجح ومنقول","(4 / 5)","لا يوجد","الخامس","نصف العام","آخر العام","ص",9,""]
[null,null,null,null,null,null,null,null,null,163,663,163,480288253,"س163","أنثى","مسلمة","ناجح ومنقول","(1 / 5)","لا يوجد","الخامس","نصف العام","آخر العام","ص",9,""]
[null,null,null,null,null,null,null,null,null,164,664,164,480310148,"س164","أنثى","مسلمة","ناجح ومنقول","(4 / 5)","لا يوجد","الخامس","نصف العام","آخر العام","ص",9,""]
[null,null,null,null,null,null,null,null,null,165,665,165,480266338,"س165","أنثى","مسلمة","ناجح ومنقول","(2 / 5)","لا يوجد","الخامس","نصف العام","آخر العام","ص",9,""]
[null,null,null,null,null,null,null,null,null,166,666,166,null,"س166","أنثى","مسلمة","ناجح ومنقول","(2 / 5)","لا يوجد","الخامس","نصف العام","آخر العام","ص",9,""]
[null,null,null,null,null,null,null,null,null,167,667,167,480268451,"س167","أنثى","مسلمة","ناجح ومنقول","(2 / 5)","لا يوجد","الخامس","نصف العام","آخر العام","ص",9,""]
[null,null,null,null,null,null,null,null,null,168,668,168,480269135,"س168","أنثى","مسلمة","ناجح ومنقول","(2 / 5)","لا يوجد","الخامس","نصف العام","آخر العام","ص",9,""]
[null,null,null,null,null,null,null,null,null,169,669,169,480306377,"س169","أنثى","مسلمة","ناجح ومنقول","(4 / 5)","لا يوجد","الخامس","نصف العام","آخر العام","ص",9,""]
[null,null,null,null,null,null,null,null,null,170,670,170,480267846,"س170","أنثى","مسلمة","ناجح ومنقول","(4 / 5)","لا يوجد","الخامس","نصف العام","آخر العام","ص",9,""]
[null,null,null,null,null,null,null,null,null,171,671,171,480268027,"س171","أنثى","مسلمة","ناجح ومنقول","(4 / 5)","لا يوجد","الخامس","نصف العام","آخر العام","ص",9,""]
[null,null,null,null,null,null,null,null,null,172,672,172,472375791,"س172","أنثى","مسلمة","ناجح ومنقول","(3 / 5)","لا يوجد","الخامس","نصف العام","آخر العام","ص",9,""]
[null,null,null,null,null,null,null,null,null,173,673,173,480268398,"س173","أنثى","مسلمة","ناجح ومنقول","(1 / 5)","لا يوجد","الخامس","نصف العام","آخر العام","ص",9,""]
[null,null,null,null,null,null,null,null,null,174,674,174,482085519,"س174","أنثى","مسلمة","ناجح ومنقول","(4 / 5)","لا يوجد","الخامس","نصف العام","آخر العام","ص",9,""]
[null,null,null,null,null,null,null,null,null,175,675,175,480312669,"س175","أنثى","مسلمة","ناجح ومنقول","(1 / 5)","لا يوجد","الخامس","نصف العام","آخر العام","ص",9,""]
[null,null,null,null,null,null,null,null,null,176,676,176,480266702,"س176","أنثى","مسلمة","ناجح ومنقول","(4 / 5)","لا يوجد","الخامس","نصف العام","آخر العام","ص",9,""]
[null,null,null,null,null,null,null,null,null,177,677,177,486353580,"س177","أنثى","مسلمة","ناجح ومنقول","(2 / 5)","لا يوجد","الخامس","نصف العام","آخر العام","ص",9,""]
[null,null,null,null,null,null,null,null,null,178,678,178,480302645,"س178","أنثى","مسلمة","ناجح ومنقول","(4 / 5)","لا يوجد","الخامس","نصف العام","آخر العام","ص",9,""]
[null,null,null,null,null,null,null,null,null,179,679,179,476295525,"س179","أنثى","مسلمة","ناجح ومنقول","(2 / 5)","لا يوجد","الخامس","نصف العام","آخر العام","ص",9,""]
[null,null,null,null,null,null,null,null,null,180,680,180,480268516,"س180","أنثى","مسلمة","ناجح ومنقول","(2 / 5)","لا يوجد","الخامس","نصف العام","آخر العام","ص",9,"نهاية اللجنة"]
[null,null,null,null,null,null,null,null,null,181,681,181,472944720,"س181","أنثى","مسلمة","ناجح ومنقول","(1 / 5)","لا يوجد","الخامس","نصف العام","آخر العام","ص",10,""]
[null,null,null,null,null,null,null,null,null,182,682,182,480309211,"س182","أنثى","مسلمة","ناجح ومنقول","(4 / 5)","لا يوجد","الخامس","نصف العام","آخر العام","ص",10,""]
[null,null,null,null,null,null,null,null,null,183,683,183,480327616,"س183","أنثى","مسلمة","ناجح ومنقول","(4 / 5)","لا يوجد","الخامس","نصف العام","آخر العام","ص",10,""]
[null,null,null,null,null,null,null,null,null,184,684,184,480302233,"س184","أنثى","مسلمة","ناجح ومنقول","(3 / 5)","لا يوجد","الخامس","نصف العام","آخر العام","ص",10,""]
[null,null,null,null,null,null,null,null,null,185,685,185,480330262,"س185","أنثى","مسلمة","ناجح ومنقول","(4 / 5)","لا يوجد","الخامس","نصف العام","آخر العام","ص",10,""]
[null,null,null,null,null,null,null,null,null,186,686,186,481704844,"س186","أنثى","مسلمة","ناجح ومنقول","(4 / 5)","لا يوجد","الخامس","نصف العام","آخر العام","ص",10,""]
[null,null,null,null,null,null,null,null,null,187,687,187,480287892,"س187","أنثى","مسلمة","ناجح ومنقول","(1 / 5)","لا يوجد","الخامس","نصف العام","آخر العام","ص",10,""]
[null,null,null,null,null,null,null,null,null,188,688,188,480268744,"س188","أنثى","مسلمة","ناجح ومنقول","(3 / 5)","لا يوجد","الخامس","نصف العام","آخر العام","ص",10,""]
[null,null,null,null,null,null,null,null,null,189,689,189,480287942,"س189","أنثى","مسلمة","ناجح ومنقول","(4 / 5)","لا يوجد","الخامس","نصف العام","آخر العام","ص",10,""]
[null,null,null,null,null,null,null,null,null,190,690,190,479675469,"س190","أنثى","مسلمة","ناجح ومنقول","(3 / 5)","لا يوجد","الخامس","نصف العام","آخر العام","ص",10,""]
[null,null,null,null,null,null,null,null,null,191,691,191,480313270,"س191","أنثى","مسلمة","ناجح ومنقول","(3 / 5)","لا يوجد","الخامس","نصف العام","آخر العام","ص",10,""]
[null,null,null,null,null,null,null,null,null,192,692,192,null,"س192","أنثى","مسلمة","ناجح ومنقول","(3 / 5)","لا يوجد","الخامس","نصف العام","آخر العام","ص",10,""]
[null,null,null,null,null,null,null,null,null,193,693,193,480267503,"س193","أنثى","مسلمة","ناجح ومنقول","(4 / 5)","لا يوجد","الخامس","نصف العام","آخر العام","ص",{"$f":"IF(K197=\"\",\"\",VLOOKUP(K197,جلوس,4))","v":10},""]
[null,null,null,null,null,null,null,null,null,{"$f":"IF(J197=\"\",\"\",IF(J197+1>$K$2,\"\",J197+1))","v":194},694,194,480328198,"س194","أنثى","مسلمة","ناجح ومنقول","(3 / 5)","لا يوجد","الخامس","نصف العام","آخر العام","ص",10,{"$f":"IF(X198=X199,\"\",\"نهاية اللجنة\")","v":""}]
[null,null,null,null,null,null,null,null,null,195,{"$f":"IF(K198=\"\",\"\",IF(K198+1>$K$3,\"\",K198+1))","v":695},195,472375968,"س195","أنثى","مسلمة","ناجح ومنقول","(1 / 5)","لا يوجد","الخامس","نصف العام","آخر العام","ص",10,""]
[null,null,null,null,null,null,null,null,null,196,696,196,480329229,"س196","أنثى","مسلمة","ناجح ومنقول","(2 / 5)","لا يوجد","الخامس","نصف العام","آخر العام","ص",10,""]
[null,null,null,null,null,null,null,null,null,197,697,197,480330532,"س197","أنثى","مسلمة","ناجح ومنقول","(4 / 5)","لا يوجد","الخامس","نصف العام","آخر العام","ص",10,""]
[null,null,null,null,null,null,null,null,null,198,698,198,479340288,"س198","أنثى","مسلمة","ناجح ومنقول","(3 / 5)","لا يوجد","الخامس","نصف العام","آخر العام","ص",10,""]
[null,null,null,null,null,null,null,null,null,199,699,199,481310292,"س199","أنثى","مسلمة","ناجح ومنقول","(1 / 5)","لا يوجد","الخامس","نصف العام","آخر العام","ص",10,""]
[null,null,null,null,null,null,null,null,null,200,700,200,480289269,"س200","أنثى","مسلمة","ناجح ومنقول","(3 / 5)","لا يوجد","الخامس","نصف العام","آخر العام","ص",10,"نهاية اللجنة"]
[null,null,null,null,null,null,null,null,null,201,701,201,480329451,"س201","أنثى","مسلمة","ناجح ومنقول","(2 / 5)","لا يوجد","الخامس","نصف العام","آخر العام","ص",11,""]
[null,null,null,null,null,null,null,null,null,202,702,202,480267916,"س202","أنثى","مسلمة","ناجح ومنقول","(1 / 5)","لا يوجد","الخامس","نصف العام","آخر العام","ص",11,""]
[null,null,null,null,null,null,null,null,null,203,703,203,479690528,"س203","أنثى","مسلمة","ناجح ومنقول","(4 / 5)","لا يوجد","الخامس","نصف العام","آخر العام","ص",11,""]
[null,null,null,null,null,null,null,null,null,204,704,204,480328955,"س204","أنثى","مسلمة","ناجح ومنقول","(2 / 5)","لا يوجد","الخامس","نصف العام","آخر العام","ص",11,""]
[null,null,null,null,null,null,null,null,null,205,705,205,480287814,"س205","أنثى","مسلمة","ناجح ومنقول","(4 / 5)","لا يوجد","الخامس","نصف العام","آخر العام","ص",11,""]
[null,null,null,null,null,null,null,null,null,206,706,206,479792129,"س206","أنثى","مسلمة","ناجح ومنقول","(4 / 5)","لا يوجد","الخامس","نصف العام","آخر العام","ص",11,""]
[null,null,null,null,null,null,null,null,null,207,707,207,480317674,"س207","أنثى","مسلمة","ناجح ومنقول","(3 / 5)","لا يوجد","الخامس","نصف العام","آخر العام","ص",11,""]
[null,null,null,null,null,null,null,null,null,208,708,208,480268989,"س208","أنثى","مسلمة","ناجح ومنقول","(1 / 5)","لا يوجد","الخامس","نصف العام","آخر العام","ص",11,""]
[null,null,null,null,null,null,null,null,null,209,709,209,480307436,"س209","أنثى","مسلمة","ناجح ومنقول","(4 / 5)","لا يوجد","الخامس","نصف العام","آخر العام","ص",11,""]
[null,null,null,null,null,null,null,null,null,210,710,210,480755024,"س210","أنثى","مسلمة","ناجح ومنقول","(3 / 5)","لا يوجد","الخامس","نصف العام","آخر العام","ص",11,""]
[null,null,null,null,null,null,null,null,null,211,711,211,480288468,"س211","أنثى","مسلمة","ناجح ومنقول","(2 / 5)","لا يوجد","الخامس","نصف العام","آخر العام","ص",11,""]
[null,null,null,null,null,null,null,null,null,212,712,212,480288398,"س212","أنثى","مسلمة","ناجح ومنقول","(2 / 5)","لا يوجد","الخامس","نصف العام","آخر العام","ص",11,"نهاية اللجنة"]
[null,null,null,null,null,null,null,null,null,"","",null,null,null,null,null,null,null,null,null,null,null,null,"",""]
[null,null,null,null,null,null,null,null,null,"","",null,null,null,null,null,null,null,null,null,null,null,null,"",""]
[null,null,null,null,null,null,null,null,null,"","",null,null,null,null,null,null,null,null,null,null,null,null,"",""]
[null,null,null,null,null,null,null,null,null,null,null,null,null,null,null,null,null,null,null,null,null,null,null,{"$f":"IF(K220=\"\",\"\",VLOOKUP(K220,جلوس,4))","v":""},""]
[null,null,null,null,null,null,null,null,null,null,null,null,null,null,null,null,null,null,null,null,null,null,null,"",""]
[null,null,null,null,null,null,null,null,null,null,null,null,null,null,null,null,null,null,null,null,null,null,null,"",""]
[null,null,null,null,null,null,null,null,null,null,null,null,null,null,null,null,null,null,null,null,null,null,null,"",""]
[null,null,null,null,null,null,null,null,null,null,null,null,null,null,null,null,null,null,null,null,null,null,null,"",""]
[null,null,null,null,null,null,null,null,null,null,null,null,null,null,null,null,null,null,null,null,null,null,null,"",""]
[null,null,null,null,null,null,null,null,null,null,null,null,null,null,null,null,null,null,null,null,null,null,null,"",""]
[null,null,null,null,null,null,null,null,null,null,null,null,null,null,null,null,null,null,null,null,null,null,null,"",""]
[null,null,null,null,null,null,null,null,null,null,null,null,null,null,null,null,null,null,null,null,null,null,null,"",""]
[null,null,null,null,null,null,null,null,null,null,null,null,null,null,null,null,null,null,null,null,null,null,null,"",""]
[null,null,null,null,null,null,null,null,null,null,null,null,null,null,null,null,null,null,null,null,null,null,null,"",""]
[null,null,null,null,null,null,null,null,null,null,null,null,null,null,null,null,null,null,null,null,null,null,null,"",""]
[null,null,null,null,null,null,null,null,null,null,null,null,null,null,null,null,null,null,null,null,null,null,null,"",""]
[null,null,null,null,null,null,null,null,null,null,null,null,null,null,null,null,null,null,null,null,null,null,null,"",""]
[null,null,null,null,null,null,null,null,null,null,null,null,null,null,null,null,null,null,null,null,null,null,null,"",""]
[null,null,null,null,null,null,null,null,null,null,null,null,null,null,null,null,null,null,null,null,null,null,null,"",""]
[null,null,null,null,null,null,null,null,null,null,null,null,null,null,null,null,null,null,null,null,null,null,null,"",""]
[null,null,null,null,null,null,null,null,null,null,null,null,null,null,null,null,null,null,null,null,null,null,null,"",""]
[null,null,null,null,null,null,null,null,null,null,null,null,null,null,null,null,null,null,null,null,null,null,null,"",""]
[null,null,null,null,null,null,null,null,null,null,null,null,null,null,null,null,null,null,null,null,null,null,null,"",""]
[null,null,null,null,null,null,null,null,null,null,null,null,null,null,null,null,null,null,null,null,null,null,null,"",""]
[null,null,null,null,null,null,null,null,null,null,null,null,null,null,null,null,null,null,null,null,null,null,null,"",""]
[null,null,null,null,null,null,null,null,null,null,null,null,null,null,null,null,null,null,null,null,null,null,null,"",""]
[null,null,null,null,null,null,null,null,null,null,null,null,null,null,null,null,null,null,null,null,null,null,null,"",""]
[null,null,null,null,null,null,null,null,null,null,null,null,null,null,null,null,null,null,null,null,null,null,null,"",""]
[null,null,null,null,null,null,null,null,null,null,null,null,null,null,null,null,null,null,null,null,null,null,null,"",""]
[null,null,null,null,null,null,null,null,null,null,null,null,null,null,null,null,null,null,null,null,null,null,null,"",""]
[null,null,null,null,null,null,null,null,null,null,null,null,null,null,null,null,null,null,null,null,null,null,null,"",""]
[null,null,null,null,null,null,null,null,null,null,null,null,null,null,null,null,null,null,null,null,null,null,null,"",""]
[null,null,null,null,null,null,null,null,null,null,null,null,null,null,null,null,null,null,null,null,null,null,null,"",""]
[null,null,null,null,null,null,null,null,null,null,null,null,null,null,null,null,null,null,null,null,null,null,null,"",""]
[null,null,null,null,null,null,null,null,null,null,null,null,null,null,null,null,null,null,null,null,null,null,null,"",""]
[null,null,null,null,null,null,null,null,null,null,null,null,null,null,null,null,null,null,null,null,null,null,null,{"$f":"IF(K252=\"\",\"\",VLOOKUP(K252,جلوس,4))","v":""},""]
[null,null,null,null,null,null,null,null,null,null,null,null,null,null,null,null,null,null,null,null,null,null,null,"",""]
[null,null,null,null,null,null,null,null,null,null,null,null,null,null,null,null,null,null,null,null,null,null,null,"",""]
[null,null,null,null,null,null,null,null,null,null,null,null,null,null,null,null,null,null,null,null,null,null,null,"",""]
[null,null,null,null,null,null,null,null,null,null,null,null,null,null,null,null,null,null,null,null,null,null,null,"",""]
[null,null,null,null,null,null,null,null,null,null,null,null,null,null,null,null,null,null,null,null,null,null,null,"",""]
[null,null,null,null,null,null,null,null,null,null,null,null,null,null,null,null,null,null,null,null,null,null,null,"",""]
[null,null,null,null,null,null,null,null,null,null,null,null,null,null,null,null,null,null,null,null,null,null,null,"",""]
[null,null,null,null,null,null,null,null,null,null,null,null,null,null,null,null,null,null,null,null,null,null,null,"",""]
[null,null,null,null,null,null,null,null,null,null,null,null,null,null,null,null,null,null,null,null,null,null,null,"",""]
[null,null,null,null,null,null,null,null,null,null,null,null,null,null,null,null,null,null,null,null,null,null,null,"",{"$f":"IF(X262=X263,\"\",\"نهاية اللجنة\")","v":""}]
[null,null,null,null,null,null,null,null,null,null,null,null,null,null,null,null,null,null,null,null,null,null,null,"",""]
[null,null,null,null,null,null,null,null,null,null,null,null,null,null,null,null,null,null,null,null,null,null,null,"",""]
[null,null,null,null,null,null,null,null,null,null,null,null,null,null,null,null,null,null,null,null,null,null,null,"",""]
[null,null,null,null,null,null,null,null,null,null,null,null,null,null,null,null,null,null,null,null,null,null,null,"",""]
[null,null,null,null,null,null,null,null,null,null,null,null,null,null,null,null,null,null,null,null,null,null,null,"",""]
[null,null,null,null,null,null,null,null,null,null,null,null,null,null,null,null,null,null,null,null,null,null,null,"",""]
[null,null,null,null,null,null,null,null,null,null,null,null,null,null,null,null,null,null,null,null,null,null,null,"",""]
[null,null,null,null,null,null,null,null,null,null,null,null,null,null,null,null,null,null,null,null,null,null,null,"",""]
[null,null,null,null,null,null,null,null,null,{"$f":"IF(J270=\"\",\"\",IF(J270+1>$K$2,\"\",J270+1))","v":""},null,null,null,null,null,null,null,null,null,null,null,null,null,"",""]
[null,null,null,null,null,null,null,null,null,"",null,null,null,null,null,null,null,null,null,null,null,null,null,"",""]
[null,null,null,null,null,null,null,null,null,"",null,null,null,null,null,null,null,null,null,null,null,null,null,"",""]
[null,null,null,null,null,null,null,null,null,"",null,null,null,null,null,null,null,null,null,null,null,null,null,"",""]
[null,null,null,null,null,null,null,null,null,"",null,null,null,null,null,null,null,null,null,null,null,null,null,"",""]
[null,null,null,null,null,null,null,null,null,"",null,null,null,null,null,null,null,null,null,null,null,null,null,"",""]
[null,null,null,null,null,null,null,null,null,"",null,null,null,null,null,null,null,null,null,null,null,null,null,"",""]
[null,null,null,null,null,null,null,null,null,"",null,null,null,null,null,null,null,null,null,null,null,null,null,"",""]
[null,null,null,null,null,null,null,null,null,"",null,null,null,null,null,null,null,null,null,null,null,null,null,"",""]
[null,null,null,null,null,null,null,null,null,"",null,null,null,null,null,null,null,null,null,null,null,null,null,"",""]
[null,null,null,null,null,null,null,null,null,"",null,null,null,null,null,null,null,null,null,null,null,null,null,"",""]
[null,null,null,null,null,null,null,null,null,"",null,null,null,null,null,null,null,null,null,null,null,null,null,"",""]
[null,null,null,null,null,null,null,null,null,"",null,null,null,null,null,null,null,null,null,null,null,null,null,"",""]
[null,null,null,null,null,null,null,null,null,"",null,null,null,null,null,null,null,null,null,null,null,null,null,{"$f":"IF(K284=\"\",\"\",VLOOKUP(K284,جلوس,4))","v":""},""]
[null,null,null,null,null,null,null,null,null,"",null,null,null,null,null,null,null,null,null,null,null,null,null,"",""]
[null,null,null,null,null,null,null,null,null,"",null,null,null,null,null,null,null,null,null,null,null,null,null,"",""]
[null,null,null,null,null,null,null,null,null,"",null,null,null,null,null,null,null,null,null,null,null,null,null,"",""]
[null,null,null,null,null,null,null,null,null,"",null,null,null,null,null,null,null,null,null,null,null,null,null,"",""]
[null,null,null,null,null,null,null,null,null,"",null,null,null,null,null,null,null,null,null,null,null,null,null,"",""]
[null,null,null,null,null,null,null,null,null,"",null,null,null,null,null,null,null,null,null,null,null,null,null,"",""]
[null,null,null,null,null,null,null,null,null,"",null,null,null,null,null,null,null,null,null,null,null,null,null,"",""]
[null,null,null,null,null,null,null,null,null,"",null,null,null,null,null,null,null,null,null,null,null,null,null,"",""]
[null,null,null,null,null,null,null,null,null,"",null,null,null,null,null,null,null,null,null,null,null,null,null,"",""]
[null,null,null,null,null,null,null,null,null,"",null,null,null,null,null,null,null,null,null,null,null,null,null,"",""]
[null,null,null,null,null,null,null,null,null,"",null,null,null,null,null,null,null,null,null,null,null,null,null,"",""]
[null,null,null,null,null,null,null,null,null,"",null,null,null,null,null,null,null,null,null,null,null,null,null,"",""]
[null,null,null,null,null,null,null,null,null,"",null,null,null,null,null,null,null,null,null,null,null,null,null,"",""]
[]
[]
[null,null,null,null,null,null,null,null,null,{"$f":"IF(J299=\"\",\"\",IF(J299+1>$K$2,\"\",J299+1))","v":""},{"$f":"IF(K299=\"\",\"\",IF(K299+1>$K$3,\"\",K299+1))","v":""},null,null,null,null,null,null,null,null,null,null,null,null,{"$f":"IF(K300=\"\",\"\",VLOOKUP(K300,جلوس,4))","v":""},""]
[null,null,null,null,null,null,null,null,null,"","",null,null,null,null,null,null,null,null,null,null,null,null,"",""]
[null,null,null,null,null,null,null,null,null,"","",null,null,null,null,null,null,null,null,null,null,null,null,"",""]
[null,null,null,null,null,null,null,null,null,"","",null,null,null,null,null,null,null,null,null,null,null,null,"",""]
[null,null,null,null,null,null,null,null,null,"","",null,null,null,null,null,null,null,null,null,null,null,null,"",""]
[null,null,null,null,null,null,null,null,null,"","",null,null,null,null,null,null,null,null,null,null,null,null,"",""]
[null,null,null,null,null,null,null,null,null,"","",null,null,null,null,null,null,null,null,null,null,null,null,"",""]
[null,null,null,null,null,null,null,null,null,"","",null,null,null,null,null,null,null,null,null,null,null,null,"",""]
[null,null,null,null,null,null,null,null,null,"","",null,null,null,null,null,null,null,null,null,null,null,null,"",""]
[null,null,null,null,null,null,null,null,null,"","",null,null,null,null,null,null,null,null,null,null,null,null,"",""]
[null,null,null,null,null,null,null,null,null,"","",null,null,null,null,null,null,null,null,null,null,null,null,"",""]
[null,null,null,null,null,null,null,null,null,"","",null,null,null,null,null,null,null,null,null,null,null,null,"",""]
[null,null,null,null,null,null,null,null,null,"","",null,null,null,null,null,null,null,null,null,null,null,null,"",""]
[null,null,null,null,null,null,null,null,null,"","",null,null,null,null,null,null,null,null,null,null,null,null,"",""]
[null,null,null,null,null,null,null,null,null,"","",null,null,null,null,null,null,null,null,null,null,null,null,"",""]
[null,null,null,null,null,null,null,null,null,"","",null,null,null,null,null,null,null,null,null,null,null,null,"",""]
[null,null,null,null,null,null,null,null,null,"","",null,null,null,null,null,null,null,null,null,null,null,null,"",""]
[null,null,null,null,null,null,null,null,null,"","",null,null,null,null,null,null,null,null,null,null,null,null,"",""]
[null,null,null,null,null,null,null,null,null,"","",null,null,null,null,null,null,null,null,null,null,null,null,"",""]
[null,null,null,null,null,null,null,null,null,"","",null,null,null,null,null,null,null,null,null,null,null,null,"",""]
[null,null,null,null,null,null,null,null,null,"","",null,null,null,null,null,null,null,null,null,null,null,null,"",""]
[null,null,null,null,null,null,null,null,null,"","",null,null,null,null,null,null,null,null,null,null,null,null,"",""]
[null,null,null,null,null,null,null,null,null,"","",null,null,null,null,null,null,null,null,null,null,null,null,"",""]
[null,null,null,null,null,null,null,null,null,"","",null,null,null,null,null,null,null,null,null,null,null,null,"",""]
[null,null,null,null,null,null,null,null,null,"","",null,null,null,null,null,null,null,null,null,null,null,null,"",""]
[null,null,null,null,null,null,null,null,null,"","",null,null,null,null,null,null,null,null,null,null,null,null,"",""]
[null,null,null,null,null,null,null,null,null,"","",null,null,null,null,null,null,null,null,null,null,null,null,"",{"$f":"IF(X326=X327,\"\",\"نهاية اللجنة\")","v":""}]
[null,null,null,null,null,null,null,null,null,"","",null,null,null,null,null,null,null,null,null,null,null,null,"",""]
[null,null,null,null,null,null,null,null,null,"","",null,null,null,null,null,null,null,null,null,null,null,null,"",""]
[null,null,null,null,null,null,null,null,null,"","",null,null,null,null,null,null,null,null,null,null,null,null,"",""]
[null,null,null,null,null,null,null,null,null,"","",null,null,null,null,null,null,null,null,null,null,null,null,"",""]
[null,null,null,null,null,null,null,null,null,"","",null,null,null,null,null,null,null,null,null,null,null,null,"",""]
[null,null,null,null,null,null,null,null,null,"","",null,null,null,null,null,null,null,null,null,null,null,null,"",""]
[null,null,null,null,null,null,null,null,null,"","",null,null,null,null,null,null,null,null,null,null,null,null,"",""]
[null,null,null,null,null,null,null,null,null,"","",null,null,null,null,null,null,null,null,null,null,null,null,"",""]
[null,null,null,null,null,null,null,null,null,"","",null,null,null,null,null,null,null,null,null,null,null,null,"",""]
[null,null,null,null,null,null,null,null,null,"","",null,null,null,null,null,null,null,null,null,null,null,null,"",""]
[null,null,null,null,null,null,null,null,null,"","",null,null,null,null,null,null,null,null,null,null,null,null,"",""]
[null,null,null,null,null,null,null,null,null,"","",null,null,null,null,null,null,null,null,null,null,null,null,"",""]
[null,null,null,null,null,null,null,null,null,"","",null,null,null,null,null,null,null,null,null,null,null,null,"",""]
[null,null,null,null,null,null,null,null,null,"","",null,null,null,null,null,null,null,null,null,null,null,null,"",""]
[null,null,null,null,null,null,null,null,null,"","",null,null,null,null,null,null,null,null,null,null,null,null,"",""]
[null,null,null,null,null,null,null,null,null,"","",null,null,null,null,null,null,null,null,null,null,null,null,"",""]
[null,null,null,null,null,null,null,null,null,"","",null,null,null,null,null,null,null,null,null,null,null,null,"",""]
[null,null,null,null,null,null,null,null,null,"","",null,null,null,null,null,null,null,null,null,null,null,null,"",""]
[null,null,null,null,null,null,null,null,null,"","",null,null,null,null,null,null,null,null,null,null,null,null,"",""]
[null,null,null,null,null,null,null,null,null,"","",null,null,null,null,null,null,null,null,null,null,null,null,"",""]
[null,null,null,null,null,null,null,null,null,"","",null,null,null,null,null,null,null,null,null,null,null,null,"",""]
[null,null,null,null,null,null,null,null,null,"","",null,null,null,null,null,null,null,null,null,null,null,null,"",""]
[null,null,null,null,null,null,null,null,null,"","",null,null,null,null,null,null,null,null,null,null,null,null,"",""]
[null,null,null,null,null,null,null,null,null,"","",null,null,null,null,null,null,null,null,null,null,null,null,"",""]
[null,null,null,null,null,null,null,null,null,"","",null,null,null,null,null,null,null,null,null,null,null,null,"",""]
[null,null,null,null,null,null,null,null,null,"","",null,null,null,null,null,null,null,null,null,null,null,null,"",""]
[null,null,null,null,null,null,null,null,null,"","",null,null,null,null,null,null,null,null,null,null,null,null,"",""]
[null,null,null,null,null,null,null,null,null,"","",null,null,null,null,null,null,null,null,null,null,null,null,"",""]
[null,null,null,null,null,null,null,null,null,"","",null,null,null,null,null,null,null,null,null,null,null,null,"",""]
[null,null,null,null,null,null,null,null,null,"","",null,null,null,null,null,null,null,null,null,null,null,null,"",""]
[null,null,null,null,null,null,null,null,null,"","",null,null,null,null,null,null,null,null,null,null,null,null,"",""]
[null,null,null,null,null,null,null,null,null,"","",null,null,null,null,null,null,null,null,null,null,null,null,"",""]
[null,null,null,null,null,null,null,null,null,"","",null,null,null,null,null,null,null,null,null,null,null,null,"",""]
[null,null,null,null,null,null,null,null,null,"","",null,null,null,null,null,null,null,null,null,null,null,null,"",""]
[null,null,null,null,null,null,null,null,null,"","",null,null,null,null,null,null,null,null,null,null,null,null,"",""]
[null,null,null,null,null,null,null,null,null,"","",null,null,null,null,null,null,null,null,null,null,null,null,"",""]
[null,null,null,null,null,null,null,null,null,"","",null,null,null,null,null,null,null,null,null,null,null,null,"",""]
[null,null,null,null,null,null,null,null,null,{"$f":"IF(J363=\"\",\"\",IF(J363+1>$K$2,\"\",J363+1))","v":""},{"$f":"IF(K363=\"\",\"\",IF(K363+1>$K$3,\"\",K363+1))","v":""},null,null,null,null,null,null,null,null,null,null,null,null,{"$f":"IF(K364=\"\",\"\",VLOOKUP(K364,جلوس,4))","v":""},""]
[null,null,null,null,null,null,null,null,null,"","",null,null,null,null,null,null,null,null,null,null,null,null,"",""]
[null,null,null,null,null,null,null,null,null,"","",null,null,null,null,null,null,null,null,null,null,null,null,"",""]
[null,null,null,null,null,null,null,null,null,"","",null,null,null,null,null,null,null,null,null,null,null,null,"",""]
[null,null,null,null,null,null,null,null,null,"","",null,null,null,null,null,null,null,null,null,null,null,null,"",""]
[null,null,null,null,null,null,null,null,null,"","",null,null,null,null,null,null,null,null,null,null,null,null,"",""]
[null,null,null,null,null,null,null,null,null,"","",null,null,null,null,null,null,null,null,null,null,null,null,"",""]
[null,null,null,null,null,null,null,null,null,"","",null,null,null,null,null,null,null,null,null,null,null,null,"",""]
[null,null,null,null,null,null,null,null,null,"","",null,null,null,null,null,null,null,null,null,null,null,null,"",""]
[null,null,null,null,null,null,null,null,null,"","",null,null,null,null,null,null,null,null,null,null,null,null,"",""]
[null,null,null,null,null,null,null,null,null,"","",null,null,null,null,null,null,null,null,null,null,null,null,"",""]
[null,null,null,null,null,null,null,null,null,"","",null,null,null,null,null,null,null,null,null,null,null,null,"",""]
[null,null,null,null,null,null,null,null,null,"","",null,null,null,null,null,null,null,null,null,null,null,null,"",""]
[null,null,null,null,null,null,null,null,null,"","",null,null,null,null,null,null,null,null,null,null,null,null,"",""]
[null,null,null,null,null,null,null,null,null,"","",null,null,null,null,null,null,null,null,null,null,null,null,"",""]
[null,null,null,null,null,null,null,null,null,"","",null,null,null,null,null,null,null,null,null,null,null,null,"",""]
[null,null,null,null,null,null,null,null,null,"","",null,null,null,null,null,null,null,null,null,null,null,null,"",""]
[null,null,null,null,null,null,null,null,null,"","",null,null,null,null,null,null,null,null,null,null,null,null,"",""]
[null,null,null,null,null,null,null,null,null,"","",null,null,null,null,null,null,null,null,null,null,null,null,"",""]
[null,null,null,null,null,null,null,null,null,"","",null,null,null,null,null,null,null,null,null,null,null,null,"",""]
[null,null,null,null,null,null,null,null,null,"","",null,null,null,null,null,null,null,null,null,null,null,null,"",""]
[null,null,null,null,null,null,null,null,null,"","",null,null,null,null,null,null,null,null,null,null,null,null,"",""]
[null,null,null,null,null,null,null,null,null,"","",null,null,null,null,null,null,null,null,null,null,null,null,"",""]
[null,null,null,null,null,null,null,null,null,"","",null,null,null,null,null,null,null,null,null,null,null,null,"",""]
[null,null,null,null,null,null,null,null,null,"","",null,null,null,null,null,null,null,null,null,null,null,null,"",""]
[null,null,null,null,null,null,null,null,null,"","",null,null,null,null,null,null,null,null,null,null,null,null,"",""]
[null,null,null,null,null,null,null,null,null,"","",null,null,null,null,null,null,null,null,null,null,null,null,"",{"$f":"IF(X390=X391,\"\",\"نهاية اللجنة\")","v":""}]
[null,null,null,null,null,null,null,null,null,"","",null,null,null,null,null,null,null,null,null,null,null,null,"",""]
[null,null,null,null,null,null,null,null,null,"","",null,null,null,null,null,null,null,null,null,null,null,null,"",""]
[null,null,null,null,null,null,null,null,null,"","",null,null,null,null,null,null,null,null,null,null,null,null,"",""]
[null,null,null,null,null,null,null,null,null,"","",null,null,null,null,null,null,null,null,null,null,null,null,"",""]
[null,null,null,null,null,null,null,null,null,"","",null,null,null,null,null,null,null,null,null,null,null,null,"",""]
[null,null,null,null,null,null,null,null,null,"","",null,null,null,null,null,null,null,null,null,null,null,null,"",""]
[null,null,null,null,null,null,null,null,null,"","",null,null,null,null,null,null,null,null,null,null,null,null,"",""]
[null,null,null,null,null,null,null,null,null,"","",null,null,null,null,null,null,null,null,null,null,null,null,"",""]
[null,null,null,null,null,null,null,null,null,"","",null,null,null,null,null,null,null,null,null,null,null,null,"",""]
[null,null,null,null,null,null,null,null,null,"","",null,null,null,null,null,null,null,null,null,null,null,null,"",""]
[null,null,null,null,null,null,null,null,null,"","",null,null,null,null,null,null,null,null,null,null,null,null,"",""]
[null,null,null,null,null,null,null,null,null,"","",null,null,null,null,null,null,null,null,null,null,null,null,"",""]
[null,null,null,null,null,null,null,null,null,"","",null,null,null,null,null,null,null,null,null,null,null,null,"",""]
[null,null,null,null,null,null,null,null,null,"","",null,null,null,null,null,null,null,null,null,null,null,null,"",""]
[null,null,null,null,null,null,null,null,null,"","",null,null,null,null,null,null,null,null,null,null,null,null,"",""]
[null,null,null,null,null,null,null,null,null,"","",null,null,null,null,null,null,null,null,null,null,null,null,"",""]
[null,null,null,null,null,null,null,null,null,"","",null,null,null,null,null,null,null,null,null,null,null,null,"",""]
[null,null,null,null,null,null,null,null,null,"","",null,null,null,null,null,null,null,null,null,null,null,null,"",""]
[null,null,null,null,null,null,null,null,null,"","",null,null,null,null,null,null,null,null,null,null,null,null,"",""]
[null,null,null,null,null,null,null,null,null,"","",null,null,null,null,null,null,null,null,null,null,null,null,"",""]
[null,null,null,null,null,null,null,null,null,"","",null,null,null,null,null,null,null,null,null,null,null,null,"",""]
[null,null,null,null,null,null,null,null,null,"","",null,null,null,null,null,null,null,null,null,null,null,null,"",""]
[null,null,null,null,null,null,null,null,null,"","",null,null,null,null,null,null,null,null,null,null,null,null,"",""]
[null,null,null,null,null,null,null,null,null,"","",null,null,null,null,null,null,null,null,null,null,null,null,"",""]
[null,null,null,null,null,null,null,null,null,"","",null,null,null,null,null,null,null,null,null,null,null,null,"",""]
[null,null,null,null,null,null,null,null,null,"","",null,null,null,null,null,null,null,null,null,null,null,null,"",""]
[null,null,null,null,null,null,null,null,null,"","",null,null,null,null,null,null,null,null,null,null,null,null,"",""]
[null,null,null,null,null,null,null,null,null,"","",null,null,null,null,null,null,null,null,null,null,null,null,"",""]
[null,null,null,null,null,null,null,null,null,"","",null,null,null,null,null,null,null,null,null,null,null,null,"",""]
[null,null,null,null,null,null,null,null,null,"","",null,null,null,null,null,null,null,null,null,null,null,null,"",""]
[null,null,null,null,null,null,null,null,null,"","",null,null,null,null,null,null,null,null,null,null,null,null,"",""]
[null,null,null,null,null,null,null,null,null,"","",null,null,null,null,null,null,null,null,null,null,null,null,"",""]
[null,null,null,null,null,null,null,null,null,"","",null,null,null,null,null,null,null,null,null,null,null,null,"",""]
[null,null,null,null,null,null,null,null,null,"","",null,null,null,null,null,null,null,null,null,null,null,null,"",""]
[null,null,null,null,null,null,null,null,null,"","",null,null,null,null,null,null,null,null,null,null,null,null,"",""]
[null,null,null,null,null,null,null,null,null,"","",null,null,null,null,null,null,null,null,null,null,null,null,"",""]
[null,null,null,null,null,null,null,null,null,"","",null,null,null,null,null,null,null,null,null,null,null,null,"",""]
[null,null,null,null,null,null,null,null,null,{"$f":"IF(J427=\"\",\"\",IF(J427+1>$K$2,\"\",J427+1))","v":""},{"$f":"IF(K427=\"\",\"\",IF(K427+1>$K$3,\"\",K427+1))","v":""},null,null,null,null,null,null,null,null,null,null,null,null,{"$f":"IF(K428=\"\",\"\",VLOOKUP(K428,جلوس,4))","v":""},""]
[null,null,null,null,null,null,null,null,null,"","",null,null,null,null,null,null,null,null,null,null,null,null,"",""]
[null,null,null,null,null,null,null,null,null,"","",null,null,null,null,null,null,null,null,null,null,null,null,"",""]
[null,null,null,null,null,null,null,null,null,"","",null,null,null,null,null,null,null,null,null,null,null,null,"",""]
[null,null,null,null,null,null,null,null,null,"","",null,null,null,null,null,null,null,null,null,null,null,null,"",""]
[null,null,null,null,null,null,null,null,null,"","",null,null,null,null,null,null,null,null,null,null,null,null,"",""]
[null,null,null,null,null,null,null,null,null,"","",null,null,null,null,null,null,null,null,null,null,null,null,"",""]
[null,null,null,null,null,null,null,null,null,"","",null,null,null,null,null,null,null,null,null,null,null,null,"",""]
[null,null,null,null,null,null,null,null,null,"","",null,null,null,null,null,null,null,null,null,null,null,null,"",""]
[null,null,null,null,null,null,null,null,null,"","",null,null,null,null,null,null,null,null,null,null,null,null,"",""]
[null,null,null,null,null,null,null,null,null,"","",null,null,null,null,null,null,null,null,null,null,null,null,"",""]
[null,null,null,null,null,null,null,null,null,"","",null,null,null,null,null,null,null,null,null,null,null,null,"",""]
[null,null,null,null,null,null,null,null,null,"","",null,null,null,null,null,null,null,null,null,null,null,null,"",""]
[null,null,null,null,null,null,null,null,null,"","",null,null,null,null,null,null,null,null,null,null,null,null,"",""]
[null,null,null,null,null,null,null,null,null,"","",null,null,null,null,null,null,null,null,null,null,null,null,"",""]
[null,null,null,null,null,null,null,null,null,"","",null,null,null,null,null,null,null,null,null,null,null,null,"",""]
[null,null,null,null,null,null,null,null,null,"","",null,null,null,null,null,null,null,null,null,null,null,null,"",""]
[null,null,null,null,null,null,null,null,null,"","",null,null,null,null,null,null,null,null,null,null,null,null,"",""]
[null,null,null,null,null,null,null,null,null,"","",null,null,null,null,null,null,null,null,null,null,null,null,"",""]
[null,null,null,null,null,null,null,null,null,"","",null,null,null,null,null,null,null,null,null,null,null,null,"",""]
[null,null,null,null,null,null,null,null,null,"","",null,null,null,null,null,null,null,null,null,null,null,null,"",""]
[null,null,null,null,null,null,null,null,null,"","",null,null,null,null,null,null,null,null,null,null,null,null,"",""]
[null,null,null,null,null,null,null,null,null,"","",null,null,null,null,null,null,null,null,null,null,null,null,"",""]
[null,null,null,null,null,null,null,null,null,"","",null,null,null,null,null,null,null,null,null,null,null,null,"",""]
[null,null,null,null,null,null,null,null,null,"","",null,null,null,null,null,null,null,null,null,null,null,null,"",""]
[null,null,null,null,null,null,null,null,null,"","",null,null,null,null,null,null,null,null,null,null,null,null,"",""]
[null,null,null,null,null,null,null,null,null,"","",null,null,null,null,null,null,null,null,null,null,null,null,"",{"$f":"IF(X454=X455,\"\",\"نهاية اللجنة\")","v":""}]
[null,null,null,null,null,null,null,null,null,"","",null,null,null,null,null,null,null,null,null,null,null,null,"",""]
[null,null,null,null,null,null,null,null,null,"","",null,null,null,null,null,null,null,null,null,null,null,null,"",""]
[null,null,null,null,null,null,null,null,null,"","",null,null,null,null,null,null,null,null,null,null,null,null,"",""]
[null,null,null,null,null,null,null,null,null,"","",null,null,null,null,null,null,null,null,null,null,null,null,"",""]
[null,null,null,null,null,null,null,null,null,"","",null,null,null,null,null,null,null,null,null,null,null,null,"",""]
[null,null,null,null,null,null,null,null,null,"","",null,null,null,null,null,null,null,null,null,null,null,null,"",""]
[null,null,null,null,null,null,null,null,null,"","",null,null,null,null,null,null,null,null,null,null,null,null,"",""]
[null,null,null,null,null,null,null,null,null,"","",null,null,null,null,null,null,null,null,null,null,null,null,"",""]
[null,null,null,null,null,null,null,null,null,"","",null,null,null,null,null,null,null,null,null,null,null,null,"",""]
[null,null,null,null,null,null,null,null,null,"","",null,null,null,null,null,null,null,null,null,null,null,null,"",""]
[null,null,null,null,null,null,null,null,null,"","",null,null,null,null,null,null,null,null,null,null,null,null,"",""]
[null,null,null,null,null,null,null,null,null,"","",null,null,null,null,null,null,null,null,null,null,null,null,"",""]
[null,null,null,null,null,null,null,null,null,"","",null,null,null,null,null,null,null,null,null,null,null,null,"",""]
[null,null,null,null,null,null,null,null,null,"","",null,null,null,null,null,null,null,null,null,null,null,null,"",""]
[null,null,null,null,null,null,null,null,null,"","",null,null,null,null,null,null,null,null,null,null,null,null,"",""]
[null,null,null,null,null,null,null,null,null,"","",null,null,null,null,null,null,null,null,null,null,null,null,"",""]
[null,null,null,null,null,null,null,null,null,"","",null,null,null,null,null,null,null,null,null,null,null,null,"",""]
[null,null,null,null,null,null,null,null,null,"","",null,null,null,null,null,null,null,null,null,null,null,null,"",""]
[null,null,null,null,null,null,null,null,null,"","",null,null,null,null,null,null,null,null,null,null,null,null,"",""]
[null,null,null,null,null,null,null,null,null,"","",null,null,null,null,null,null,null,null,null,null,null,null,"",""]
[null,null,null,null,null,null,null,null,null,"","",null,null,null,null,null,null,null,null,null,null,null,null,"",""]
[null,null,null,null,null,null,null,null,null,"","",null,null,null,null,null,null,null,null,null,null,null,null,"",""]
[null,null,null,null,null,null,null,null,null,"","",null,null,null,null,null,null,null,null,null,null,null,null,"",""]
[null,null,null,null,null,null,null,null,null,"","",null,null,null,null,null,null,null,null,null,null,null,null,"",""]
[null,null,null,null,null,null,null,null,null,"","",null,null,null,null,null,null,null,null,null,null,null,null,"",""]
[null,null,null,null,null,null,null,null,null,"","",null,null,null,null,null,null,null,null,null,null,null,null,"",""]
[null,null,null,null,null,null,null,null,null,"","",null,null,null,null,null,null,null,null,null,null,null,null,"",""]
[null,null,null,null,null,null,null,null,null,"","",null,null,null,null,null,null,null,null,null,null,null,null,"",""]
[null,null,null,null,null,null,null,null,null,"","",null,null,null,null,null,null,null,null,null,null,null,null,"",""]
[null,null,null,null,null,null,null,null,null,"","",null,null,null,null,null,null,null,null,null,null,null,null,"",""]
[null,null,null,null,null,null,null,null,null,"","",null,null,null,null,null,null,null,null,null,null,null,null,"",""]
[null,null,null,null,null,null,null,null,null,"","",null,null,null,null,null,null,null,null,null,null,null,null,"",""]
[null,null,null,null,null,null,null,null,null,"","",null,null,null,null,null,null,null,null,null,null,null,null,"",""]
[null,null,null,null,null,null,null,null,null,"","",null,null,null,null,null,null,null,null,null,null,null,null,"",""]
[null,null,null,null,null,null,null,null,null,"","",null,null,null,null,null,null,null,null,null,null,null,null,"",""]
[null,null,null,null,null,null,null,null,null,"","",null,null,null,null,null,null,null,null,null,null,null,null,"",""]
[null,null,null,null,null,null,null,null,null,"","",null,null,null,null,null,null,null,null,null,null,null,null,"",""]
[null,null,null,null,null,null,null,null,null,{"$f":"IF(J491=\"\",\"\",IF(J491+1>$K$2,\"\",J491+1))","v":""},{"$f":"IF(K491=\"\",\"\",IF(K491+1>$K$3,\"\",K491+1))","v":""},null,null,null,null,null,null,null,null,null,null,null,null,{"$f":"IF(K492=\"\",\"\",VLOOKUP(K492,جلوس,4))","v":""},""]
[null,null,null,null,null,null,null,null,null,"","",null,null,null,null,null,null,null,null,null,null,null,null,"",""]
[null,null,null,null,null,null,null,null,null,"","",null,null,null,null,null,null,null,null,null,null,null,null,"",""]
[null,null,null,null,null,null,null,null,null,"","",null,null,null,null,null,null,null,null,null,null,null,null,"",""]
[null,null,null,null,null,null,null,null,null,"","",null,null,null,null,null,null,null,null,null,null,null,null,"",""]
[null,null,null,null,null,null,null,null,null,"","",null,null,null,null,null,null,null,null,null,null,null,null,"",""]
[null,null,null,null,null,null,null,null,null,"","",null,null,null,null,null,null,null,null,null,null,null,null,"",""]
[null,null,null,null,null,null,null,null,null,"","",null,null,null,null,null,null,null,null,null,null,null,null,"",""]
[null,null,null,null,null,null,null,null,null,"","",null,null,null,null,null,null,null,null,null,null,null,null,"",""]
[null,null,null,null,null,null,null,null,null,"","",null,null,null,null,null,null,null,null,null,null,null,null,"",""]
[null,null,null,null,null,null,null,null,null,"","",null,null,null,null,null,null,null,null,null,null,null,null,"",""]
[null,null,null,null,null,null,null,null,null,"","",null,null,null,null,null,null,null,null,null,null,null,null,"",""]
[null,null,null,null,null,null,null,null,null,"","",null,null,null,null,null,null,null,null,null,null,null,null,"",""]
[null,null,null,null,null,null,null,null,null,"","",null,null,null,null,null,null,null,null,null,null,null,null,"",""]
[null,null,null,null,null,null,null,null,null,"","",null,null,null,null,null,null,null,null,null,null,null,null,"",""]
[null,null,null,null,null,null,null,null,null,"","",null,null,null,null,null,null,null,null,null,null,null,null,"",""]
[null,null,null,null,null,null,null,null,null,"","",null,null,null,null,null,null,null,null,null,null,null,null,"",""]
[null,null,null,null,null,null,null,null,null,"","",null,null,null,null,null,null,null,null,null,null,null,null,"",""]
[null,null,null,null,null,null,null,null,null,"","",null,null,null,null,null,null,null,null,null,null,null,null,"",""]
[null,null,null,null,null,null,null,null,null,"","",null,null,null,null,null,null,null,null,null,null,null,null,"",""]
[null,null,null,null,null,null,null,null,null,"","",null,null,null,null,null,null,null,null,null,null,null,null,"",""]
[null,null,null,null,null,null,null,null,null,"","",null,null,null,null,null,null,null,null,null,null,null,null,"",""]
[null,null,null,null,null,null,null,null,null,"","",null,null,null,null,null,null,null,null,null,null,null,null,"",""]
[null,null,null,null,null,null,null,null,null,"","",null,null,null,null,null,null,null,null,null,null,null,null,"",""]
[null,null,null,null,null,null,null,null,null,"","",null,null,null,null,null,null,null,null,null,null,null,null,"",""]
[null,null,null,null,null,null,null,null,null,"","",null,null,null,null,null,null,null,null,null,null,null,null,"",""]
[null,null,null,null,null,null,null,null,null,"","",null,null,null,null,null,null,null,null,null,null,null,null,"",{"$f":"IF(X518=X519,\"\",\"نهاية اللجنة\")","v":""}]
[null,null,null,null,null,null,null,null,null,"","",null,null,null,null,null,null,null,null,null,null,null,null,"",""]
[null,null,null,null,null,null,null,null,null,"","",null,null,null,null,null,null,null,null,null,null,null,null,"",""]
[null,null,null,null,null,null,null,null,null,"","",null,null,null,null,null,null,null,null,null,null,null,null,"",""]
[null,null,null,null,null,null,null,null,null,"","",null,null,null,null,null,null,null,null,null,null,null,null,"",""]
[null,null,null,null,null,null,null,null,null,"","",null,null,null,null,null,null,null,null,null,null,null,null,"",""]
[null,null,null,null,null,null,null,null,null,"","",null,null,null,null,null,null,null,null,null,null,null,null,"",""]
[null,null,null,null,null,null,null,null,null,"","",null,null,null,null,null,null,null,null,null,null,null,null,"",""]
[null,null,null,null,null,null,null,null,null,"","",null,null,null,null,null,null,null,null,null,null,null,null,"",""]
[null,null,null,null,null,null,null,null,null,"","",null,null,null,null,null,null,null,null,null,null,null,null,"",""]
[null,null,null,null,null,null,null,null,null,"","",null,null,null,null,null,null,null,null,null,null,null,null,"",""]
[null,null,null,null,null,null,null,null,null,"","",null,null,null,null,null,null,null,null,null,null,null,null,"",""]
[null,null,null,null,null,null,null,null,null,"","",null,null,null,null,null,null,null,null,null,null,null,null,"",""]
[null,null,null,null,null,null,null,null,null,"","",null,null,null,null,null,null,null,null,null,null,null,null,"",""]
[null,null,null,null,null,null,null,null,null,"","",null,null,null,null,null,null,null,null,null,null,null,null,"",""]
[null,null,null,null,null,null,null,null,null,"","",null,null,null,null,null,null,null,null,null,null,null,null,"",""]
[null,null,null,null,null,null,null,null,null,"","",null,null,null,null,null,null,null,null,null,null,null,null,"",""]
[null,null,null,null,null,null,null,null,null,"","",null,null,null,null,null,null,null,null,null,null,null,null,"",""]
[null,null,null,null,null,null,null,null,null,"","",null,null,null,null,null,null,null,null,null,null,null,null,"",""]
[null,null,null,null,null,null,null,null,null,"","",null,null,null,null,null,null,null,null,null,null,null,null,"",""]
[null,null,null,null,null,null,null,null,null,"","",null,null,null,null,null,null,null,null,null,null,null,null,"",""]
[null,null,null,null,null,null,null,null,null,"","",null,null,null,null,null,null,null,null,null,null,null,null,"",""]
[null,null,null,null,null,null,null,null,null,"","",null,null,null,null,null,null,null,null,null,null,null,null,"",""]
[null,null,null,null,null,null,null,null,null,"","",null,null,null,null,null,null,null,null,null,null,null,null,"",""]
[null,null,null,null,null,null,null,null,null,"","",null,null,null,null,null,null,null,null,null,null,null,null,"",""]
[null,null,null,null,null,null,null,null,null,"","",null,null,null,null,null,null,null,null,null,null,null,null,"",""]
[null,null,null,null,null,null,null,null,null,"","",null,null,null,null,null,null,null,null,null,null,null,null,"",""]
[null,null,null,null,null,null,null,null,null,"","",null,null,null,null,null,null,null,null,null,null,null,null,"",""]
[null,null,null,null,null,null,null,null,null,"","",null,null,null,null,null,null,null,null,null,null,null,null,"",""]
[null,null,null,null,null,null,null,null,null,"","",null,null,null,null,null,null,null,null,null,null,null,null,"",""]
[null,null,null,null,null,null,null,null,null,"","",null,null,null,null,null,null,null,null,null,null,null,null,"",""]
[null,null,null,null,null,null,null,null,null,"","",null,null,null,null,null,null,null,null,null,null,null,null,"",""]
[null,null,null,null,null,null,null,null,null,"","",null,null,null,null,null,null,null,null,null,null,null,null,"",""]
[null,null,null,null,null,null,null,null,null,"","",null,null,null,null,null,null,null,null,null,null,null,null,"",""]
[null,null,null,null,null,null,null,null,null,"","",null,null,null,null,null,null,null,null,null,null,null,null,"",""]
[null,null,null,null,null,null,null,null,null,"","",null,null,null,null,null,null,null,null,null,null,null,null,"",""]
[null,null,null,null,null,null,null,null,null,"","",null,null,null,null,null,null,null,null,null,null,null,null,"",""]
[null,null,null,null,null,null,null,null,null,"","",null,null,null,null,null,null,null,null,null,null,null,null,"",""]
[null,null,null,null,null,null,null,null,null,{"$f":"IF(J555=\"\",\"\",IF(J555+1>$K$2,\"\",J555+1))","v":""},{"$f":"IF(K555=\"\",\"\",IF(K555+1>$K$3,\"\",K555+1))","v":""},null,null,null,null,null,null,null,null,null,null,null,null,{"$f":"IF(K556=\"\",\"\",VLOOKUP(K556,جلوس,4))","v":""},""]
[null,null,null,null,null,null,null,null,null,"","",null,null,null,null,null,null,null,null,null,null,null,null,"",""]
[null,null,null,null,null,null,null,null,null,"","",null,null,null,null,null,null,null,null,null,null,null,null,"",""]
[null,null,null,null,null,null,null,null,null,"","",null,null,null,null,null,null,null,null,null,null,null,null,"",""]
[null,null,null,null,null,null,null,null,null,"","",null,null,null,null,null,null,null,null,null,null,null,null,"",""]
[null,null,null,null,null,null,null,null,null,"","",null,null,null,null,null,null,null,null,null,null,null,null,"",""]
[null,null,null,null,null,null,null,null,null,"","",null,null,null,null,null,null,null,null,null,null,null,null,"",""]
[null,null,null,null,null,null,null,null,null,"","",null,null,null,null,null,null,null,null,null,null,null,null,"",""]
[null,null,null,null,null,null,null,null,null,"","",null,null,null,null,null,null,null,null,null,null,null,null,"",""]
[null,null,null,null,null,null,null,null,null,"","",null,null,null,null,null,null,null,null,null,null,null,null,"",""]
[null,null,null,null,null,null,null,null,null,"","",null,null,null,null,null,null,null,null,null,null,null,null,"",""]
[null,null,null,null,null,null,null,null,null,"","",null,null,null,null,null,null,null,null,null,null,null,null,"",""]
[null,null,null,null,null,null,null,null,null,"","",null,null,null,null,null,null,null,null,null,null,null,null,"",""]
[null,null,null,null,null,null,null,null,null,"","",null,null,null,null,null,null,null,null,null,null,null,null,"",""]
[null,null,null,null,null,null,null,null,null,"","",null,null,null,null,null,null,null,null,null,null,null,null,"",""]
[null,null,null,null,null,null,null,null,null,"","",null,null,null,null,null,null,null,null,null,null,null,null,"",""]
[null,null,null,null,null,null,null,null,null,"","",null,null,null,null,null,null,null,null,null,null,null,null,"",""]
[null,null,null,null,null,null,null,null,null,"","",null,null,null,null,null,null,null,null,null,null,null,null,"",""]
[null,null,null,null,null,null,null,null,null,"","",null,null,null,null,null,null,null,null,null,null,null,null,"",""]
[null,null,null,null,null,null,null,null,null,"","",null,null,null,null,null,null,null,null,null,null,null,null,"",""]
[null,null,null,null,null,null,null,null,null,"","",null,null,null,null,null,null,null,null,null,null,null,null,"",""]
[null,null,null,null,null,null,null,null,null,"","",null,null,null,null,null,null,null,null,null,null,null,null,"",""]
[null,null,null,null,null,null,null,null,null,"","",null,null,null,null,null,null,null,null,null,null,null,null,"",""]
[null,null,null,null,null,null,null,null,null,"","",null,null,null,null,null,null,null,null,null,null,null,null,"",""]
[null,null,null,null,null,null,null,null,null,"","",null,null,null,null,null,null,null,null,null,null,null,null,"",""]
[null,null,null,null,null,null,null,null,null,"","",null,null,null,null,null,null,null,null,null,null,null,null,"",""]
[null,null,null,null,null,null,null,null,null,"","",null,null,null,null,null,null,null,null,null,null,null,null,"",{"$f":"IF(X582=X583,\"\",\"نهاية اللجنة\")","v":""}]
[null,null,null,null,null,null,null,null,null,"","",null,null,null,null,null,null,null,null,null,null,null,null,"",""]
[null,null,null,null,null,null,null,null,null,"","",null,null,null,null,null,null,null,null,null,null,null,null,"",""]
[null,null,null,null,null,null,null,null,null,"","",null,null,null,null,null,null,null,null,null,null,null,null,"",""]
[null,null,null,null,null,null,null,null,null,"","",null,null,null,null,null,null,null,null,null,null,null,null,"",""]
[null,null,null,null,null,null,null,null,null,"","",null,null,null,null,null,null,null,null,null,null,null,null,"",""]
[null,null,null,null,null,null,null,null,null,"","",null,null,null,null,null,null,null,null,null,null,null,null,"",""]
[null,null,null,null,null,null,null,null,null,"","",null,null,null,null,null,null,null,null,null,null,null,null,"",""]
[null,null,null,null,null,null,null,null,null,"","",null,null,null,null,null,null,null,null,null,null,null,null,"",""]
[null,null,null,null,null,null,null,null,null,"","",null,null,null,null,null,null,null,null,null,null,null,null,"",""]
[null,null,null,null,null,null,null,null,null,"","",null,null,null,null,null,null,null,null,null,null,null,null,"",""]
[null,null,null,null,null,null,null,null,null,"","",null,null,null,null,null,null,null,null,null,null,null,null,"",""]
[null,null,null,null,null,null,null,null,null,"","",null,null,null,null,null,null,null,null,null,null,null,null,"",""]
[null,null,null,null,null,null,null,null,null,"","",null,null,null,null,null,null,null,null,null,null,null,null,"",""]
[null,null,null,null,null,null,null,null,null,"","",null,null,null,null,null,null,null,null,null,null,null,null,"",""]
[null,null,null,null,null,null,null,null,null,"","",null,null,null,null,null,null,null,null,null,null,null,null,"",""]
[null,null,null,null,null,null,null,null,null,"","",null,null,null,null,null,null,null,null,null,null,null,null,"",""]
[null,null,null,null,null,null,null,null,null,"","",null,null,null,null,null,null,null,null,null,null,null,null,"",""]
[null,null,null,null,null,null,null,null,null,"","",null,null,null,null,null,null,null,null,null,null,null,null,"",""]
[null,null,null,null,null,null,null,null,null,"","",null,null,null,null,null,null,null,null,null,null,null,null,"",""]
[null,null,null,null,null,null,null,null,null,"","",null,null,null,null,null,null,null,null,null,null,null,null,"",""]
[null,null,null,null,null,null,null,null,null,"","",null,null,null,null,null,null,null,null,null,null,null,null,"",""]
[null,null,null,null,null,null,null,null,null,"","",null,null,null,null,null,null,null,null,null,null,null,null,"",""]

{"sheet":"Sheet2","index":1,"n_rows":604,"n_cols":25,"rows_kept":604,"cut":false,"hidden":false,"merged":[[0,3,1,7],[0,13,2,21],[2,3,3,3],[2,4,2,5]]}
[null,null,null,"الصف الرابع الابتدائي",null,null,null,null,null,null,null,null,null,"اكتب فى الخلايا ذات اللون الابيض فقط"]
[null,null,null,null,null,null,null,null,null,"العدد",{"$f":"SUM(G5:G44)","v":215}]
[null,null,null,"م","اكتب اول رقم جلوس",null,{"$f":"SUM(G5:G44)","v":215},{"$f":"COUNT(H5:H44)","v":11},null,"أعلى رقم",{"$f":"MAX(E5:F44)","v":615},null,null,null,null,null,null,null,null,null,null,null,null,{"$f":"COUNT(K5:K297)","v":215},{"$f":"COUNTA(N5:N297)","v":215}]
[null,null,null,null,"من","إلى","عدد اللجنة","اللجنة",null,"م","رقم الجلوس","م","كود"," الاسم","النوع","الديانة","حالة القيد","الفصل","الدمج","الصف","الترم الأول","الترم الثاني","الصورة","اللجنة","نهاية اللجنة"]
[null,"مقيد",{"$f":"COUNTA(N5:N297)","v":215},{"$f":"IF(E5=\"\",\"\",COUNT($E$5:E5))","v":1},401,{"$f":"IF(G5=\"\",\"\",E5+G5-1)","v":420},20,{"$f":"IF(E5=\"\",\"\",COUNT($E$5:E5))","v":1},null,1,{"$f":"$E$5","v":401},1,476196843,"ص1","ذكر","مسلم","ناجح ومنقول","(2 / 4)","لا يوجد","الرابع","نصف العام","آخر العام","م",{"$f":"IF(K5=\"\",\"\",VLOOKUP(K5,جلوس,4))","v":1},{"$f":"IF(X5=X6,\"\",\"نهاية اللجنة\")","v":""}]
[null,"موزع",{"$f":"SUM(G5:G44)","v":215},{"$f":"IF(E6=\"\",\"\",COUNT($E$5:E6))","v":2},{"$f":"IF(G6=\"\",\"\",F5+1)","v":421},{"$f":"IF(G6=\"\",\"\",E6+G6-1)","v":440},20,{"$f":"IF(E6=\"\",\"\",COUNT($E$5:E6))","v":2},null,{"$f":"IF(J5=\"\",\"\",IF(J5+1>$K$2,\"\",J5+1))","v":2},{"$f":"IF(K5=\"\",\"\",IF(K5+1>$K$3,\"\",K5+1))","v":402},2,480678994,"ص2","ذكر","مسلم","ناجح ومنقول","(3 / 4)","لا يوجد","الرابع","نصف العام","آخر العام","م",1,{"$f":"IF(X6=X7,\"\",\"نهاية اللجنة\")","v":""}]
[null,"متبقى",{"$f":"C5-C6","v":0},{"$f":"IF(E7=\"\",\"\",COUNT($E$5:E7))","v":3},{"$f":"IF(G7=\"\",\"\",F6+1)","v":441},460,20,{"$f":"IF(E7=\"\",\"\",COUNT($E$5:E7))","v":3},null,3,{"$f":"IF(K6=\"\",\"\",IF(K6+1>$K$3,\"\",K6+1))","v":403},3,480674486,"ص3","ذكر","مسلم","ناجح ومنقول","(4 / 4)","لا يوجد","الرابع","نصف العام","آخر العام","م",1,""]
[null,null,null,{"$f":"IF(E8=\"\",\"\",COUNT($E$5:E8))","v":4},461,480,20,{"$f":"IF(E8=\"\",\"\",COUNT($E$5:E8))","v":4},null,4,404,4,480676112,"ص4","ذكر","مسلم","ناجح ومنقول","(3 / 4)","لا يوجد","الرابع","نصف العام","آخر العام","م",1,""]
[null,null,"ذكر",{"$f":"IF(E9=\"\",\"\",COUNT($E$5:E9))","v":5},481,500,20,{"$f":"IF(E9=\"\",\"\",COUNT($E$5:E9))","v":5},null,5,405,5,483952849,"ص5","ذكر","مسلم","ناجح ومنقول","(1 / 4)","لا يوجد","الرابع","نصف العام","آخر العام","م",1,""]
[null,null,"انثى",{"$f":"IF(E10=\"\",\"\",COUNT($E$5:E10))","v":6},501,520,20,{"$f":"IF(E10=\"\",\"\",COUNT($E$5:E10))","v":6},null,6,406,6,483475815,"ص6","ذكر","مسلم","ناجح ومنقول","(4 / 4)","لا يوجد","الرابع","نصف العام","آخر العام","م",1,""]
[null,null,null,{"$f":"IF(E11=\"\",\"\",COUNT($E$5:E11))","v":7},521,540,20,{"$f":"IF(E11=\"\",\"\",COUNT($E$5:E11))","v":7},null,7,407,7,481435291,"ص7","ذكر","مسلم","ناجح ومنقول","(3 / 4)","لا يوجد","الرابع","نصف العام","آخر العام","م",1,""]
[null,null,null,{"$f":"IF(E12=\"\",\"\",COUNT($E$5:E12))","v":8},541,560,20,{"$f":"IF(E12=\"\",\"\",COUNT($E$5:E12))","v":8},null,8,408,8,476196703,"ص8","ذكر","مسلم","ناجح ومنقول","(3 / 4)","لا يوجد","الرابع","نصف العام","آخر العام","م",1,""]
[null,null,null,{"$f":"IF(E13=\"\",\"\",COUNT($E$5:E13))","v":9},561,580,20,{"$f":"IF(E13=\"\",\"\",COUNT($E$5:E13))","v":9},null,9,409,9,477875902,"ص9","ذكر","مسلم","ناجح ومنقول","(3 / 4)","لا يوجد","الرابع","نصف العام","آخر العام","م",1,""]
[null,null,null,{"$f":"IF(E14=\"\",\"\",COUNT($E$5:E14))","v":10},581,600,20,{"$f":"IF(E14=\"\",\"\",COUNT($E$5:E14))","v":10},null,10,410,10,497449467,"ص10","ذكر","مسلم","ناجح ومنقول","(3 / 4)","لا يوجد","الرابع","نصف العام","آخر العام","م",1,""]
[null,null,null,{"$f":"IF(E15=\"\",\"\",COUNT($E$5:E15))","v":11},601,615,15,{"$f":"IF(E15=\"\",\"\",COUNT($E$5:E15))","v":11},null,11,411,11,482597667,"ص11","ذكر","مسلم","ناجح ومنقول","(2 / 4)","لا يوجد","الرابع","نصف العام","آخر العام","م",1,""]
[null,null,null,{"$f":"IF(E16=\"\",\"\",COUNT($E$5:E16))","v":""},"","",null,{"$f":"IF(E16=\"\",\"\",COUNT($E$5:E16))","v":""},null,12,412,12,483253353,"ص12","ذكر","مسلم","ناجح ومنقول","(1 / 4)","لا يوجد","الرابع","نصف العام","آخر العام","م",1,""]
[null,null,null,{"$f":"IF(E17=\"\",\"\",COUNT($E$5:E17))","v":""},"","",null,{"$f":"IF(E17=\"\",\"\",COUNT($E$5:E17))","v":""},null,13,413,13,476196877,"ص13","ذكر","مسلم","ناجح ومنقول","(2 / 4)","لا يوجد","الرابع","نصف العام","آخر العام","م",1,""]
[null,null,null,{"$f":"IF(E18=\"\",\"\",COUNT($E$5:E18))","v":""},"","",null,{"$f":"IF(E18=\"\",\"\",COUNT($E$5:E18))","v":""},null,14,414,14,480915540,"ص14","ذكر","مسلم","ناجح ومنقول","(4 / 4)","لا يوجد","الرابع","نصف العام","آخر العام","م",1,""]
[null,null,null,{"$f":"IF(E19=\"\",\"\",COUNT($E$5:E19))","v":""},"","",null,{"$f":"IF(E19=\"\",\"\",COUNT($E$5:E19))","v":""},null,15,415,15,483563953,"ص15","ذكر","مسلم","ناجح ومنقول","(3 / 4)","لا يوجد","الرابع","نصف العام","آخر العام","م",1,""]
[null,null,null,{"$f":"IF(E20=\"\",\"\",COUNT($E$5:E20))","v":""},"","",null,{"$f":"IF(E20=\"\",\"\",COUNT($E$5:E20))","v":""},null,16,416,16,477174890,"ص16","ذكر","مسلم","ناجح ومنقول","(3 / 4)","لا يوجد","الرابع","نصف العام","آخر العام","م",1,""]
[null,null,null,{"$f":"IF(E21=\"\",\"\",COUNT($E$5:E21))","v":""},"","",null,{"$f":"IF(E21=\"\",\"\",COUNT($E$5:E21))","v":""},null,17,417,17,480678477,"ص17","ذكر","مسلم","ناجح ومنقول","(3 / 4)","لا يوجد","الرابع","نصف العام","آخر العام","م",1,""]
[null,null,null,{"$f":"IF(E22=\"\",\"\",COUNT($E$5:E22))","v":""},"","",null,{"$f":"IF(E22=\"\",\"\",COUNT($E$5:E22))","v":""},null,18,418,18,481145452,"ص18","ذكر","مسلم","ناجح ومنقول","(1 / 4)","لا يوجد","الرابع","نصف العام","آخر العام","م",1,""]
[null,null,null,{"$f":"IF(E23=\"\",\"\",COUNT($E$5:E23))","v":""},"","",null,{"$f":"IF(E23=\"\",\"\",COUNT($E$5:E23))","v":""},null,19,419,19,475883203,"ص19","ذكر","مسلم","ناجح ومنقول","(1 / 4)","لا يوجد","الرابع","نصف العام","آخر العام","م",1,""]
[null,null,null,{"$f":"IF(E24=\"\",\"\",COUNT($E$5:E24))","v":""},"","",null,{"$f":"IF(E24=\"\",\"\",COUNT($E$5:E24))","v":""},null,20,420,20,483662193,"ص20","ذكر","مسلم","ناجح ومنقول","(2 / 4)","لا يوجد","الرابع","نصف العام","آخر العام","م",1,"نهاية اللجنة"]
[null,null,null,{"$f":"IF(E25=\"\",\"\",COUNT($E$5:E25))","v":""},"","",null,{"$f":"IF(E25=\"\",\"\",COUNT($E$5:E25))","v":""},null,21,421,21,476270009,"ص21","ذكر","مسلم","ناجح ومنقول","(1 / 4)","لا يوجد","الرابع","نصف العام","آخر العام","م",2,""]
[null,null,null,{"$f":"IF(E26=\"\",\"\",COUNT($E$5:E26))","v":""},"","",null,{"$f":"IF(E26=\"\",\"\",COUNT($E$5:E26))","v":""},null,22,422,22,476269799,"ص22","ذكر","مسلم","ناجح ومنقول","(3 / 4)","لا يوجد","الرابع","نصف العام","آخر العام","م",2,""]
[null,null,null,{"$f":"IF(E27=\"\",\"\",COUNT($E$5:E27))","v":""},"","",null,{"$f":"IF(E27=\"\",\"\",COUNT($E$5:E27))","v":""},null,23,423,23,497449513,"ص23","ذكر","مسلم","ناجح ومنقول","(3 / 4)","لا يوجد","الرابع","نصف العام","آخر العام","م",2,""]
[null,null,null,{"$f":"IF(E28=\"\",\"\",COUNT($E$5:E28))","v":""},"","",null,{"$f":"IF(E28=\"\",\"\",COUNT($E$5:E28))","v":""},null,24,424,24,480674765,"ص24","ذكر","مسلم","ناجح ومنقول","(2 / 4)","لا يوجد","الرابع","نصف العام","آخر العام","م",2,""]
[null,null,null,{"$f":"IF(E29=\"\",\"\",COUNT($E$5:E29))","v":""},"","",null,{"$f":"IF(E29=\"\",\"\",COUNT($E$5:E29))","v":""},null,25,425,25,477725039,"ص25","ذكر","مسلم","ناجح ومنقول","(2 / 4)","لا يوجد","الرابع","نصف العام","آخر العام","م",2,""]
[null,null,null,{"$f":"IF(E30=\"\",\"\",COUNT($E$5:E30))","v":""},"","",null,{"$f":"IF(E30=\"\",\"\",COUNT($E$5:E30))","v":""},null,26,426,26,484246347,"ص26","ذكر","مسلم","ناجح ومنقول","(1 / 4)","لا يوجد","الرابع","نصف العام","آخر العام","م",2,""]
[null,null,null,{"$f":"IF(E31=\"\",\"\",COUNT($E$5:E31))","v":""},"","",null,{"$f":"IF(E31=\"\",\"\",COUNT($E$5:E31))","v":""},null,27,427,27,476196990,"ص27","ذكر","مسلم","ناجح ومنقول","(4 / 4)","لا يوجد","الرابع","نصف العام","آخر العام","م",2,""]
[null,null,null,{"$f":"IF(E32=\"\",\"\",COUNT($E$5:E32))","v":""},"","",null,{"$f":"IF(E32=\"\",\"\",COUNT($E$5:E32))","v":""},null,28,428,28,480677052,"ص28","ذكر","مسلم","ناجح ومنقول","(4 / 4)","لا يوجد","الرابع","نصف العام","آخر العام","م",2,""]
[null,null,null,{"$f":"IF(E33=\"\",\"\",COUNT($E$5:E33))","v":""},"","",null,{"$f":"IF(E33=\"\",\"\",COUNT($E$5:E33))","v":""},null,29,429,29,476196902,"ص29","ذكر","مسلم","ناجح ومنقول","(4 / 4)","لا يوجد","الرابع","نصف العام","آخر العام","م",2,""]
[null,null,null,{"$f":"IF(E34=\"\",\"\",COUNT($E$5:E34))","v":""},"","",null,{"$f":"IF(E34=\"\",\"\",COUNT($E$5:E34))","v":""},null,30,430,30,483455817,"ص30","ذكر","مسلم","ناجح ومنقول","(3 / 4)","لا يوجد","الرابع","نصف العام","آخر العام","م",2,""]
[null,null,null,{"$f":"IF(E35=\"\",\"\",COUNT($E$5:E35))","v":""},"","",null,{"$f":"IF(E35=\"\",\"\",COUNT($E$5:E35))","v":""},null,31,431,31,476270138,"ص31","ذكر","مسلم","ناجح ومنقول","(2 / 4)","لا يوجد","الرابع","نصف العام","آخر العام","م",2,""]
[null,null,null,{"$f":"IF(E36=\"\",\"\",COUNT($E$5:E36))","v":""},"","",null,{"$f":"IF(E36=\"\",\"\",COUNT($E$5:E36))","v":""},null,32,432,32,476271350,"ص32","ذكر","مسلم","ناجح ومنقول","(2 / 4)","لا يوجد","الرابع","نصف العام","آخر العام","م",2,""]
[null,null,null,{"$f":"IF(E37=\"\",\"\",COUNT($E$5:E37))","v":""},"","",null,{"$f":"IF(E37=\"\",\"\",COUNT($E$5:E37))","v":""},null,33,433,33,476197024,"ص33","ذكر","مسلم","ناجح ومنقول","(2 / 4)","لا يوجد","الرابع","نصف العام","آخر العام","م",2,""]
[null,null,null,{"$f":"IF(E38=\"\",\"\",COUNT($E$5:E38))","v":""},"","",null,{"$f":"IF(E38=\"\",\"\",COUNT($E$5:E38))","v":""},null,34,434,34,483852147,"ص34","ذكر","مسلم","ناجح ومنقول","(2 / 4)","لا يوجد","الرابع","نصف العام","آخر العام","م",2,""]
[null,null,null,{"$f":"IF(E39=\"\",\"\",COUNT($E$5:E39))","v":""},"","",null,{"$f":"IF(E39=\"\",\"\",COUNT($E$5:E39))","v":""},null,35,435,35,476373496,"ص35","ذكر","مسلم","ناجح ومنقول","(3 / 4)","لا يوجد","الرابع","نصف العام","آخر العام","م",2,""]
[null,null,null,{"$f":"IF(E40=\"\",\"\",COUNT($E$5:E40))","v":""},"","",null,{"$f":"IF(E40=\"\",\"\",COUNT($E$5:E40))","v":""},null,36,436,36,480324298,"ص36","ذكر","مسلم","راسب وباق للاعادة","(4 / 4)","لا يوجد","الرابع","نصف العام","آخر العام","م",2,""]
[null,null,null,{"$f":"IF(E41=\"\",\"\",COUNT($E$5:E41))","v":""},"","",null,{"$f":"IF(E41=\"\",\"\",COUNT($E$5:E41))","v":""},null,37,437,37,484411729,"ص37","ذكر","مسلم","ناجح ومنقول","(3 / 4)","لا يوجد","الرابع","نصف العام","آخر العام","م",2,""]
[null,null,null,{"$f":"IF(E42=\"\",\"\",COUNT($E$5:E42))","v":""},"","",null,{"$f":"IF(E42=\"\",\"\",COUNT($E$5:E42))","v":""},null,38,438,38,484139183,"ص38","ذكر","مسلم","ناجح ومنقول","(1 / 4)","لا يوجد","الرابع","نصف العام","آخر العام","م",2,""]
[null,null,null,{"$f":"IF(E43=\"\",\"\",COUNT($E$5:E43))","v":""},"","",null,{"$f":"IF(E43=\"\",\"\",COUNT($E$5:E43))","v":""},null,39,439,39,485179388,"ص39","ذكر","مسلم","ناجح ومنقول","(2 / 4)","لا يوجد","الرابع","نصف العام","آخر العام","م",2,""]
[null,null,null,{"$f":"IF(E44=\"\",\"\",COUNT($E$5:E44))","v":""},"","",null,{"$f":"IF(E44=\"\",\"\",COUNT($E$5:E44))","v":""},null,40,440,40,483553460,"ص40","ذكر","مسلم","ناجح ومنقول","(4 / 1)","لا يوجد","الرابع","نصف العام","آخر العام","م",2,"نهاية اللجنة"]
[null,null,null,null,null,null,null,null,null,41,441,41,480912317,"ص41","ذكر","مسلم","ناجح ومنقول","(2 / 4)","لا يوجد","الرابع","نصف العام","آخر العام","م",3,""]
[null,null,null,null,null,null,null,null,null,42,442,42,476197070,"ص42","ذكر","مسلم","ناجح ومنقول","(2 / 4)","لا يوجد","الرابع","نصف العام","آخر العام","م",3,""]
[null,null,null,null,null,null,null,null,null,43,443,43,483912988,"ص43","ذكر","مسلم","ناجح ومنقول","(3 / 4)","لا يوجد","الرابع","نصف العام","آخر العام","م",3,""]
[null,null,null,null,null,null,null,null,null,44,444,44,483260162,"ص44","ذكر","مسلم","ناجح ومنقول","(4 / 4)","لا يوجد","الرابع","نصف العام","آخر العام","م",3,""]
[null,null,null,null,null,null,null,null,null,45,445,45,480282967,"ص45","ذكر","مسلم","راسب وباق للاعادة","(3 / 4)","لا يوجد","الرابع","نصف العام","آخر العام","م",3,""]
[null,null,null,null,null,null,null,null,null,46,446,46,476197336,"ص46","ذكر","مسلم","ناجح ومنقول","(4 / 4)","لا يوجد","الرابع","نصف العام","آخر العام","م",3,""]
[null,null,null,null,null,null,null,null,null,47,447,47,480674640,"ص47","ذكر","مسلم","ناجح ومنقول","(4 / 4)","لا يوجد","الرابع","نصف العام","آخر العام","م",3,""]
[null,null,null,null,null,null,null,null,null,48,448,48,476270678,"ص48","ذكر","مسلم","ناجح ومنقول","(4 / 4)","لا يوجد","الرابع","نصف العام","آخر العام","م",3,""]
[null,null,null,null,null,null,null,null,null,49,449,49,484773144,"ص49","ذكر","مسلم","ناجح ومنقول","(1 / 4)","لا يوجد","الرابع","نصف العام","آخر العام","م",3,""]
[null,null,null,null,null,null,null,null,null,50,450,50,476197407,"ص50","ذكر","مسلم","ناجح ومنقول","(3 / 4)","لا يوجد","الرابع","نصف العام","آخر العام","م",3,""]
[null,null,null,null,null,null,null,null,null,51,451,51,476196778,"ص51","ذكر","مسلم","ناجح ومنقول","(4 / 4)","لا يوجد","الرابع","نصف العام","آخر العام","م",3,""]
[null,null,null,null,null,null,null,null,null,52,452,52,484022063,"ص52","ذكر","مسلم","ناجح ومنقول","(2 / 4)","لا يوجد","الرابع","نصف العام","آخر العام","م",3,""]
[null,null,null,null,null,null,null,null,null,53,453,53,483120562,"ص53","ذكر","مسلم","ناجح ومنقول","(3 / 4)","لا يوجد","الرابع","نصف العام","آخر العام","م",3,""]
[null,null,null,null,null,null,null,null,null,54,454,54,480674185,"ص54","ذكر","مسلم","ناجح ومنقول","(3 / 4)","لا يوجد","الرابع","نصف العام","آخر العام","م",3,""]
[null,null,null,null,null,null,null,null,null,55,455,55,483737891,"ص55","ذكر","مسلم","ناجح ومنقول","(4 / 4)","لا يوجد","الرابع","نصف العام","آخر العام","م",3,""]
[null,null,null,null,null,null,null,null,null,56,456,56,480912423,"ص56","ذكر","مسلم","ناجح ومنقول","(1 / 4)","لا يوجد","الرابع","نصف العام","آخر العام","م",3,""]
[null,null,null,null,null,null,null,null,null,57,457,57,476196601,"ص57","ذكر","مسلم","ناجح ومنقول","(1 / 4)","لا يوجد","الرابع","نصف العام","آخر العام","م",3,""]
[null,null,null,null,null,null,null,null,null,58,458,58,476202950,"ص58","ذكر","مسلم","ناجح ومنقول","(2 / 4)","لا يوجد","الرابع","نصف العام","آخر العام","م",3,""]
[null,null,null,null,null,null,null,null,null,59,459,59,481985599,"ص59","ذكر","مسلم","ناجح ومنقول","(4 / 4)","لا يوجد","الرابع","نصف العام","آخر العام","م",3,""]
[null,null,null,null,null,null,null,null,null,60,460,60,480674346,"ص60","ذكر","مسلم","ناجح ومنقول","(1 / 4)","لا يوجد","الرابع","نصف العام","آخر العام","م",3,"نهاية اللجنة"]
[null,null,null,null,null,null,null,null,null,61,461,61,484244195,"ص61","ذكر","مسلم","ناجح ومنقول","(1 / 4)","لا يوجد","الرابع","نصف العام","آخر العام","م",4,""]
[null,null,null,null,null,null,null,null,null,62,462,62,484067305,"ص62","ذكر","مسلم","ناجح ومنقول","(3 / 4)","لا يوجد","الرابع","نصف العام","آخر العام","م",4,""]
[null,null,null,null,null,null,null,null,null,63,463,63,480679255,"ص63","ذكر","مسلم","ناجح ومنقول","(1 / 4)","لا يوجد","الرابع","نصف العام","آخر العام","م",4,""]
[null,null,null,null,null,null,null,null,null,64,464,64,485146013,"ص64","ذكر","مسلم","ناجح ومنقول","(4 / 4)","لا يوجد","الرابع","نصف العام","آخر العام","م",4,""]
[null,null,null,null,null,null,null,null,null,65,465,65,476271126,"ص65","ذكر","مسلم","ناجح ومنقول","(1 / 4)","لا يوجد","الرابع","نصف العام","آخر العام","م",{"$f":"IF(K69=\"\",\"\",VLOOKUP(K69,جلوس,4))","v":4},""]
[null,null,null,null,null,null,null,null,null,{"$f":"IF(J69=\"\",\"\",IF(J69+1>$K$2,\"\",J69+1))","v":66},466,66,476196812,"ص66","ذكر","مسلم","ناجح ومنقول","(4 / 4)","لا يوجد","الرابع","نصف العام","آخر العام","م",4,{"$f":"IF(X70=X71,\"\",\"نهاية اللجنة\")","v":""}]
[null,null,null,null,null,null,null,null,null,67,{"$f":"IF(K70=\"\",\"\",IF(K70+1>$K$3,\"\",K70+1))","v":467},67,483649373,"ص67","ذكر","مسلم","ناجح ومنقول","(1 / 4)","لا يوجد","الرابع","نصف العام","آخر العام","م",4,""]
[null,null,null,null,null,null,null,null,null,68,468,68,485383821,"ص68","ذكر","مسلم","ناجح ومنقول","(3 / 4)","لا يوجد","الرابع","نصف العام","آخر العام","م",4,""]
[null,null,null,null,null,null,null,null,null,69,469,69,480911004,"ص69","ذكر","مسلم","ناجح ومنقول","(3 / 4)","لا يوجد","الرابع","نصف العام","آخر العام","م",4,""]
[null,null,null,null,null,null,null,null,null,70,470,70,480909587,"ص70","ذكر","مسلم","ناجح ومنقول","(1 / 4)","لا يوجد","الرابع","نصف العام","آخر العام","م",4,""]
[null,null,null,null,null,null,null,null,null,71,471,71,483251051,"ص71","ذكر","مسلم","ناجح ومنقول","(4 / 4)","لا يوجد","الرابع","نصف العام","آخر العام","م",4,""]
[null,null,null,null,null,null,null,null,null,72,472,72,476271545,"ص72","ذكر","مسلم","ناجح ومنقول","(2 / 4)","لا يوجد","الرابع","نصف العام","آخر العام","م",4,""]
[null,null,null,null,null,null,null,null,null,73,473,73,480915513,"ص73","ذكر","مسلم","ناجح ومنقول","(1 / 4)","لا يوجد","الرابع","نصف العام","آخر العام","م",4,""]
[null,null,null,null,null,null,null,null,null,74,474,74,480911125,"ص74","ذكر","مسلم","ناجح ومنقول","(2 / 4)","لا يوجد","الرابع","نصف العام","آخر العام","م",4,""]
[null,null,null,null,null,null,null,null,null,75,475,75,480724085,"ص75","ذكر","مسلم","ناجح ومنقول","(2 / 4)","لا يوجد","الرابع","نصف العام","آخر العام","م",4,""]
[null,null,null,null,null,null,null,null,null,76,476,76,484234007,"ص76","ذكر","مسلم","ناجح ومنقول","(4 / 4)","لا يوجد","الرابع","نصف العام","آخر العام","م",4,""]
[null,null,null,null,null,null,null,null,null,77,477,77,480911599,"ص77","ذكر","مسلم","ناجح ومنقول","(3 / 4)","لا يوجد","الرابع","نصف العام","آخر العام","م",4,""]
[null,null,null,null,null,null,null,null,null,78,478,78,481434793,"ص78","ذكر","مسلم","ناجح ومنقول","(3 / 4)","لا يوجد","الرابع","نصف العام","آخر العام","م",4,""]
[null,null,null,null,null,null,null,null,null,79,479,79,476196940,"ص79","ذكر","مسلم","ناجح ومنقول","(3 / 4)","لا يوجد","الرابع","نصف العام","آخر العام","م",4,""]
[null,null,null,null,null,null,null,null,null,80,480,80,483831546,"ص80","ذكر","مسلم","ناجح ومنقول","(3 / 4)","لا يوجد","الرابع","نصف العام","آخر العام","م",4,"نهاية اللجنة"]
[null,null,null,null,null,null,null,null,null,81,481,81,476269631,"ص81","ذكر","مسلم","ناجح ومنقول","(2 / 4)","لا يوجد","الرابع","نصف العام","آخر العام","م",5,""]
[null,null,null,null,null,null,null,null,null,82,482,82,484280661,"ص82","ذكر","مسلم","ناجح ومنقول","(3 / 4)","لا يوجد","الرابع","نصف العام","آخر العام","م",5,""]
[null,null,null,null,null,null,null,null,null,83,483,83,480915554,"ص83","ذكر","مسلم","ناجح ومنقول","(4 / 4)","لا يوجد","الرابع","نصف العام","آخر العام","م",5,""]
[null,null,null,null,null,null,null,null,null,84,484,84,475889330,"ص84","ذكر","مسلم","ناجح ومنقول","(2 / 4)","لا يوجد","الرابع","نصف العام","آخر العام","م",5,""]
[null,null,null,null,null,null,null,null,null,85,485,85,480325582,"ص85","ذكر","مسلم","راسب وباق للاعادة","(2 / 4)","لا يوجد","الرابع","نصف العام","آخر العام","م",5,""]
[null,null,null,null,null,null,null,null,null,86,486,86,476270911,"ص86","ذكر","مسلم","ناجح ومنقول","(1 / 4)","لا يوجد","الرابع","نصف العام","آخر العام","م",5,""]
[null,null,null,null,null,null,null,null,null,87,487,87,476268628,"ص87","ذكر","مسلم","ناجح ومنقول","(2 / 4)","لا يوجد","الرابع","نصف العام","آخر العام","م",5,""]
[null,null,null,null,null,null,null,null,null,88,488,88,480678848,"ص88","ذكر","مسلم","ناجح ومنقول","(3 / 4)","لا يوجد","الرابع","نصف العام","آخر العام","م",5,""]
[null,null,null,null,null,null,null,null,null,89,489,89,480677425,"ص89","ذكر","مسلم","ناجح ومنقول","(1 / 4)","لا يوجد","الرابع","نصف العام","آخر العام","م",5,""]
[null,null,null,null,null,null,null,null,null,90,490,90,480912567,"ص90","ذكر","مسلم","ناجح ومنقول","(4 / 4)","لا يوجد","الرابع","نصف العام","آخر العام","م",5,""]
[null,null,null,null,null,null,null,null,null,91,491,91,476271498,"ص91","ذكر","مسلم","ناجح ومنقول","(4 / 4)","لا يوجد","الرابع","نصف العام","آخر العام","م",5,""]
[null,null,null,null,null,null,null,null,null,92,492,92,480675900,"ص92","ذكر","مسلم","ناجح ومنقول","(4 / 4)","لا يوجد","الرابع","نصف العام","آخر العام","م",5,""]
[null,null,null,null,null,null,null,null,null,93,493,93,476268429,"ص93","ذكر","مسلم","ناجح ومنقول","(4 / 4)","لا يوجد","الرابع","نصف العام","آخر العام","م",5,""]
[null,null,null,null,null,null,null,null,null,94,494,94,476197454,"ص94","ذكر","مسلم","ناجح ومنقول","(2 / 4)","لا يوجد","الرابع","نصف العام","آخر العام","م",5,""]
[null,null,null,null,null,null,null,null,null,95,495,95,484134866,"ص95","ذكر","مسلم","ناجح ومنقول","(3 / 4)","لا يوجد","الرابع","نصف العام","آخر العام","م",5,""]
[null,null,null,null,null,null,null,null,null,96,496,96,476271263,"ص96","ذكر","مسلم","ناجح ومنقول","(1 / 4)","لا يوجد","الرابع","نصف العام","آخر العام","م",5,""]
[null,null,null,null,null,null,null,null,null,97,497,97,480110758,"ص97","ذكر","مسلم","ناجح ومنقول","(3 / 4)","لا يوجد","الرابع","نصف العام","آخر العام","م",5,""]
[null,null,null,null,null,null,null,null,null,98,498,98,484372722,"ص98","ذكر","مسلم","ناجح ومنقول","(2 / 4)","لا يوجد","الرابع","نصف العام","آخر العام","م",5,""]
[null,null,null,null,null,null,null,null,null,99,499,99,480677286,"ص99","ذكر","مسلم","ناجح ومنقول","(3 / 4)","لا يوجد","الرابع","نصف العام","آخر العام","م",5,""]
[null,null,null,null,null,null,null,null,null,100,500,100,480958251,"ص100","ذكر","مسلم","ناجح ومنقول","(1 / 4)","لا يوجد","الرابع","نصف العام","آخر العام","م",5,"نهاية اللجنة"]
[null,null,null,null,null,null,null,null,null,101,501,101,476270419,"ص101","ذكر","مسلم","ناجح ومنقول","(2 / 4)","لا يوجد","الرابع","نصف العام","آخر العام","م",6,""]
[null,null,null,null,null,null,null,null,null,102,502,102,484178347,"ص102","ذكر","مسلم","ناجح ومنقول","(3 / 4)","لا يوجد","الرابع","نصف العام","آخر العام","م",6,""]
[null,null,null,null,null,null,null,null,null,103,503,103,476274126,"ص103","أنثى","مسلمة","ناجح ومنقول","(3 / 4)","لا يوجد","الرابع","نصف العام","آخر العام","م",6,""]
[null,null,null,null,null,null,null,null,null,104,504,104,476271614,"ص104","أنثى","مسلمة","ناجح ومنقول","(4 / 4)","لا يوجد","الرابع","نصف العام","آخر العام","م",6,""]
[null,null,null,null,null,null,null,null,null,105,505,105,483897680,"ص105","أنثى","مسلمة","ناجح ومنقول","(2 / 4)","لا يوجد","الرابع","نصف العام","آخر العام","م",6,""]
[null,null,null,null,null,null,null,null,null,106,506,106,476273370,"ص106","أنثى","مسلمة","ناجح ومنقول","(2 / 4)","لا يوجد","الرابع","نصف العام","آخر العام","م",6,""]
[null,null,null,null,null,null,null,null,null,107,507,107,482578596,"ص107","أنثى","مسلمة","ناجح ومنقول","(4 / 4)","لا يوجد","الرابع","نصف العام","آخر العام","م",6,""]
[null,null,null,null,null,null,null,null,null,108,508,108,484296612,"ص108","أنثى","مسلمة","ناجح ومنقول","(2 / 4)","لا يوجد","الرابع","نصف العام","آخر العام","م",6,""]
[null,null,null,null,null,null,null,null,null,109,509,109,477875879,"ص109","أنثى","مسلمة","ناجح ومنقول","(3 / 4)","لا يوجد","الرابع","نصف العام","آخر العام","م",6,""]
[null,null,null,null,null,null,null,null,null,110,510,110,483120532,"ص110","أنثى","مسلمة","ناجح ومنقول","(4 / 4)","لا يوجد","الرابع","نصف العام","آخر العام","م",6,""]
[null,null,null,null,null,null,null,null,null,111,511,111,480112593,"ص111","أنثى","مسلمة","ناجح ومنقول","(2 / 4)","لا يوجد","الرابع","نصف العام","آخر العام","م",6,""]
[null,null,null,null,null,null,null,null,null,112,512,112,478059900,"ص112","أنثى","مسلمة","ناجح ومنقول","(4 / 4)","لا يوجد","الرابع","نصف العام","آخر العام","م",6,""]
[null,null,null,null,null,null,null,null,null,113,513,113,484395240,"ص113","أنثى","مسلمة","ناجح ومنقول","(1 / 4)","لا يوجد","الرابع","نصف العام","آخر العام","م",6,""]
[null,null,null,null,null,null,null,null,null,114,514,114,480876119,"ص114","أنثى","مسلمة","ناجح ومنقول","(4 / 4)","لا يوجد","الرابع","نصف العام","آخر العام","م",6,""]
[null,null,null,null,null,null,null,null,null,115,515,115,475889927,"ص115","أنثى","مسلمة","ناجح ومنقول","(4 / 4)","لا يوجد","الرابع","نصف العام","آخر العام","م",6,""]
[null,null,null,null,null,null,null,null,null,116,516,116,483836785,"ص116","أنثى","مسلمة","ناجح ومنقول","(4 / 4)","لا يوجد","الرابع","نصف العام","آخر العام","م",6,""]
[null,null,null,null,null,null,null,null,null,117,517,117,476273591,"ص117","أنثى","مسلمة","ناجح ومنقول","(2 / 4)","لا يوجد","الرابع","نصف العام","آخر العام","م",6,""]
[null,null,null,null,null,null,null,null,null,118,518,118,485195908,"ص118","أنثى","مسلمة","ناجح ومنقول","(4 / 4)","لا يوجد","الرابع","نصف العام","آخر العام","م",6,""]
[null,null,null,null,null,null,null,null,null,119,519,119,480871985,"ص119","أنثى","مسلمة","ناجح ومنقول","(3 / 4)","لا يوجد","الرابع","نصف العام","آخر العام","م",6,""]
[null,null,null,null,null,null,null,null,null,120,520,120,482023747,"ص120","أنثى","مسلمة","ناجح ومنقول","(2 / 4)","لا يوجد","الرابع","نصف العام","آخر العام","م",6,"نهاية اللجنة"]
[null,null,null,null,null,null,null,null,null,121,521,121,483767121,"ص121","أنثى","مسلمة","ناجح ومنقول","(3 / 4)","لا يوجد","الرابع","نصف العام","آخر العام","م",7,""]
[null,null,null,null,null,null,null,null,null,122,522,122,485040573,"ص122","أنثى","مسلمة","ناجح ومنقول","(3 / 4)","لا يوجد","الرابع","نصف العام","آخر العام","م",7,""]
[null,null,null,null,null,null,null,null,null,123,523,123,476195480,"ص123","أنثى","مسلمة","ناجح ومنقول","(3 / 4)","لا يوجد","الرابع","نصف العام","آخر العام","م",7,""]
[null,null,null,null,null,null,null,null,null,124,524,124,484124932,"ص124","أنثى","مسلمة","ناجح ومنقول","(1 / 4)","لا يوجد","الرابع","نصف العام","آخر العام","م",7,""]
[null,null,null,null,null,null,null,null,null,125,525,125,483363731,"ص125","أنثى","مسلمة","ناجح ومنقول","(4 / 4)","لا يوجد","الرابع","نصف العام","آخر العام","م",7,""]
[null,null,null,null,null,null,null,null,null,126,526,126,480680205,"ص126","أنثى","مسلمة","ناجح ومنقول","(3 / 4)","لا يوجد","الرابع","نصف العام","آخر العام","م",7,""]
[null,null,null,null,null,null,null,null,null,127,527,127,480277128,"ص127","أنثى","مسلمة","راسب وباق للاعادة","(3 / 4)","لا يوجد","الرابع","نصف العام","آخر العام","م",7,""]
[null,null,null,null,null,null,null,null,null,128,528,128,477822340,"ص128","أنثى","مسلمة","ناجح ومنقول","(1 / 4)","لا يوجد","الرابع","نصف العام","آخر العام","م",7,""]
[null,null,null,null,null,null,null,null,null,129,529,129,476196536,"ص129","أنثى","مسلمة","ناجح ومنقول","(2 / 4)","لا يوجد","الرابع","نصف العام","آخر العام","م",{"$f":"IF(K133=\"\",\"\",VLOOKUP(K133,جلوس,4))","v":7},""]
[null,null,null,null,null,null,null,null,null,{"$f":"IF(J133=\"\",\"\",IF(J133+1>$K$2,\"\",J133+1))","v":130},530,130,483381172,"ص130","أنثى","مسلمة","ناجح ومنقول","(2 / 4)","لا يوجد","الرابع","نصف العام","آخر العام","م",7,{"$f":"IF(X134=X135,\"\",\"نهاية اللجنة\")","v":""}]
[null,null,null,null,null,null,null,null,null,131,{"$f":"IF(K134=\"\",\"\",IF(K134+1>$K$3,\"\",K134+1))","v":531},131,476196029,"ص131","أنثى","مسلمة","ناجح ومنقول","(1 / 4)","لا يوجد","الرابع","نصف العام","آخر العام","م",7,""]
[null,null,null,null,null,null,null,null,null,132,532,132,483432251,"ص132","أنثى","مسلمة","ناجح ومنقول","(4 / 4)","لا يوجد","الرابع","نصف العام","آخر العام","م",7,""]
[null,null,null,null,null,null,null,null,null,133,533,133,476273965,"ص133","أنثى","مسلمة","ناجح ومنقول","(3 / 4)","لا يوجد","الرابع","نصف العام","آخر العام","م",7,""]
[null,null,null,null,null,null,null,null,null,134,534,134,476196178,"ص134","أنثى","مسلمة","ناجح ومنقول","(4 / 4)","لا يوجد","الرابع","نصف العام","آخر العام","م",7,""]
[null,null,null,null,null,null,null,null,null,135,535,135,476274108,"ص135","أنثى","مسلمة","ناجح ومنقول","(1 / 4)","لا يوجد","الرابع","نصف العام","آخر العام","م",7,""]
[null,null,null,null,null,null,null,null,null,136,536,136,483563552,"ص136","أنثى","مسلمة","ناجح ومنقول","(2 / 4)","لا يوجد","الرابع","نصف العام","آخر العام","م",7,""]
[null,null,null,null,null,null,null,null,null,137,537,137,480620446,"ص137","أنثى","مسلمة","ناجح ومنقول","(4 / 4)","لا يوجد","الرابع","نصف العام","آخر العام","م",7,""]
[null,null,null,null,null,null,null,null,null,138,538,138,483238667,"ص138","أنثى","مسلمة","ناجح ومنقول","(4 / 4)","لا يوجد","الرابع","نصف العام","آخر العام","م",7,""]
[null,null,null,null,null,null,null,null,null,139,539,139,484124848,"ص139","أنثى","مسلمة","ناجح ومنقول","(1 / 4)","لا يوجد","الرابع","نصف العام","آخر العام","م",7,""]
[null,null,null,null,null,null,null,null,null,140,540,140,482100535,"ص140","أنثى","مسلمة","ناجح ومنقول","(2 / 4)","لا يوجد","الرابع","نصف العام","آخر العام","م",7,"نهاية اللجنة"]
[null,null,null,null,null,null,null,null,null,141,541,141,483947975,"ص141","أنثى","مسلمة","ناجح ومنقول","(2 / 4)","لا يوجد","الرابع","نصف العام","آخر العام","م",8,""]
[null,null,null,null,null,null,null,null,null,142,542,142,480872550,"ص142","أنثى","مسلمة","ناجح ومنقول","(4 / 4)","لا يوجد","الرابع","نصف العام","آخر العام","م",8,""]
[null,null,null,null,null,null,null,null,null,143,543,143,483902336,"ص143","أنثى","مسلمة","ناجح ومنقول","(1 / 4)","لا يوجد","الرابع","نصف العام","آخر العام","م",8,""]
[null,null,null,null,null,null,null,null,null,144,544,144,484206115,"ص144","أنثى","مسلمة","ناجح ومنقول","(3 / 4)","لا يوجد","الرابع","نصف العام","آخر العام","م",8,""]
[null,null,null,null,null,null,null,null,null,145,545,145,480875945,"ص145","أنثى","مسلمة","ناجح ومنقول","(3 / 4)","لا يوجد","الرابع","نصف العام","آخر العام","م",8,""]
[null,null,null,null,null,null,null,null,null,146,546,146,476195336,"ص146","أنثى","مسلمة","ناجح ومنقول","(4 / 4)","لا يوجد","الرابع","نصف العام","آخر العام","م",8,""]
[null,null,null,null,null,null,null,null,null,147,547,147,484545071,"ص147","أنثى","مسلمة","ناجح ومنقول","(1 / 4)","لا يوجد","الرابع","نصف العام","آخر العام","م",8,""]
[null,null,null,null,null,null,null,null,null,148,548,148,483185200,"ص148","أنثى","مسلمة","ناجح ومنقول","(1 / 4)","لا يوجد","الرابع","نصف العام","آخر العام","م",8,""]
[null,null,null,null,null,null,null,null,null,149,549,149,480872800,"ص149","أنثى","مسلمة","ناجح ومنقول","(4 / 4)","لا يوجد","الرابع","نصف العام","آخر العام","م",8,""]
[null,null,null,null,null,null,null,null,null,150,550,150,482006307,"ص150","أنثى","مسلمة","ناجح ومنقول","(2 / 4)","لا يوجد","الرابع","نصف العام","آخر العام","م",8,""]
[null,null,null,null,null,null,null,null,null,151,551,151,480876187,"ص151","أنثى","مسلمة","ناجح ومنقول","(4 / 4)","لا يوجد","الرابع","نصف العام","آخر العام","م",8,""]
[null,null,null,null,null,null,null,null,null,152,552,152,484527811,"ص152","أنثى","مسلمة","ناجح ومنقول","(1 / 4)","لا يوجد","الرابع","نصف العام","آخر العام","م",8,""]
[null,null,null,null,null,null,null,null,null,153,553,153,484244044,"ص153","أنثى","مسلمة","ناجح ومنقول","(3 / 4)","لا يوجد","الرابع","نصف العام","آخر العام","م",8,""]
[null,null,null,null,null,null,null,null,null,154,554,154,480873923,"ص154","أنثى","مسلمة","ناجح ومنقول","(1 / 4)","لا يوجد","الرابع","نصف العام","آخر العام","م",8,""]
[null,null,null,null,null,null,null,null,null,155,555,155,485040840,"ص155","أنثى","مسلمة","ناجح ومنقول","(4 / 4)","لا يوجد","الرابع","نصف العام","آخر العام","م",8,""]
[null,null,null,null,null,null,null,null,null,156,556,156,480875834,"ص156","أنثى","مسلمة","ناجح ومنقول","(4 / 4)","لا يوجد","الرابع","نصف العام","آخر العام","م",8,""]
[null,null,null,null,null,null,null,null,null,157,557,157,485040780,"ص157","أنثى","مسلمة","ناجح ومنقول","(2 / 4)","لا يوجد","الرابع","نصف العام","آخر العام","م",8,""]
[null,null,null,null,null,null,null,null,null,158,558,158,483833160,"ص158","أنثى","مسلمة","ناجح ومنقول","(2 / 4)","لا يوجد","الرابع","نصف العام","آخر العام","م",8,""]
[null,null,null,null,null,null,null,null,null,159,559,159,484066609,"ص159","أنثى","مسلمة","ناجح ومنقول","(3 / 4)","لا يوجد","الرابع","نصف العام","آخر العام","م",8,""]
[null,null,null,null,null,null,null,null,null,160,560,160,480682237,"ص160","أنثى","مسلمة","ناجح ومنقول","(1 / 4)","لا يوجد","الرابع","نصف العام","آخر العام","م",8,"نهاية اللجنة"]
[null,null,null,null,null,null,null,null,null,161,561,161,476196356,"ص161","أنثى","مسلمة","ناجح ومنقول","(4 / 4)","لا يوجد","الرابع","نصف العام","آخر العام","م",9,""]
[null,null,null,null,null,null,null,null,null,162,562,162,484403422,"ص162","أنثى","مسلمة","ناجح ومنقول","(1 / 4)","لا يوجد","الرابع","نصف العام","آخر العام","م",9,""]
[null,null,null,null,null,null,null,null,null,163,563,163,479868281,"ص163","أنثى","مسلمة","راسب وباق للاعادة","(2 / 4)","لا يوجد","الرابع","نصف العام","آخر العام","م",9,""]
[null,null,null,null,null,null,null,null,null,164,564,164,484469957,"ص164","أنثى","مسلمة","ناجح ومنقول","(2 / 4)","لا يوجد","الرابع","نصف العام","آخر العام","م",9,""]
[null,null,null,null,null,null,null,null,null,165,565,165,476273861,"ص165","أنثى","مسلمة","ناجح ومنقول","(3 / 4)","لا يوجد","الرابع","نصف العام","آخر العام","م",9,""]
[null,null,null,null,null,null,null,null,null,166,566,166,480875907,"ص166","أنثى","مسلمة","ناجح ومنقول","(1 / 4)","لا يوجد","الرابع","نصف العام","آخر العام","م",9,""]
[null,null,null,null,null,null,null,null,null,167,567,167,480681869,"ص167","أنثى","مسلمة","ناجح ومنقول","(4 / 4)","لا يوجد","الرابع","نصف العام","آخر العام","م",9,""]
[null,null,null,null,null,null,null,null,null,168,568,168,484175287,"ص168","أنثى","مسلمة","ناجح ومنقول","(3 / 4)","لا يوجد","الرابع","نصف العام","آخر العام","م",9,""]
[null,null,null,null,null,null,null,null,null,169,569,169,478000608,"ص169","أنثى","مسلمة","ناجح ومنقول","(1 / 4)","لا يوجد","الرابع","نصف العام","آخر العام","م",9,""]
[null,null,null,null,null,null,null,null,null,170,570,170,484403521,"ص170","أنثى","مسلمة","ناجح ومنقول","(4 / 4)","لا يوجد","الرابع","نصف العام","آخر العام","م",9,""]
[null,null,null,null,null,null,null,null,null,171,571,171,480682111,"ص171","أنثى","مسلمة","ناجح ومنقول","(2 / 4)","لا يوجد","الرابع","نصف العام","آخر العام","م",9,""]
[null,null,null,null,null,null,null,null,null,172,572,172,480875139,"ص172","أنثى","مسلمة","ناجح ومنقول","(2 / 4)","لا يوجد","الرابع","نصف العام","آخر العام","م",9,""]
[null,null,null,null,null,null,null,null,null,173,573,173,476652797,"ص173","أنثى","مسلمة","ناجح ومنقول","(4 / 4)","لا يوجد","الرابع","نصف العام","آخر العام","م",9,""]
[null,null,null,null,null,null,null,null,null,174,574,174,476195532,"ص174","أنثى","مسلمة","ناجح ومنقول","(3 / 4)","لا يوجد","الرابع","نصف العام","آخر العام","م",9,""]
[null,null,null,null,null,null,null,null,null,175,575,175,478059922,"ص175","أنثى","مسلمة","ناجح ومنقول","(1 / 4)","لا يوجد","الرابع","نصف العام","آخر العام","م",9,""]
[null,null,null,null,null,null,null,null,null,176,576,176,480620325,"ص176","أنثى","مسلمة","ناجح ومنقول","(1 / 4)","لا يوجد","الرابع","نصف العام","آخر العام","م",9,""]
[null,null,null,null,null,null,null,null,null,177,577,177,480775592,"ص177","أنثى","مسلمة","ناجح ومنقول","(1 / 4)","لا يوجد","الرابع","نصف العام","آخر العام","م",9,""]
[null,null,null,null,null,null,null,null,null,178,578,178,480620175,"ص178","أنثى","مسلمة","ناجح ومنقول","(2 / 4)","لا يوجد","الرابع","نصف العام","آخر العام","م",9,""]
[null,null,null,null,null,null,null,null,null,179,579,179,476273318,"ص179","أنثى","مسلمة","ناجح ومنقول","(3 / 4)","لا يوجد","الرابع","نصف العام","آخر العام","م",9,""]
[null,null,null,null,null,null,null,null,null,180,580,180,476195598,"ص180","أنثى","مسيحية","ناجح ومنقول","(4 / 4)","لا يوجد","الرابع","نصف العام","آخر العام","م",9,"نهاية اللجنة"]
[null,null,null,null,null,null,null,null,null,181,581,181,481141237,"ص181","أنثى","مسلمة","ناجح ومنقول","(1 / 4)","لا يوجد","الرابع","نصف العام","آخر العام","م",10,""]
[null,null,null,null,null,null,null,null,null,182,582,182,480819057,"ص182","أنثى","مسلمة","ناجح ومنقول","(3 / 4)","لا يوجد","الرابع","نصف العام","آخر العام","م",10,""]
[null,null,null,null,null,null,null,null,null,183,583,183,484534794,"ص183","أنثى","مسلمة","ناجح ومنقول","(3 / 4)","لا يوجد","الرابع","نصف العام","آخر العام","م",10,""]
[null,null,null,null,null,null,null,null,null,184,584,184,480873471,"ص184","أنثى","مسيحية","ناجح ومنقول","(4 / 4)","لا يوجد","الرابع","نصف العام","آخر العام","م",10,""]
[null,null,null,null,null,null,null,null,null,185,585,185,483350996,"ص185","أنثى","مسلمة","ناجح ومنقول","(2 / 4)","لا يوجد","الرابع","نصف العام","آخر العام","م",10,""]
[null,null,null,null,null,null,null,null,null,186,586,186,484284689,"ص186","أنثى","مسلمة","ناجح ومنقول","(1 / 4)","لا يوجد","الرابع","نصف العام","آخر العام","م",10,""]
[null,null,null,null,null,null,null,null,null,187,587,187,484527659,"ص187","أنثى","مسلمة","ناجح ومنقول","(2 / 4)","لا يوجد","الرابع","نصف العام","آخر العام","م",10,""]
[null,null,null,null,null,null,null,null,null,188,588,188,484969912,"ص188","أنثى","مسلمة","ناجح ومنقول","(2 / 4)","لا يوجد","الرابع","نصف العام","آخر العام","م",10,""]
[null,null,null,null,null,null,null,null,null,189,589,189,490020100,"ص189","أنثى","مسلمة","ناجح ومنقول","(2 / 4)","لا يوجد","الرابع","نصف العام","آخر العام","م",10,""]
[null,null,null,null,null,null,null,null,null,190,590,190,476195662,"ص190","أنثى","مسلمة","ناجح ومنقول","(4 / 4)","لا يوجد","الرابع","نصف العام","آخر العام","م",10,""]
[null,null,null,null,null,null,null,null,null,191,591,191,483657552,"ص191","أنثى","مسلمة","ناجح ومنقول","(4 / 4)","لا يوجد","الرابع","نصف العام","آخر العام","م",10,""]
[null,null,null,null,null,null,null,null,null,192,592,192,480875026,"ص192","أنثى","مسلمة","ناجح ومنقول","(1 / 4)","لا يوجد","الرابع","نصف العام","آخر العام","م",10,""]
[null,null,null,null,null,null,null,null,null,193,593,193,476274142,"ص193","أنثى","مسلمة","ناجح ومنقول","(4 / 4)","لا يوجد","الرابع","نصف العام","آخر العام","م",{"$f":"IF(K197=\"\",\"\",VLOOKUP(K197,جلوس,4))","v":10},""]
[null,null,null,null,null,null,null,null,null,{"$f":"IF(J197=\"\",\"\",IF(J197+1>$K$2,\"\",J197+1))","v":194},594,194,483356343,"ص194","أنثى","مسلمة","ناجح ومنقول","(2 / 4)","لا يوجد","الرابع","نصف العام","آخر العام","م",10,{"$f":"IF(X198=X199,\"\",\"نهاية اللجنة\")","v":""}]
[null,null,null,null,null,null,null,null,null,195,{"$f":"IF(K198=\"\",\"\",IF(K198+1>$K$3,\"\",K198+1))","v":595},195,476195234,"ص195","أنثى","مسلمة","ناجح ومنقول","(1 / 4)","لا يوجد","الرابع","نصف العام","آخر العام","م",10,""]
[null,null,null,null,null,null,null,null,null,196,596,196,483921631,"ص196","أنثى","مسلمة","ناجح ومنقول","(4 / 4)","لا يوجد","الرابع","نصف العام","آخر العام","م",10,""]
[null,null,null,null,null,null,null,null,null,197,597,197,476273755,"ص197","أنثى","مسلمة","ناجح ومنقول","(3 / 4)","لا يوجد","الرابع","نصف العام","آخر العام","م",10,""]
[null,null,null,null,null,null,null,null,null,198,598,198,483482395,"ص198","أنثى","مسلمة","ناجح ومنقول","(2 / 4)","لا يوجد","الرابع","نصف العام","آخر العام","م",10,""]
[null,null,null,null,null,null,null,null,null,199,599,199,476274174,"ص199","أنثى","مسلمة","ناجح ومنقول","(3 / 4)","لا يوجد","الرابع","نصف العام","آخر العام","م",10,""]
[null,null,null,null,null,null,null,null,null,200,600,200,476195973,"ص200","أنثى","مسلمة","ناجح ومنقول","(4 / 4)","لا يوجد","الرابع","نصف العام","آخر العام","م",10,"نهاية اللجنة"]
[null,null,null,null,null,null,null,null,null,201,601,201,484019550,"ص201","أنثى","مسلمة","ناجح ومنقول","(3 / 4)","لا يوجد","الرابع","نصف العام","آخر العام","م",11,""]
[null,null,null,null,null,null,null,null,null,202,602,202,476196403,"ص202","أنثى","مسلمة","ناجح ومنقول","(3 / 4)","لا يوجد","الرابع","نصف العام","آخر العام","م",11,""]
[null,null,null,null,null,null,null,null,null,203,603,203,476273901,"ص203","أنثى","مسلمة","ناجح ومنقول","(1 / 4)","لا يوجد","الرابع","نصف العام","آخر العام","م",11,""]
[null,null,null,null,null,null,null,null,null,204,604,204,476481744,"ص204","أنثى","مسلمة","ناجح ومنقول","(1 / 4)","لا يوجد","الرابع","نصف العام","آخر العام","م",11,""]
[null,null,null,null,null,null,null,null,null,205,605,205,476273655,"ص205","أنثى","مسلمة","ناجح ومنقول","(2 / 4)","لا يوجد","الرابع","نصف العام","آخر العام","م",11,""]
[null,null,null,null,null,null,null,null,null,206,606,206,484922023,"ص206","أنثى","مسلمة","ناجح ومنقول","(4 / 4)","لا يوجد","الرابع","نصف العام","آخر العام","م",11,""]
[null,null,null,null,null,null,null,null,null,207,607,207,480630922,"ص207","أنثى","مسلمة","ناجح ومنقول","(4 / 4)","لا يوجد","الرابع","نصف العام","آخر العام","م",11,""]
[null,null,null,null,null,null,null,null,null,208,608,208,480680788,"ص208","أنثى","مسلمة","ناجح ومنقول","(4 / 4)","لا يوجد","الرابع","نصف العام","آخر العام","م",11,""]
[null,null,null,null,null,null,null,null,null,209,609,209,476274089,"ص209","أنثى","مسلمة","ناجح ومنقول","(4 / 4)","لا يوجد","الرابع","نصف العام","آخر العام","م",11,""]
[null,null,null,null,null,null,null,null,null,210,610,210,480875386,"ص210","أنثى","مسلمة","ناجح ومنقول","(3 / 4)","لا يوجد","الرابع","نصف العام","آخر العام","م",11,""]
[null,null,null,null,null,null,null,null,null,211,611,211,485040720,"ص211","أنثى","مسلمة","ناجح ومنقول","(2 / 4)","لا يوجد","الرابع","نصف العام","آخر العام","م",11,""]
[null,null,null,null,null,null,null,null,null,212,612,212,485040876,"ص212","أنثى","مسلمة","ناجح ومنقول","(3 / 4)","لا يوجد","الرابع","نصف العام","آخر العام","م",11,""]
[null,null,null,null,null,null,null,null,null,213,613,213,483732770,"ص213","أنثى","مسلمة","ناجح ومنقول","(2 / 4)","لا يوجد","الرابع","نصف العام","آخر العام","م",11,""]
[null,null,null,null,null,null,null,null,null,214,614,214,484227469,"ص214","أنثى","مسلمة","ناجح ومنقول","(1 / 4)","لا يوجد","الرابع","نصف العام","آخر العام","م",11,""]
[null,null,null,null,null,null,null,null,null,215,615,215,480872702,"ص215","أنثى","مسلمة","ناجح ومنقول","(1 / 4)","لا يوجد","الرابع","نصف العام","آخر العام","م",11,"نهاية اللجنة"]
[null,null,null,null,null,null,null,null,null,null,null,null,null,null,null,null,null,null,null,null,null,null,null,null,""]
[null,null,null,null,null,null,null,null,null,null,null,null,null,null,null,null,null,null,null,null,null,null,null,null,""]
[null,null,null,null,null,null,null,null,null,null,null,null,null,null,null,null,null,null,null,null,null,null,null,null,""]
[null,null,null,null,null,null,null,null,null,null,null,null,null,null,null,null,null,null,null,null,null,null,null,null,""]
[null,null,null,null,null,null,null,null,null,null,null,null,null,null,null,null,null,null,null,null,null,null,null,null,""]
[null,null,null,null,null,null,null,null,null,null,null,null,null,null,null,null,null,null,null,null,null,null,null,null,""]
[null,null,null,null,null,null,null,null,null,null,null,null,null,null,null,null,null,null,null,null,null,null,null,null,""]
[null,null,null,null,null,null,null,null,null,null,null,null,null,null,null,null,null,null,null,null,null,null,null,null,""]
[null,null,null,null,null,null,null,null,null,null,null,null,null,null,null,null,null,null,null,null,null,null,null,null,""]
[null,null,null,null,null,null,null,null,null,null,null,null,null,null,null,null,null,null,null,null,null,null,null,null,""]
[null,null,null,null,null,null,null,null,null,null,null,null,null,null,null,null,null,null,null,null,null,null,null,null,""]
[null,null,null,null,null,null,null,null,null,null,null,null,null,null,null,null,null,null,null,null,null,null,null,null,""]
[null,null,null,null,null,null,null,null,null,null,null,null,null,null,null,null,null,null,null,null,null,null,null,null,""]
[null,null,null,null,null,null,null,null,null,null,null,null,null,null,null,null,null,null,null,null,null,null,null,null,""]
[null,null,null,null,null,null,null,null,null,null,null,null,null,null,null,null,null,null,null,null,null,null,null,null,""]
[null,null,null,null,null,null,null,null,null,null,null,null,null,null,null,null,null,null,null,null,null,null,null,null,""]
[null,null,null,null,null,null,null,null,null,null,null,null,null,null,null,null,null,null,null,null,null,null,null,null,""]
[null,null,null,null,null,null,null,null,null,null,null,null,null,null,null,null,null,null,null,null,null,null,null,null,""]
[null,null,null,null,null,null,null,null,null,null,null,null,null,null,null,null,null,null,null,null,null,null,null,null,""]
[null,null,null,null,null,null,null,null,null,null,null,null,null,null,null,null,null,null,null,null,null,null,null,null,""]
[null,null,null,null,null,null,null,null,null,null,null,null,null,null,null,null,null,null,null,null,null,null,null,null,""]
[null,null,null,null,null,null,null,null,null,null,null,null,null,null,null,null,null,null,null,null,null,null,null,null,""]
[null,null,null,null,null,null,null,null,null,null,null,null,null,null,null,null,null,null,null,null,null,null,null,null,""]
[null,null,null,null,null,null,null,null,null,null,null,null,null,null,null,null,null,null,null,null,null,null,null,null,""]
[null,null,null,null,null,null,null,null,null,null,null,null,null,null,null,null,null,null,null,null,null,null,null,null,""]
[null,null,null,null,null,null,null,null,null,null,null,null,null,null,null,null,null,null,null,null,null,null,null,null,""]
[null,null,null,null,null,null,null,null,null,null,null,null,null,null,null,null,null,null,null,null,null,null,null,null,""]
[null,null,null,null,null,null,null,null,null,null,null,null,null,null,null,null,null,null,null,null,null,null,null,null,""]
[null,null,null,null,null,null,null,null,null,null,null,null,null,null,null,null,null,null,null,null,null,null,null,null,""]
[null,null,null,null,null,null,null,null,null,null,null,null,null,null,null,null,null,null,null,null,null,null,null,null,""]
[null,null,null,null,null,null,null,null,null,null,null,null,null,null,null,null,null,null,null,null,null,null,null,null,""]
[null,null,null,null,null,null,null,null,null,null,null,null,null,null,null,null,null,null,null,null,null,null,null,null,""]
[null,null,null,null,null,null,null,null,null,null,null,null,null,null,null,null,null,null,null,null,null,null,null,null,""]
[null,null,null,null,null,null,null,null,null,null,null,null,null,null,null,null,null,null,null,null,null,null,null,null,""]
[null,null,null,null,null,null,null,null,null,null,null,null,null,null,null,null,null,null,null,null,null,null,null,null,""]
[null,null,null,null,null,null,null,null,null,null,null,null,null,null,null,null,null,null,null,null,null,null,null,null,""]
[null,null,null,null,null,null,null,null,null,null,null,null,null,null,null,null,null,null,null,null,null,null,null,null,""]
[null,null,null,null,null,null,null,null,null,null,null,null,null,null,null,null,null,null,null,null,null,null,null,null,""]
[null,null,null,null,null,null,null,null,null,null,null,null,null,null,null,null,null,null,null,null,null,null,null,null,""]
[null,null,null,null,null,null,null,null,null,null,null,null,null,null,null,null,null,null,null,null,null,null,null,null,""]
[null,null,null,null,null,null,null,null,null,null,null,null,null,null,null,null,null,null,null,null,null,null,null,null,""]
[null,null,null,null,null,null,null,null,null,null,null,null,null,null,null,null,null,null,null,null,null,null,null,null,""]
[null,null,null,null,null,null,null,null,null,null,null,null,null,null,null,null,null,null,null,null,null,null,null,null,{"$f":"IF(X262=X263,\"\",\"نهاية اللجنة\")","v":""}]
[null,null,null,null,null,null,null,null,null,null,null,null,null,null,null,null,null,null,null,null,null,null,null,null,""]
[null,null,null,null,null,null,null,null,null,null,null,null,null,null,null,null,null,null,null,null,null,null,null,null,""]
[null,null,null,null,null,null,null,null,null,null,null,null,null,null,null,null,null,null,null,null,null,null,null,null,""]
[null,null,null,null,null,null,null,null,null,null,null,null,null,null,null,null,null,null,null,null,null,null,null,null,""]
[null,null,null,null,null,null,null,null,null,null,null,null,null,null,null,null,null,null,null,null,null,null,null,null,""]
[null,null,null,null,null,null,null,null,null,null,null,null,null,null,null,null,null,null,null,null,null,null,null,null,""]
[null,null,null,null,null,null,null,null,null,null,null,null,null,null,null,null,null,null,null,null,null,null,null,null,""]
[null,null,null,null,null,null,null,null,null,null,null,null,null,null,null,null,null,null,null,null,null,null,null,null,""]
[null,null,null,null,null,null,null,null,null,{"$f":"IF(J270=\"\",\"\",IF(J270+1>$K$2,\"\",J270+1))","v":""},null,null,null,null,null,null,null,null,null,null,null,null,null,null,""]
[null,null,null,null,null,null,null,null,null,"",null,null,null,null,null,null,null,null,null,null,null,null,null,null,""]
[null,null,null,null,null,null,null,null,null,"",null,null,null,null,null,null,null,null,null,null,null,null,null,null,""]
[null,null,null,null,null,null,null,null,null,"",null,null,null,null,null,null,null,null,null,null,null,null,null,null,""]
[null,null,null,null,null,null,null,null,null,"",null,null,null,null,null,null,null,null,null,null,null,null,null,null,""]
[null,null,null,null,null,null,null,null,null,"",null,null,null,null,null,null,null,null,null,null,null,null,null,null,""]
[null,null,null,null,null,null,null,null,null,"",null,null,null,null,null,null,null,null,null,null,null,null,null,null,""]
[null,null,null,null,null,null,null,null,null,"",null,null,null,null,null,null,null,null,null,null,null,null,null,null,""]
[null,null,null,null,null,null,null,null,null,"",null,null,null,null,null,null,null,null,null,null,null,null,null,null,""]
[null,null,null,null,null,null,null,null,null,"",null,null,null,null,null,null,null,null,null,null,null,null,null,null,""]
[null,null,null,null,null,null,null,null,null,"",null,null,null,null,null,null,null,null,null,null,null,null,null,null,""]
[null,null,null,null,null,null,null,null,null,"",null,null,null,null,null,null,null,null,null,null,null,null,null,null,""]
[null,null,null,null,null,null,null,null,null,"",null,null,null,null,null,null,null,null,null,null,null,null,null,null,""]
[null,null,null,null,null,null,null,null,null,"",null,null,null,null,null,null,null,null,null,null,null,null,null,null,""]
[null,null,null,null,null,null,null,null,null,"",null,null,null,null,null,null,null,null,null,null,null,null,null,null,""]
[null,null,null,null,null,null,null,null,null,"",null,null,null,null,null,null,null,null,null,null,null,null,null,null,""]
[null,null,null,null,null,null,null,null,null,"",null,null,null,null,null,null,null,null,null,null,null,null,null,null,""]
[null,null,null,null,null,null,null,null,null,"",null,null,null,null,null,null,null,null,null,null,null,null,null,null,""]
[null,null,null,null,null,null,null,null,null,"",null,null,null,null,null,null,null,null,null,null,null,null,null,null,""]
[null,null,null,null,null,null,null,null,null,"",null,null,null,null,null,null,null,null,null,null,null,null,null,null,""]
[null,null,null,null,null,null,null,null,null,"",null,null,null,null,null,null,null,null,null,null,null,null,null,null,""]
[null,null,null,null,null,null,null,null,null,"",null,null,null,null,null,null,null,null,null,null,null,null,null,null,""]
[null,null,null,null,null,null,null,null,null,"",null,null,null,null,null,null,null,null,null,null,null,null,null,null,""]
[null,null,null,null,null,null,null,null,null,"",null,null,null,null,null,null,null,null,null,null,null,null,null,null,""]
[null,null,null,null,null,null,null,null,null,"",null,null,null,null,null,null,null,null,null,null,null,null,null,null,""]
[null,null,null,null,null,null,null,null,null,"",null,null,null,null,null,null,null,null,null,null,null,null,null,null,""]
[null,null,null,null,null,null,null,null,null,"",null,null,null,null,null,null,null,null,null,null,null,null,null,null,""]
[]
[]
[null,null,null,null,null,null,null,null,null,{"$f":"IF(J299=\"\",\"\",IF(J299+1>$K$2,\"\",J299+1))","v":""},{"$f":"IF(K299=\"\",\"\",IF(K299+1>$K$3,\"\",K299+1))","v":""},null,null,null,null,null,null,null,null,null,null,null,null,{"$f":"IF(K300=\"\",\"\",VLOOKUP(K300,جلوس,4))","v":""},""]
[null,null,null,null,null,null,null,null,null,"","",null,null,null,null,null,null,null,null,null,null,null,null,"",""]
[null,null,null,null,null,null,null,null,null,"","",null,null,null,null,null,null,null,null,null,null,null,null,"",""]
[null,null,null,null,null,null,null,null,null,"","",null,null,null,null,null,null,null,null,null,null,null,null,"",""]
[null,null,null,null,null,null,null,null,null,"","",null,null,null,null,null,null,null,null,null,null,null,null,"",""]
[null,null,null,null,null,null,null,null,null,"","",null,null,null,null,null,null,null,null,null,null,null,null,"",""]
[null,null,null,null,null,null,null,null,null,"","",null,null,null,null,null,null,null,null,null,null,null,null,"",""]
[null,null,null,null,null,null,null,null,null,"","",null,null,null,null,null,null,null,null,null,null,null,null,"",""]
[null,null,null,null,null,null,null,null,null,"","",null,null,null,null,null,null,null,null,null,null,null,null,"",""]
[null,null,null,null,null,null,null,null,null,"","",null,null,null,null,null,null,null,null,null,null,null,null,"",""]
[null,null,null,null,null,null,null,null,null,"","",null,null,null,null,null,null,null,null,null,null,null,null,"",""]
[null,null,null,null,null,null,null,null,null,"","",null,null,null,null,null,null,null,null,null,null,null,null,"",""]
[null,null,null,null,null,null,null,null,null,"","",null,null,null,null,null,null,null,null,null,null,null,null,"",""]
[null,null,null,null,null,null,null,null,null,"","",null,null,null,null,null,null,null,null,null,null,null,null,"",""]
[null,null,null,null,null,null,null,null,null,"","",null,null,null,null,null,null,null,null,null,null,null,null,"",""]
[null,null,null,null,null,null,null,null,null,"","",null,null,null,null,null,null,null,null,null,null,null,null,"",""]
[null,null,null,null,null,null,null,null,null,"","",null,null,null,null,null,null,null,null,null,null,null,null,"",""]
[null,null,null,null,null,null,null,null,null,"","",null,null,null,null,null,null,null,null,null,null,null,null,"",""]
[null,null,null,null,null,null,null,null,null,"","",null,null,null,null,null,null,null,null,null,null,null,null,"",""]
[null,null,null,null,null,null,null,null,null,"","",null,null,null,null,null,null,null,null,null,null,null,null,"",""]
[null,null,null,null,null,null,null,null,null,"","",null,null,null,null,null,null,null,null,null,null,null,null,"",""]
[null,null,null,null,null,null,null,null,null,"","",null,null,null,null,null,null,null,null,null,null,null,null,"",""]
[null,null,null,null,null,null,null,null,null,"","",null,null,null,null,null,null,null,null,null,null,null,null,"",""]
[null,null,null,null,null,null,null,null,null,"","",null,null,null,null,null,null,null,null,null,null,null,null,"",""]
[null,null,null,null,null,null,null,null,null,"","",null,null,null,null,null,null,null,null,null,null,null,null,"",""]
[null,null,null,null,null,null,null,null,null,"","",null,null,null,null,null,null,null,null,null,null,null,null,"",""]
[null,null,null,null,null,null,null,null,null,"","",null,null,null,null,null,null,null,null,null,null,null,null,"",{"$f":"IF(X326=X327,\"\",\"نهاية اللجنة\")","v":""}]
[null,null,null,null,null,null,null,null,null,"","",null,null,null,null,null,null,null,null,null,null,null,null,"",""]
[null,null,null,null,null,null,null,null,null,"","",null,null,null,null,null,null,null,null,null,null,null,null,"",""]
[null,null,null,null,null,null,null,null,null,"","",null,null,null,null,null,null,null,null,null,null,null,null,"",""]
[null,null,null,null,null,null,null,null,null,"","",null,null,null,null,null,null,null,null,null,null,null,null,"",""]
[null,null,null,null,null,null,null,null,null,"","",null,null,null,null,null,null,null,null,null,null,null,null,"",""]
[null,null,null,null,null,null,null,null,null,"","",null,null,null,null,null,null,null,null,null,null,null,null,"",""]
[null,null,null,null,null,null,null,null,null,"","",null,null,null,null,null,null,null,null,null,null,null,null,"",""]
[null,null,null,null,null,null,null,null,null,"","",null,null,null,null,null,null,null,null,null,null,null,null,"",""]
[null,null,null,null,null,null,null,null,null,"","",null,null,null,null,null,null,null,null,null,null,null,null,"",""]
[null,null,null,null,null,null,null,null,null,"","",null,null,null,null,null,null,null,null,null,null,null,null,"",""]
[null,null,null,null,null,null,null,null,null,"","",null,null,null,null,null,null,null,null,null,null,null,null,"",""]
[null,null,null,null,null,null,null,null,null,"","",null,null,null,null,null,null,null,null,null,null,null,null,"",""]
[null,null,null,null,null,null,null,null,null,"","",null,null,null,null,null,null,null,null,null,null,null,null,"",""]
[null,null,null,null,null,null,null,null,null,"","",null,null,null,null,null,null,null,null,null,null,null,null,"",""]
[null,null,null,null,null,null,null,null,null,"","",null,null,null,null,null,null,null,null,null,null,null,null,"",""]
[null,null,null,null,null,null,null,null,null,"","",null,null,null,null,null,null,null,null,null,null,null,null,"",""]
[null,null,null,null,null,null,null,null,null,"","",null,null,null,null,null,null,null,null,null,null,null,null,"",""]
[null,null,null,null,null,null,null,null,null,"","",null,null,null,null,null,null,null,null,null,null,null,null,"",""]
[null,null,null,null,null,null,null,null,null,"","",null,null,null,null,null,null,null,null,null,null,null,null,"",""]
[null,null,null,null,null,null,null,null,null,"","",null,null,null,null,null,null,null,null,null,null,null,null,"",""]
[null,null,null,null,null,null,null,null,null,"","",null,null,null,null,null,null,null,null,null,null,null,null,"",""]
[null,null,null,null,null,null,null,null,null,"","",null,null,null,null,null,null,null,null,null,null,null,null,"",""]
[null,null,null,null,null,null,null,null,null,"","",null,null,null,null,null,null,null,null,null,null,null,null,"",""]
[null,null,null,null,null,null,null,null,null,"","",null,null,null,null,null,null,null,null,null,null,null,null,"",""]
[null,null,null,null,null,null,null,null,null,"","",null,null,null,null,null,null,null,null,null,null,null,null,"",""]
[null,null,null,null,null,null,null,null,null,"","",null,null,null,null,null,null,null,null,null,null,null,null,"",""]
[null,null,null,null,null,null,null,null,null,"","",null,null,null,null,null,null,null,null,null,null,null,null,"",""]
[null,null,null,null,null,null,null,null,null,"","",null,null,null,null,null,null,null,null,null,null,null,null,"",""]
[null,null,null,null,null,null,null,null,null,"","",null,null,null,null,null,null,null,null,null,null,null,null,"",""]
[null,null,null,null,null,null,null,null,null,"","",null,null,null,null,null,null,null,null,null,null,null,null,"",""]
[null,null,null,null,null,null,null,null,null,"","",null,null,null,null,null,null,null,null,null,null,null,null,"",""]
[null,null,null,null,null,null,null,null,null,"","",null,null,null,null,null,null,null,null,null,null,null,null,"",""]
[null,null,null,null,null,null,null,null,null,"","",null,null,null,null,null,null,null,null,null,null,null,null,"",""]
[null,null,null,null,null,null,null,null,null,"","",null,null,null,null,null,null,null,null,null,null,null,null,"",""]
[null,null,null,null,null,null,null,null,null,"","",null,null,null,null,null,null,null,null,null,null,null,null,"",""]
[null,null,null,null,null,null,null,null,null,"","",null,null,null,null,null,null,null,null,null,null,null,null,"",""]
[null,null,null,null,null,null,null,null,null,"","",null,null,null,null,null,null,null,null,null,null,null,null,"",""]
[null,null,null,null,null,null,null,null,null,{"$f":"IF(J363=\"\",\"\",IF(J363+1>$K$2,\"\",J363+1))","v":""},{"$f":"IF(K363=\"\",\"\",IF(K363+1>$K$3,\"\",K363+1))","v":""},null,null,null,null,null,null,null,null,null,null,null,null,{"$f":"IF(K364=\"\",\"\",VLOOKUP(K364,جلوس,4))","v":""},""]
[null,null,null,null,null,null,null,null,null,"","",null,null,null,null,null,null,null,null,null,null,null,null,"",""]
[null,null,null,null,null,null,null,null,null,"","",null,null,null,null,null,null,null,null,null,null,null,null,"",""]
[null,null,null,null,null,null,null,null,null,"","",null,null,null,null,null,null,null,null,null,null,null,null,"",""]
[null,null,null,null,null,null,null,null,null,"","",null,null,null,null,null,null,null,null,null,null,null,null,"",""]
[null,null,null,null,null,null,null,null,null,"","",null,null,null,null,null,null,null,null,null,null,null,null,"",""]
[null,null,null,null,null,null,null,null,null,"","",null,null,null,null,null,null,null,null,null,null,null,null,"",""]
[null,null,null,null,null,null,null,null,null,"","",null,null,null,null,null,null,null,null,null,null,null,null,"",""]
[null,null,null,null,null,null,null,null,null,"","",null,null,null,null,null,null,null,null,null,null,null,null,"",""]
[null,null,null,null,null,null,null,null,null,"","",null,null,null,null,null,null,null,null,null,null,null,null,"",""]
[null,null,null,null,null,null,null,null,null,"","",null,null,null,null,null,null,null,null,null,null,null,null,"",""]
[null,null,null,null,null,null,null,null,null,"","",null,null,null,null,null,null,null,null,null,null,null,null,"",""]
[null,null,null,null,null,null,null,null,null,"","",null,null,null,null,null,null,null,null,null,null,null,null,"",""]
[null,null,null,null,null,null,null,null,null,"","",null,null,null,null,null,null,null,null,null,null,null,null,"",""]
[null,null,null,null,null,null,null,null,null,"","",null,null,null,null,null,null,null,null,null,null,null,null,"",""]
[null,null,null,null,null,null,null,null,null,"","",null,null,null,null,null,null,null,null,null,null,null,null,"",""]
[null,null,null,null,null,null,null,null,null,"","",null,null,null,null,null,null,null,null,null,null,null,null,"",""]
[null,null,null,null,null,null,null,null,null,"","",null,null,null,null,null,null,null,null,null,null,null,null,"",""]
[null,null,null,null,null,null,null,null,null,"","",null,null,null,null,null,null,null,null,null,null,null,null,"",""]
[null,null,null,null,null,null,null,null,null,"","",null,null,null,null,null,null,null,null,null,null,null,null,"",""]
[null,null,null,null,null,null,null,null,null,"","",null,null,null,null,null,null,null,null,null,null,null,null,"",""]
[null,null,null,null,null,null,null,null,null,"","",null,null,null,null,null,null,null,null,null,null,null,null,"",""]
[null,null,null,null,null,null,null,null,null,"","",null,null,null,null,null,null,null,null,null,null,null,null,"",""]
[null,null,null,null,null,null,null,null,null,"","",null,null,null,null,null,null,null,null,null,null,null,null,"",""]
[null,null,null,null,null,null,null,null,null,"","",null,null,null,null,null,null,null,null,null,null,null,null,"",""]
[null,null,null,null,null,null,null,null,null,"","",null,null,null,null,null,null,null,null,null,null,null,null,"",""]
[null,null,null,null,null,null,null,null,null,"","",null,null,null,null,null,null,null,null,null,null,null,null,"",{"$f":"IF(X390=X391,\"\",\"نهاية اللجنة\")","v":""}]
[null,null,null,null,null,null,null,null,null,"","",null,null,null,null,null,null,null,null,null,null,null,null,"",""]
[null,null,null,null,null,null,null,null,null,"","",null,null,null,null,null,null,null,null,null,null,null,null,"",""]
[null,null,null,null,null,null,null,null,null,"","",null,null,null,null,null,null,null,null,null,null,null,null,"",""]
[null,null,null,null,null,null,null,null,null,"","",null,null,null,null,null,null,null,null,null,null,null,null,"",""]
[null,null,null,null,null,null,null,null,null,"","",null,null,null,null,null,null,null,null,null,null,null,null,"",""]
[null,null,null,null,null,null,null,null,null,"","",null,null,null,null,null,null,null,null,null,null,null,null,"",""]
[null,null,null,null,null,null,null,null,null,"","",null,null,null,null,null,null,null,null,null,null,null,null,"",""]
[null,null,null,null,null,null,null,null,null,"","",null,null,null,null,null,null,null,null,null,null,null,null,"",""]
[null,null,null,null,null,null,null,null,null,"","",null,null,null,null,null,null,null,null,null,null,null,null,"",""]
[null,null,null,null,null,null,null,null,null,"","",null,null,null,null,null,null,null,null,null,null,null,null,"",""]
[null,null,null,null,null,null,null,null,null,"","",null,null,null,null,null,null,null,null,null,null,null,null,"",""]
[null,null,null,null,null,null,null,null,null,"","",null,null,null,null,null,null,null,null,null,null,null,null,"",""]
[null,null,null,null,null,null,null,null,null,"","",null,null,null,null,null,null,null,null,null,null,null,null,"",""]
[null,null,null,null,null,null,null,null,null,"","",null,null,null,null,null,null,null,null,null,null,null,null,"",""]
[null,null,null,null,null,null,null,null,null,"","",null,null,null,null,null,null,null,null,null,null,null,null,"",""]
[null,null,null,null,null,null,null,null,null,"","",null,null,null,null,null,null,null,null,null,null,null,null,"",""]
[null,null,null,null,null,null,null,null,null,"","",null,null,null,null,null,null,null,null,null,null,null,null,"",""]
[null,null,null,null,null,null,null,null,null,"","",null,null,null,null,null,null,null,null,null,null,null,null,"",""]
[null,null,null,null,null,null,null,null,null,"","",null,null,null,null,null,null,null,null,null,null,null,null,"",""]
[null,null,null,null,null,null,null,null,null,"","",null,null,null,null,null,null,null,null,null,null,null,null,"",""]
[null,null,null,null,null,null,null,null,null,"","",null,null,null,null,null,null,null,null,null,null,null,null,"",""]
[null,null,null,null,null,null,null,null,null,"","",null,null,null,null,null,null,null,null,null,null,null,null,"",""]
[null,null,null,null,null,null,null,null,null,"","",null,null,null,null,null,null,null,null,null,null,null,null,"",""]
[null,null,null,null,null,null,null,null,null,"","",null,null,null,null,null,null,null,null,null,null,null,null,"",""]
[null,null,null,null,null,null,null,null,null,"","",null,null,null,null,null,null,null,null,null,null,null,null,"",""]
[null,null,null,null,null,null,null,null,null,"","",null,null,null,null,null,null,null,null,null,null,null,null,"",""]
[null,null,null,null,null,null,null,null,null,"","",null,null,null,null,null,null,null,null,null,null,null,null,"",""]
[null,null,null,null,null,null,null,null,null,"","",null,null,null,null,null,null,null,null,null,null,null,null,"",""]
[null,null,null,null,null,null,null,null,null,"","",null,null,null,null,null,null,null,null,null,null,null,null,"",""]
[null,null,null,null,null,null,null,null,null,"","",null,null,null,null,null,null,null,null,null,null,null,null,"",""]
[null,null,null,null,null,null,null,null,null,"","",null,null,null,null,null,null,null,null,null,null,null,null,"",""]
[null,null,null,null,null,null,null,null,null,"","",null,null,null,null,null,null,null,null,null,null,null,null,"",""]
[null,null,null,null,null,null,null,null,null,"","",null,null,null,null,null,null,null,null,null,null,null,null,"",""]
[null,null,null,null,null,null,null,null,null,"","",null,null,null,null,null,null,null,null,null,null,null,null,"",""]
[null,null,null,null,null,null,null,null,null,"","",null,null,null,null,null,null,null,null,null,null,null,null,"",""]
[null,null,null,null,null,null,null,null,null,"","",null,null,null,null,null,null,null,null,null,null,null,null,"",""]
[null,null,null,null,null,null,null,null,null,"","",null,null,null,null,null,null,null,null,null,null,null,null,"",""]
[null,null,null,null,null,null,null,null,null,{"$f":"IF(J427=\"\",\"\",IF(J427+1>$K$2,\"\",J427+1))","v":""},{"$f":"IF(K427=\"\",\"\",IF(K427+1>$K$3,\"\",K427+1))","v":""},null,null,null,null,null,null,null,null,null,null,null,null,{"$f":"IF(K428=\"\",\"\",VLOOKUP(K428,جلوس,4))","v":""},""]
[null,null,null,null,null,null,null,null,null,"","",null,null,null,null,null,null,null,null,null,null,null,null,"",""]
[null,null,null,null,null,null,null,null,null,"","",null,null,null,null,null,null,null,null,null,null,null,null,"",""]
[null,null,null,null,null,null,null,null,null,"","",null,null,null,null,null,null,null,null,null,null,null,null,"",""]
[null,null,null,null,null,null,null,null,null,"","",null,null,null,null,null,null,null,null,null,null,null,null,"",""]
[null,null,null,null,null,null,null,null,null,"","",null,null,null,null,null,null,null,null,null,null,null,null,"",""]
[null,null,null,null,null,null,null,null,null,"","",null,null,null,null,null,null,null,null,null,null,null,null,"",""]
[null,null,null,null,null,null,null,null,null,"","",null,null,null,null,null,null,null,null,null,null,null,null,"",""]
[null,null,null,null,null,null,null,null,null,"","",null,null,null,null,null,null,null,null,null,null,null,null,"",""]
[null,null,null,null,null,null,null,null,null,"","",null,null,null,null,null,null,null,null,null,null,null,null,"",""]
[null,null,null,null,null,null,null,null,null,"","",null,null,null,null,null,null,null,null,null,null,null,null,"",""]
[null,null,null,null,null,null,null,null,null,"","",null,null,null,null,null,null,null,null,null,null,null,null,"",""]
[null,null,null,null,null,null,null,null,null,"","",null,null,null,null,null,null,null,null,null,null,null,null,"",""]
[null,null,null,null,null,null,null,null,null,"","",null,null,null,null,null,null,null,null,null,null,null,null,"",""]
[null,null,null,null,null,null,null,null,null,"","",null,null,null,null,null,null,null,null,null,null,null,null,"",""]
[null,null,null,null,null,null,null,null,null,"","",null,null,null,null,null,null,null,null,null,null,null,null,"",""]
[null,null,null,null,null,null,null,null,null,"","",null,null,null,null,null,null,null,null,null,null,null,null,"",""]
[null,null,null,null,null,null,null,null,null,"","",null,null,null,null,null,null,null,null,null,null,null,null,"",""]
[null,null,null,null,null,null,null,null,null,"","",null,null,null,null,null,null,null,null,null,null,null,null,"",""]
[null,null,null,null,null,null,null,null,null,"","",null,null,null,null,null,null,null,null,null,null,null,null,"",""]
[null,null,null,null,null,null,null,null,null,"","",null,null,null,null,null,null,null,null,null,null,null,null,"",""]
[null,null,null,null,null,null,null,null,null,"","",null,null,null,null,null,null,null,null,null,null,null,null,"",""]
[null,null,null,null,null,null,null,null,null,"","",null,null,null,null,null,null,null,null,null,null,null,null,"",""]
[null,null,null,null,null,null,null,null,null,"","",null,null,null,null,null,null,null,null,null,null,null,null,"",""]
[null,null,null,null,null,null,null,null,null,"","",null,null,null,null,null,null,null,null,null,null,null,null,"",""]
[null,null,null,null,null,null,null,null,null,"","",null,null,null,null,null,null,null,null,null,null,null,null,"",""]
[null,null,null,null,null,null,null,null,null,"","",null,null,null,null,null,null,null,null,null,null,null,null,"",{"$f":"IF(X454=X455,\"\",\"نهاية اللجنة\")","v":""}]
[null,null,null,null,null,null,null,null,null,"","",null,null,null,null,null,null,null,null,null,null,null,null,"",""]
[null,null,null,null,null,null,null,null,null,"","",null,null,null,null,null,null,null,null,null,null,null,null,"",""]
[null,null,null,null,null,null,null,null,null,"","",null,null,null,null,null,null,null,null,null,null,null,null,"",""]
[null,null,null,null,null,null,null,null,null,"","",null,null,null,null,null,null,null,null,null,null,null,null,"",""]
[null,null,null,null,null,null,null,null,null,"","",null,null,null,null,null,null,null,null,null,null,null,null,"",""]
[null,null,null,null,null,null,null,null,null,"","",null,null,null,null,null,null,null,null,null,null,null,null,"",""]
[null,null,null,null,null,null,null,null,null,"","",null,null,null,null,null,null,null,null,null,null,null,null,"",""]
[null,null,null,null,null,null,null,null,null,"","",null,null,null,null,null,null,null,null,null,null,null,null,"",""]
[null,null,null,null,null,null,null,null,null,"","",null,null,null,null,null,null,null,null,null,null,null,null,"",""]
[null,null,null,null,null,null,null,null,null,"","",null,null,null,null,null,null,null,null,null,null,null,null,"",""]
[null,null,null,null,null,null,null,null,null,"","",null,null,null,null,null,null,null,null,null,null,null,null,"",""]
[null,null,null,null,null,null,null,null,null,"","",null,null,null,null,null,null,null,null,null,null,null,null,"",""]
[null,null,null,null,null,null,null,null,null,"","",null,null,null,null,null,null,null,null,null,null,null,null,"",""]
[null,null,null,null,null,null,null,null,null,"","",null,null,null,null,null,null,null,null,null,null,null,null,"",""]
[null,null,null,null,null,null,null,null,null,"","",null,null,null,null,null,null,null,null,null,null,null,null,"",""]
[null,null,null,null,null,null,null,null,null,"","",null,null,null,null,null,null,null,null,null,null,null,null,"",""]
[null,null,null,null,null,null,null,null,null,"","",null,null,null,null,null,null,null,null,null,null,null,null,"",""]
[null,null,null,null,null,null,null,null,null,"","",null,null,null,null,null,null,null,null,null,null,null,null,"",""]
[null,null,null,null,null,null,null,null,null,"","",null,null,null,null,null,null,null,null,null,null,null,null,"",""]
[null,null,null,null,null,null,null,null,null,"","",null,null,null,null,null,null,null,null,null,null,null,null,"",""]
[null,null,null,null,null,null,null,null,null,"","",null,null,null,null,null,null,null,null,null,null,null,null,"",""]
[null,null,null,null,null,null,null,null,null,"","",null,null,null,null,null,null,null,null,null,null,null,null,"",""]
[null,null,null,null,null,null,null,null,null,"","",null,null,null,null,null,null,null,null,null,null,null,null,"",""]
[null,null,null,null,null,null,null,null,null,"","",null,null,null,null,null,null,null,null,null,null,null,null,"",""]
[null,null,null,null,null,null,null,null,null,"","",null,null,null,null,null,null,null,null,null,null,null,null,"",""]
[null,null,null,null,null,null,null,null,null,"","",null,null,null,null,null,null,null,null,null,null,null,null,"",""]
[null,null,null,null,null,null,null,null,null,"","",null,null,null,null,null,null,null,null,null,null,null,null,"",""]
[null,null,null,null,null,null,null,null,null,"","",null,null,null,null,null,null,null,null,null,null,null,null,"",""]
[null,null,null,null,null,null,null,null,null,"","",null,null,null,null,null,null,null,null,null,null,null,null,"",""]
[null,null,null,null,null,null,null,null,null,"","",null,null,null,null,null,null,null,null,null,null,null,null,"",""]
[null,null,null,null,null,null,null,null,null,"","",null,null,null,null,null,null,null,null,null,null,null,null,"",""]
[null,null,null,null,null,null,null,null,null,"","",null,null,null,null,null,null,null,null,null,null,null,null,"",""]
[null,null,null,null,null,null,null,null,null,"","",null,null,null,null,null,null,null,null,null,null,null,null,"",""]
[null,null,null,null,null,null,null,null,null,"","",null,null,null,null,null,null,null,null,null,null,null,null,"",""]
[null,null,null,null,null,null,null,null,null,"","",null,null,null,null,null,null,null,null,null,null,null,null,"",""]
[null,null,null,null,null,null,null,null,null,"","",null,null,null,null,null,null,null,null,null,null,null,null,"",""]
[null,null,null,null,null,null,null,null,null,"","",null,null,null,null,null,null,null,null,null,null,null,null,"",""]
[null,null,null,null,null,null,null,null,null,{"$f":"IF(J491=\"\",\"\",IF(J491+1>$K$2,\"\",J491+1))","v":""},{"$f":"IF(K491=\"\",\"\",IF(K491+1>$K$3,\"\",K491+1))","v":""},null,null,null,null,null,null,null,null,null,null,null,null,{"$f":"IF(K492=\"\",\"\",VLOOKUP(K492,جلوس,4))","v":""},""]
[null,null,null,null,null,null,null,null,null,"","",null,null,null,null,null,null,null,null,null,null,null,null,"",""]
[null,null,null,null,null,null,null,null,null,"","",null,null,null,null,null,null,null,null,null,null,null,null,"",""]
[null,null,null,null,null,null,null,null,null,"","",null,null,null,null,null,null,null,null,null,null,null,null,"",""]
[null,null,null,null,null,null,null,null,null,"","",null,null,null,null,null,null,null,null,null,null,null,null,"",""]
[null,null,null,null,null,null,null,null,null,"","",null,null,null,null,null,null,null,null,null,null,null,null,"",""]
[null,null,null,null,null,null,null,null,null,"","",null,null,null,null,null,null,null,null,null,null,null,null,"",""]
[null,null,null,null,null,null,null,null,null,"","",null,null,null,null,null,null,null,null,null,null,null,null,"",""]
[null,null,null,null,null,null,null,null,null,"","",null,null,null,null,null,null,null,null,null,null,null,null,"",""]
[null,null,null,null,null,null,null,null,null,"","",null,null,null,null,null,null,null,null,null,null,null,null,"",""]
[null,null,null,null,null,null,null,null,null,"","",null,null,null,null,null,null,null,null,null,null,null,null,"",""]
[null,null,null,null,null,null,null,null,null,"","",null,null,null,null,null,null,null,null,null,null,null,null,"",""]
[null,null,null,null,null,null,null,null,null,"","",null,null,null,null,null,null,null,null,null,null,null,null,"",""]
[null,null,null,null,null,null,null,null,null,"","",null,null,null,null,null,null,null,null,null,null,null,null,"",""]
[null,null,null,null,null,null,null,null,null,"","",null,null,null,null,null,null,null,null,null,null,null,null,"",""]
[null,null,null,null,null,null,null,null,null,"","",null,null,null,null,null,null,null,null,null,null,null,null,"",""]
[null,null,null,null,null,null,null,null,null,"","",null,null,null,null,null,null,null,null,null,null,null,null,"",""]
[null,null,null,null,null,null,null,null,null,"","",null,null,null,null,null,null,null,null,null,null,null,null,"",""]
[null,null,null,null,null,null,null,null,null,"","",null,null,null,null,null,null,null,null,null,null,null,null,"",""]
[null,null,null,null,null,null,null,null,null,"","",null,null,null,null,null,null,null,null,null,null,null,null,"",""]
[null,null,null,null,null,null,null,null,null,"","",null,null,null,null,null,null,null,null,null,null,null,null,"",""]
[null,null,null,null,null,null,null,null,null,"","",null,null,null,null,null,null,null,null,null,null,null,null,"",""]
[null,null,null,null,null,null,null,null,null,"","",null,null,null,null,null,null,null,null,null,null,null,null,"",""]
[null,null,null,null,null,null,null,null,null,"","",null,null,null,null,null,null,null,null,null,null,null,null,"",""]
[null,null,null,null,null,null,null,null,null,"","",null,null,null,null,null,null,null,null,null,null,null,null,"",""]
[null,null,null,null,null,null,null,null,null,"","",null,null,null,null,null,null,null,null,null,null,null,null,"",""]
[null,null,null,null,null,null,null,null,null,"","",null,null,null,null,null,null,null,null,null,null,null,null,"",{"$f":"IF(X518=X519,\"\",\"نهاية اللجنة\")","v":""}]
[null,null,null,null,null,null,null,null,null,"","",null,null,null,null,null,null,null,null,null,null,null,null,"",""]
[null,null,null,null,null,null,null,null,null,"","",null,null,null,null,null,null,null,null,null,null,null,null,"",""]
[null,null,null,null,null,null,null,null,null,"","",null,null,null,null,null,null,null,null,null,null,null,null,"",""]
[null,null,null,null,null,null,null,null,null,"","",null,null,null,null,null,null,null,null,null,null,null,null,"",""]
[null,null,null,null,null,null,null,null,null,"","",null,null,null,null,null,null,null,null,null,null,null,null,"",""]
[null,null,null,null,null,null,null,null,null,"","",null,null,null,null,null,null,null,null,null,null,null,null,"",""]
[null,null,null,null,null,null,null,null,null,"","",null,null,null,null,null,null,null,null,null,null,null,null,"",""]
[null,null,null,null,null,null,null,null,null,"","",null,null,null,null,null,null,null,null,null,null,null,null,"",""]
[null,null,null,null,null,null,null,null,null,"","",null,null,null,null,null,null,null,null,null,null,null,null,"",""]
[null,null,null,null,null,null,null,null,null,"","",null,null,null,null,null,null,null,null,null,null,null,null,"",""]
[null,null,null,null,null,null,null,null,null,"","",null,null,null,null,null,null,null,null,null,null,null,null,"",""]
[null,null,null,null,null,null,null,null,null,"","",null,null,null,null,null,null,null,null,null,null,null,null,"",""]
[null,null,null,null,null,null,null,null,null,"","",null,null,null,null,null,null,null,null,null,null,null,null,"",""]
[null,null,null,null,null,null,null,null,null,"","",null,null,null,null,null,null,null,null,null,null,null,null,"",""]
[null,null,null,null,null,null,null,null,null,"","",null,null,null,null,null,null,null,null,null,null,null,null,"",""]
[null,null,null,null,null,null,null,null,null,"","",null,null,null,null,null,null,null,null,null,null,null,null,"",""]
[null,null,null,null,null,null,null,null,null,"","",null,null,null,null,null,null,null,null,null,null,null,null,"",""]
[null,null,null,null,null,null,null,null,null,"","",null,null,null,null,null,null,null,null,null,null,null,null,"",""]
[null,null,null,null,null,null,null,null,null,"","",null,null,null,null,null,null,null,null,null,null,null,null,"",""]
[null,null,null,null,null,null,null,null,null,"","",null,null,null,null,null,null,null,null,null,null,null,null,"",""]
[null,null,null,null,null,null,null,null,null,"","",null,null,null,null,null,null,null,null,null,null,null,null,"",""]
[null,null,null,null,null,null,null,null,null,"","",null,null,null,null,null,null,null,null,null,null,null,null,"",""]
[null,null,null,null,null,null,null,null,null,"","",null,null,null,null,null,null,null,null,null,null,null,null,"",""]
[null,null,null,null,null,null,null,null,null,"","",null,null,null,null,null,null,null,null,null,null,null,null,"",""]
[null,null,null,null,null,null,null,null,null,"","",null,null,null,null,null,null,null,null,null,null,null,null,"",""]
[null,null,null,null,null,null,null,null,null,"","",null,null,null,null,null,null,null,null,null,null,null,null,"",""]
[null,null,null,null,null,null,null,null,null,"","",null,null,null,null,null,null,null,null,null,null,null,null,"",""]
[null,null,null,null,null,null,null,null,null,"","",null,null,null,null,null,null,null,null,null,null,null,null,"",""]
[null,null,null,null,null,null,null,null,null,"","",null,null,null,null,null,null,null,null,null,null,null,null,"",""]
[null,null,null,null,null,null,null,null,null,"","",null,null,null,null,null,null,null,null,null,null,null,null,"",""]
[null,null,null,null,null,null,null,null,null,"","",null,null,null,null,null,null,null,null,null,null,null,null,"",""]
[null,null,null,null,null,null,null,null,null,"","",null,null,null,null,null,null,null,null,null,null,null,null,"",""]
[null,null,null,null,null,null,null,null,null,"","",null,null,null,null,null,null,null,null,null,null,null,null,"",""]
[null,null,null,null,null,null,null,null,null,"","",null,null,null,null,null,null,null,null,null,null,null,null,"",""]
[null,null,null,null,null,null,null,null,null,"","",null,null,null,null,null,null,null,null,null,null,null,null,"",""]
[null,null,null,null,null,null,null,null,null,"","",null,null,null,null,null,null,null,null,null,null,null,null,"",""]
[null,null,null,null,null,null,null,null,null,"","",null,null,null,null,null,null,null,null,null,null,null,null,"",""]
[null,null,null,null,null,null,null,null,null,{"$f":"IF(J555=\"\",\"\",IF(J555+1>$K$2,\"\",J555+1))","v":""},{"$f":"IF(K555=\"\",\"\",IF(K555+1>$K$3,\"\",K555+1))","v":""},null,null,null,null,null,null,null,null,null,null,null,null,{"$f":"IF(K556=\"\",\"\",VLOOKUP(K556,جلوس,4))","v":""},""]
[null,null,null,null,null,null,null,null,null,"","",null,null,null,null,null,null,null,null,null,null,null,null,"",""]
[null,null,null,null,null,null,null,null,null,"","",null,null,null,null,null,null,null,null,null,null,null,null,"",""]
[null,null,null,null,null,null,null,null,null,"","",null,null,null,null,null,null,null,null,null,null,null,null,"",""]
[null,null,null,null,null,null,null,null,null,"","",null,null,null,null,null,null,null,null,null,null,null,null,"",""]
[null,null,null,null,null,null,null,null,null,"","",null,null,null,null,null,null,null,null,null,null,null,null,"",""]
[null,null,null,null,null,null,null,null,null,"","",null,null,null,null,null,null,null,null,null,null,null,null,"",""]
[null,null,null,null,null,null,null,null,null,"","",null,null,null,null,null,null,null,null,null,null,null,null,"",""]
[null,null,null,null,null,null,null,null,null,"","",null,null,null,null,null,null,null,null,null,null,null,null,"",""]
[null,null,null,null,null,null,null,null,null,"","",null,null,null,null,null,null,null,null,null,null,null,null,"",""]
[null,null,null,null,null,null,null,null,null,"","",null,null,null,null,null,null,null,null,null,null,null,null,"",""]
[null,null,null,null,null,null,null,null,null,"","",null,null,null,null,null,null,null,null,null,null,null,null,"",""]
[null,null,null,null,null,null,null,null,null,"","",null,null,null,null,null,null,null,null,null,null,null,null,"",""]
[null,null,null,null,null,null,null,null,null,"","",null,null,null,null,null,null,null,null,null,null,null,null,"",""]
[null,null,null,null,null,null,null,null,null,"","",null,null,null,null,null,null,null,null,null,null,null,null,"",""]
[null,null,null,null,null,null,null,null,null,"","",null,null,null,null,null,null,null,null,null,null,null,null,"",""]
[null,null,null,null,null,null,null,null,null,"","",null,null,null,null,null,null,null,null,null,null,null,null,"",""]
[null,null,null,null,null,null,null,null,null,"","",null,null,null,null,null,null,null,null,null,null,null,null,"",""]
[null,null,null,null,null,null,null,null,null,"","",null,null,null,null,null,null,null,null,null,null,null,null,"",""]
[null,null,null,null,null,null,null,null,null,"","",null,null,null,null,null,null,null,null,null,null,null,null,"",""]
[null,null,null,null,null,null,null,null,null,"","",null,null,null,null,null,null,null,null,null,null,null,null,"",""]
[null,null,null,null,null,null,null,null,null,"","",null,null,null,null,null,null,null,null,null,null,null,null,"",""]
[null,null,null,null,null,null,null,null,null,"","",null,null,null,null,null,null,null,null,null,null,null,null,"",""]
[null,null,null,null,null,null,null,null,null,"","",null,null,null,null,null,null,null,null,null,null,null,null,"",""]
[null,null,null,null,null,null,null,null,null,"","",null,null,null,null,null,null,null,null,null,null,null,null,"",""]
[null,null,null,null,null,null,null,null,null,"","",null,null,null,null,null,null,null,null,null,null,null,null,"",""]
[null,null,null,null,null,null,null,null,null,"","",null,null,null,null,null,null,null,null,null,null,null,null,"",{"$f":"IF(X582=X583,\"\",\"نهاية اللجنة\")","v":""}]
[null,null,null,null,null,null,null,null,null,"","",null,null,null,null,null,null,null,null,null,null,null,null,"",""]
[null,null,null,null,null,null,null,null,null,"","",null,null,null,null,null,null,null,null,null,null,null,null,"",""]
[null,null,null,null,null,null,null,null,null,"","",null,null,null,null,null,null,null,null,null,null,null,null,"",""]
[null,null,null,null,null,null,null,null,null,"","",null,null,null,null,null,null,null,null,null,null,null,null,"",""]
[null,null,null,null,null,null,null,null,null,"","",null,null,null,null,null,null,null,null,null,null,null,null,"",""]
[null,null,null,null,null,null,null,null,null,"","",null,null,null,null,null,null,null,null,null,null,null,null,"",""]
[null,null,null,null,null,null,null,null,null,"","",null,null,null,null,null,null,null,null,null,null,null,null,"",""]
[null,null,null,null,null,null,null,null,null,"","",null,null,null,null,null,null,null,null,null,null,null,null,"",""]
[null,null,null,null,null,null,null,null,null,"","",null,null,null,null,null,null,null,null,null,null,null,null,"",""]
[null,null,null,null,null,null,null,null,null,"","",null,null,null,null,null,null,null,null,null,null,null,null,"",""]
[null,null,null,null,null,null,null,null,null,"","",null,null,null,null,null,null,null,null,null,null,null,null,"",""]
[null,null,null,null,null,null,null,null,null,"","",null,null,null,null,null,null,null,null,null,null,null,null,"",""]
[null,null,null,null,null,null,null,null,null,"","",null,null,null,null,null,null,null,null,null,null,null,null,"",""]
[null,null,null,null,null,null,null,null,null,"","",null,null,null,null,null,null,null,null,null,null,null,null,"",""]
[null,null,null,null,null,null,null,null,null,"","",null,null,null,null,null,null,null,null,null,null,null,null,"",""]
[null,null,null,null,null,null,null,null,null,"","",null,null,null,null,null,null,null,null,null,null,null,null,"",""]
[null,null,null,null,null,null,null,null,null,"","",null,null,null,null,null,null,null,null,null,null,null,null,"",""]
[null,null,null,null,null,null,null,null,null,"","",null,null,null,null,null,null,null,null,null,null,null,null,"",""]
[null,null,null,null,null,null,null,null,null,"","",null,null,null,null,null,null,null,null,null,null,null,null,"",""]
[null,null,null,null,null,null,null,null,null,"","",null,null,null,null,null,null,null,null,null,null,null,null,"",""]
[null,null,null,null,null,null,null,null,null,"","",null,null,null,null,null,null,null,null,null,null,null,null,"",""]
[null,null,null,null,null,null,null,null,null,"","",null,null,null,null,null,null,null,null,null,null,null,null,"",""]

{"sheet":"Sheet3","index":2,"n_rows":604,"n_cols":25,"rows_kept":604,"cut":false,"hidden":false,"merged":[[0,3,1,7],[0,13,2,21],[2,3,3,3],[2,4,2,5]]}
[null,null,null,"الصف السادس الابتدائي",null,null,null,null,null,null,null,null,null,"اكتب فى الخلايا ذات اللون الابيض فقط"]
[null,null,null,null,null,null,null,null,null,"العدد",{"$f":"SUM(G5:G44)","v":208}]
[null,null,null,"م","اكتب اول رقم جلوس",null,{"$f":"SUM(G5:G44)","v":208},{"$f":"COUNT(H5:H44)","v":11},null,"أعلى رقم",{"$f":"MAX(E5:F44)","v":808},null,null,null,null,null,null,null,null,null,null,null,null,{"$f":"COUNT(K5:K297)","v":208},{"$f":"COUNTA(N5:N297)","v":208}]
[null,null,null,null,"من","إلى","عدد اللجنة","اللجنة",null,"م","رقم الجلوس","م","الكود"," الاسم","النوع","الديانة","حالة القيد","الفصل","الدمج","الصف","الترم الأول","الترم الثاني",null,"اللجنة","نهاية اللجنة"]
[null,"مقيد",{"$f":"COUNTA(N5:N297)","v":208},{"$f":"IF(E5=\"\",\"\",COUNT($E$5:E5))","v":1},601,{"$f":"IF(G5=\"\",\"\",E5+G5-1)","v":620},20,{"$f":"IF(E5=\"\",\"\",COUNT($E$5:E5))","v":1},null,1,{"$f":"$E$5","v":601},1,475493173,"ع1","ذكر","مسلم","ناجح ومنقول","(4 / 6)","لا يوجد","السادس","نصف العام","آخر العام","م",{"$f":"IF(K5=\"\",\"\",VLOOKUP(K5,جلوس,4))","v":11},{"$f":"IF(X5=X6,\"\",\"نهاية اللجنة\")","v":""}]
[null,"موزع",{"$f":"SUM(G5:G44)","v":208},{"$f":"IF(E6=\"\",\"\",COUNT($E$5:E6))","v":2},{"$f":"IF(G6=\"\",\"\",F5+1)","v":621},{"$f":"IF(G6=\"\",\"\",E6+G6-1)","v":640},20,{"$f":"IF(E6=\"\",\"\",COUNT($E$5:E6))","v":2},null,{"$f":"IF(J5=\"\",\"\",IF(J5+1>$K$2,\"\",J5+1))","v":2},{"$f":"IF(K5=\"\",\"\",IF(K5+1>$K$3,\"\",K5+1))","v":602},2,474829354,"ع2","ذكر","مسلم","ناجح ومنقول","(3 / 6)","يوجد","السادس","نصف العام","آخر العام","م",11,{"$f":"IF(X6=X7,\"\",\"نهاية اللجنة\")","v":""}]
[null,"متبقى",{"$f":"C5-C6","v":0},{"$f":"IF(E7=\"\",\"\",COUNT($E$5:E7))","v":3},{"$f":"IF(G7=\"\",\"\",F6+1)","v":641},660,20,{"$f":"IF(E7=\"\",\"\",COUNT($E$5:E7))","v":3},null,{"$f":"IF(J6=\"\",\"\",IF(J6+1>$K$2,\"\",J6+1))","v":3},{"$f":"IF(K6=\"\",\"\",IF(K6+1>$K$3,\"\",K6+1))","v":603},3,475393666,"ع3","ذكر","مسلم","ناجح ومنقول","(2 / 6)","لا يوجد","السادس","نصف العام","آخر العام","م",11,""]
[null,null,null,{"$f":"IF(E8=\"\",\"\",COUNT($E$5:E8))","v":4},661,680,20,{"$f":"IF(E8=\"\",\"\",COUNT($E$5:E8))","v":4},null,4,604,4,472912822,"ع4","ذكر","مسلم","ناجح ومنقول","(4 / 6)","لا يوجد","السادس","نصف العام","آخر العام","م",11,""]
[null,null,"ذكر",{"$f":"IF(E9=\"\",\"\",COUNT($E$5:E9))","v":5},681,700,20,{"$f":"IF(E9=\"\",\"\",COUNT($E$5:E9))","v":5},null,5,605,5,476197746,"ع5","ذكر","مسلم","ناجح ومنقول","(3 / 6)","لا يوجد","السادس","نصف العام","آخر العام","م",11,""]
[null,null,"انثى",{"$f":"IF(E10=\"\",\"\",COUNT($E$5:E10))","v":6},701,720,20,{"$f":"IF(E10=\"\",\"\",COUNT($E$5:E10))","v":6},null,6,606,6,472913380,"ع6","ذكر","مسلم","ناجح ومنقول","(2 / 6)","لا يوجد","السادس","نصف العام","آخر العام","م",11,""]
[null,null,null,{"$f":"IF(E11=\"\",\"\",COUNT($E$5:E11))","v":7},721,740,20,{"$f":"IF(E11=\"\",\"\",COUNT($E$5:E11))","v":7},null,7,607,7,474985006,"ع7","ذكر","مسلم","ناجح ومنقول","(2 / 6)","لا يوجد","السادس","نصف العام","آخر العام","م",11,""]
[null,null,null,{"$f":"IF(E12=\"\",\"\",COUNT($E$5:E12))","v":8},741,760,20,{"$f":"IF(E12=\"\",\"\",COUNT($E$5:E12))","v":8},null,8,608,8,474430404,"ع8","ذكر","مسلم","ناجح ومنقول","(4 / 6)","لا يوجد","السادس","نصف العام","آخر العام","م",11,""]
[null,null,null,{"$f":"IF(E13=\"\",\"\",COUNT($E$5:E13))","v":9},761,780,20,{"$f":"IF(E13=\"\",\"\",COUNT($E$5:E13))","v":9},null,9,609,9,474727551,"ع9","ذكر","مسلم","ناجح ومنقول","(1 / 6)","لا يوجد","السادس","نصف العام","آخر العام","م",11,""]
[null,null,null,{"$f":"IF(E14=\"\",\"\",COUNT($E$5:E14))","v":10},781,800,20,{"$f":"IF(E14=\"\",\"\",COUNT($E$5:E14))","v":10},null,10,610,10,475394335,"ع10","ذكر","مسلم","ناجح ومنقول","(1 / 6)","لا يوجد","السادس","نصف العام","آخر العام","م",11,""]
[null,null,null,{"$f":"IF(E15=\"\",\"\",COUNT($E$5:E15))","v":11},801,808,8,{"$f":"IF(E15=\"\",\"\",COUNT($E$5:E15))","v":11},null,11,611,11,472882721,"ع11","ذكر","مسلم","ناجح ومنقول","(4 / 6)","لا يوجد","السادس","نصف العام","آخر العام","م",11,""]
[null,null,null,{"$f":"IF(E16=\"\",\"\",COUNT($E$5:E16))","v":""},"","",null,{"$f":"IF(E16=\"\",\"\",COUNT($E$5:E16))","v":""},null,12,612,12,474772628,"ع12","ذكر","مسلم","ناجح ومنقول","(2 / 6)","لا يوجد","السادس","نصف العام","آخر العام","م",11,""]
[null,null,null,{"$f":"IF(E17=\"\",\"\",COUNT($E$5:E17))","v":""},"","",null,{"$f":"IF(E17=\"\",\"\",COUNT($E$5:E17))","v":""},null,13,613,13,474731544,"ع13","ذكر","مسلم","ناجح ومنقول","(2 / 6)","لا يوجد","السادس","نصف العام","آخر العام","م",11,""]
[null,null,null,{"$f":"IF(E18=\"\",\"\",COUNT($E$5:E18))","v":""},"","",null,{"$f":"IF(E18=\"\",\"\",COUNT($E$5:E18))","v":""},null,14,614,14,474624970,"ع14","ذكر","مسلم","ناجح ومنقول","(4 / 6)","لا يوجد","السادس","نصف العام","آخر العام","م",11,""]
[null,null,null,{"$f":"IF(E19=\"\",\"\",COUNT($E$5:E19))","v":""},"","",null,{"$f":"IF(E19=\"\",\"\",COUNT($E$5:E19))","v":""},null,15,615,15,468499222,"ع15","ذكر","مسلم","ناجح ومنقول","(2 / 6)","لا يوجد","السادس","نصف العام","آخر العام","م",11,""]
[null,null,null,{"$f":"IF(E20=\"\",\"\",COUNT($E$5:E20))","v":""},"","",null,{"$f":"IF(E20=\"\",\"\",COUNT($E$5:E20))","v":""},null,16,616,16,474768494,"ع16","ذكر","مسلم","ناجح ومنقول","(4 / 6)","لا يوجد","السادس","نصف العام","آخر العام","م",11,""]
[null,null,null,{"$f":"IF(E21=\"\",\"\",COUNT($E$5:E21))","v":""},"","",null,{"$f":"IF(E21=\"\",\"\",COUNT($E$5:E21))","v":""},null,17,617,17,475390317,"ع17","ذكر","مسلم","ناجح ومنقول","(4 / 6)","لا يوجد","السادس","نصف العام","آخر العام","م",11,""]
[null,null,null,{"$f":"IF(E22=\"\",\"\",COUNT($E$5:E22))","v":""},"","",null,{"$f":"IF(E22=\"\",\"\",COUNT($E$5:E22))","v":""},null,18,618,18,472914600,"ع18","ذكر","مسلم","ناجح ومنقول","(2 / 6)","لا يوجد","السادس","نصف العام","آخر العام","م",11,""]
[null,null,null,{"$f":"IF(E23=\"\",\"\",COUNT($E$5:E23))","v":""},"","",null,{"$f":"IF(E23=\"\",\"\",COUNT($E$5:E23))","v":""},null,19,619,19,474489523,"ع19","ذكر","مسلم","ناجح ومنقول","(1 / 6)","لا يوجد","السادس","نصف العام","آخر العام","م",11,""]
[null,null,null,{"$f":"IF(E24=\"\",\"\",COUNT($E$5:E24))","v":""},"","",null,{"$f":"IF(E24=\"\",\"\",COUNT($E$5:E24))","v":""},null,20,620,20,475492671,"ع20","ذكر","مسيحي","ناجح ومنقول","(1 / 6)","لا يوجد","السادس","نصف العام","آخر العام","م",11,""]
[null,null,null,{"$f":"IF(E25=\"\",\"\",COUNT($E$5:E25))","v":""},"","",null,{"$f":"IF(E25=\"\",\"\",COUNT($E$5:E25))","v":""},null,21,621,21,474859929,"ع21","ذكر","مسلم","ناجح ومنقول","(2 / 6)","لا يوجد","السادس","نصف العام","آخر العام","م",11,""]
[null,null,null,{"$f":"IF(E26=\"\",\"\",COUNT($E$5:E26))","v":""},"","",null,{"$f":"IF(E26=\"\",\"\",COUNT($E$5:E26))","v":""},null,22,622,22,475394760,"ع22","ذكر","مسيحي","ناجح ومنقول","(1 / 6)","لا يوجد","السادس","نصف العام","آخر العام","م",11,""]
[null,null,null,{"$f":"IF(E27=\"\",\"\",COUNT($E$5:E27))","v":""},"","",null,{"$f":"IF(E27=\"\",\"\",COUNT($E$5:E27))","v":""},null,23,623,23,475217237,"ع23","ذكر","مسلم","ناجح ومنقول","(4 / 6)","لا يوجد","السادس","نصف العام","آخر العام","م",11,""]
[null,null,null,{"$f":"IF(E28=\"\",\"\",COUNT($E$5:E28))","v":""},"","",null,{"$f":"IF(E28=\"\",\"\",COUNT($E$5:E28))","v":""},null,24,624,24,474832860,"ع24","ذكر","مسلم","ناجح ومنقول","(3 / 6)","لا يوجد","السادس","نصف العام","آخر العام","م",11,""]
[null,null,null,{"$f":"IF(E29=\"\",\"\",COUNT($E$5:E29))","v":""},"","",null,{"$f":"IF(E29=\"\",\"\",COUNT($E$5:E29))","v":""},null,25,625,25,470596251,"ع25","ذكر","مسلم","ناجح ومنقول","(1 / 6)","لا يوجد","السادس","نصف العام","آخر العام","م",11,""]
[null,null,null,{"$f":"IF(E30=\"\",\"\",COUNT($E$5:E30))","v":""},"","",null,{"$f":"IF(E30=\"\",\"\",COUNT($E$5:E30))","v":""},null,26,626,26,475390241,"ع26","ذكر","مسلم","ناجح ومنقول","(1 / 6)","لا يوجد","السادس","نصف العام","آخر العام","م",11,""]
[null,null,null,{"$f":"IF(E31=\"\",\"\",COUNT($E$5:E31))","v":""},"","",null,{"$f":"IF(E31=\"\",\"\",COUNT($E$5:E31))","v":""},null,27,627,27,475394193,"ع27","ذكر","مسلم","ناجح ومنقول","(3 / 6)","لا يوجد","السادس","نصف العام","آخر العام","م",11,""]
[null,null,null,{"$f":"IF(E32=\"\",\"\",COUNT($E$5:E32))","v":""},"","",null,{"$f":"IF(E32=\"\",\"\",COUNT($E$5:E32))","v":""},null,28,628,28,475394626,"ع28","ذكر","مسلم","ناجح ومنقول","(4 / 6)","لا يوجد","السادس","نصف العام","آخر العام","م",11,""]
[null,null,null,{"$f":"IF(E33=\"\",\"\",COUNT($E$5:E33))","v":""},"","",null,{"$f":"IF(E33=\"\",\"\",COUNT($E$5:E33))","v":""},null,29,629,29,469592681,"ع29","ذكر","مسلم","راسب وباق للاعادة","(2 / 6)","لا يوجد","السادس","نصف العام","آخر العام","م",11,""]
[null,null,null,{"$f":"IF(E34=\"\",\"\",COUNT($E$5:E34))","v":""},"","",null,{"$f":"IF(E34=\"\",\"\",COUNT($E$5:E34))","v":""},null,30,630,30,468156056,"ع30","ذكر","مسلم","ناجح ومنقول","(4 / 6)","لا يوجد","السادس","نصف العام","آخر العام","م",11,""]
[null,null,null,{"$f":"IF(E35=\"\",\"\",COUNT($E$5:E35))","v":""},"","",null,{"$f":"IF(E35=\"\",\"\",COUNT($E$5:E35))","v":""},null,31,631,31,474840929,"ع31","ذكر","مسلم","ناجح ومنقول","(3 / 6)","لا يوجد","السادس","نصف العام","آخر العام","م",11,""]
[null,null,null,{"$f":"IF(E36=\"\",\"\",COUNT($E$5:E36))","v":""},"","",null,{"$f":"IF(E36=\"\",\"\",COUNT($E$5:E36))","v":""},null,32,632,32,474618271,"ع32","ذكر","مسلم","ناجح ومنقول","(1 / 6)","لا يوجد","السادس","نصف العام","آخر العام","م",11,""]
[null,null,null,{"$f":"IF(E37=\"\",\"\",COUNT($E$5:E37))","v":""},"","",null,{"$f":"IF(E37=\"\",\"\",COUNT($E$5:E37))","v":""},null,33,633,33,474348285,"ع33","ذكر","مسلم","ناجح ومنقول","(3 / 6)","لا يوجد","السادس","نصف العام","آخر العام","م",11,""]
[null,null,null,{"$f":"IF(E38=\"\",\"\",COUNT($E$5:E38))","v":""},"","",null,{"$f":"IF(E38=\"\",\"\",COUNT($E$5:E38))","v":""},null,34,634,34,475393029,"ع34","ذكر","مسلم","ناجح ومنقول","(1 / 6)","لا يوجد","السادس","نصف العام","آخر العام","م",11,""]
[null,null,null,{"$f":"IF(E39=\"\",\"\",COUNT($E$5:E39))","v":""},"","",null,{"$f":"IF(E39=\"\",\"\",COUNT($E$5:E39))","v":""},null,35,635,35,472914749,"ع35","ذكر","مسلم","ناجح ومنقول","(2 / 6)","لا يوجد","السادس","نصف العام","آخر العام","م",11,""]
[null,null,null,{"$f":"IF(E40=\"\",\"\",COUNT($E$5:E40))","v":""},"","",null,{"$f":"IF(E40=\"\",\"\",COUNT($E$5:E40))","v":""},null,36,636,36,472915050,"ع36","ذكر","مسلم","ناجح ومنقول","(1 / 6)","لا يوجد","السادس","نصف العام","آخر العام","م",11,""]
[null,null,null,{"$f":"IF(E41=\"\",\"\",COUNT($E$5:E41))","v":""},"","",null,{"$f":"IF(E41=\"\",\"\",COUNT($E$5:E41))","v":""},null,37,637,37,475393644,"ع37","ذكر","مسلم","ناجح ومنقول","(1 / 6)","لا يوجد","السادس","نصف العام","آخر العام","م",11,""]
[null,null,null,{"$f":"IF(E42=\"\",\"\",COUNT($E$5:E42))","v":""},"","",null,{"$f":"IF(E42=\"\",\"\",COUNT($E$5:E42))","v":""},null,38,638,38,475394382,"ع38","ذكر","مسلم","ناجح ومنقول","(1 / 6)","لا يوجد","السادس","نصف العام","آخر العام","م",11,""]
[null,null,null,{"$f":"IF(E43=\"\",\"\",COUNT($E$5:E43))","v":""},"","",null,{"$f":"IF(E43=\"\",\"\",COUNT($E$5:E43))","v":""},null,39,639,39,474982497,"ع39","ذكر","مسلم","ناجح ومنقول","(2 / 6)","لا يوجد","السادس","نصف العام","آخر العام","م",11,""]
[null,null,null,{"$f":"IF(E44=\"\",\"\",COUNT($E$5:E44))","v":""},"","",null,{"$f":"IF(E44=\"\",\"\",COUNT($E$5:E44))","v":""},null,40,640,40,476726210,"ع40","ذكر","مسلم","ناجح ومنقول","(2 / 6)","لا يوجد","السادس","نصف العام","آخر العام","م",11,""]
[null,null,null,null,null,null,null,null,null,41,641,41,473904466,"ع41","ذكر","مسلم","ناجح ومنقول","(2 / 6)","لا يوجد","السادس","نصف العام","آخر العام","م",11,""]
[null,null,null,null,null,null,null,null,null,42,642,42,474743167,"ع42","ذكر","مسلم","ناجح ومنقول","(3 / 6)","لا يوجد","السادس","نصف العام","آخر العام","م",11,""]
[null,null,null,null,null,null,null,null,null,43,643,43,472915557,"ع43","ذكر","مسلم","ناجح ومنقول","(3 / 6)","لا يوجد","السادس","نصف العام","آخر العام","م",11,""]
[null,null,null,null,null,null,null,null,null,44,644,44,474929581,"ع44","ذكر","مسلم","ناجح ومنقول","(1 / 6)","لا يوجد","السادس","نصف العام","آخر العام","م",11,""]
[null,null,null,null,null,null,null,null,null,45,645,45,481067088,"ع45","ذكر","مسلم","ناجح ومنقول","(2 / 6)","لا يوجد","السادس","نصف العام","آخر العام","م",11,""]
[null,null,null,null,null,null,null,null,null,46,646,46,472915411,"ع46","ذكر","مسلم","ناجح ومنقول","(2 / 6)","لا يوجد","السادس","نصف العام","آخر العام","م",11,""]
[null,null,null,null,null,null,null,null,null,47,647,47,475399646,"ع47","ذكر","مسلم","ناجح ومنقول","(4 / 6)","لا يوجد","السادس","نصف العام","آخر العام","م",11,""]
[null,null,null,null,null,null,null,null,null,48,648,48,475330462,"ع48","ذكر","مسلم","ناجح ومنقول","(2 / 6)","لا يوجد","السادس","نصف العام","آخر العام","م",11,""]
[null,null,null,null,null,null,null,null,null,49,649,49,474772409,"ع49","ذكر","مسلم","ناجح ومنقول","(1 / 6)","لا يوجد","السادس","نصف العام","آخر العام","م",11,""]
[null,null,null,null,null,null,null,null,null,50,650,50,474778959,"ع50","ذكر","مسلم","ناجح ومنقول","(4 / 6)","لا يوجد","السادس","نصف العام","آخر العام","م",11,""]
[null,null,null,null,null,null,null,null,null,51,651,51,463636264,"ع51","ذكر","مسلم","ناجح ومنقول","(3 / 6)","لا يوجد","السادس","نصف العام","آخر العام","م",11,""]
[null,null,null,null,null,null,null,null,null,52,652,52,474717372,"ع52","ذكر","مسلم","ناجح ومنقول","(3 / 6)","لا يوجد","السادس","نصف العام","آخر العام","م",11,""]
[null,null,null,null,null,null,null,null,null,53,653,53,475394121,"ع53","ذكر","مسلم","ناجح ومنقول","(4 / 6)","لا يوجد","السادس","نصف العام","آخر العام","م",11,""]
[null,null,null,null,null,null,null,null,null,54,654,54,475393707,"ع54","ذكر","مسلم","ناجح ومنقول","(4 / 6)","لا يوجد","السادس","نصف العام","آخر العام","م",11,""]
[null,null,null,null,null,null,null,null,null,55,655,55,472915688,"ع55","ذكر","مسلم","ناجح ومنقول","(3 / 6)","لا يوجد","السادس","نصف العام","آخر العام","م",11,""]
[null,null,null,null,null,null,null,null,null,56,656,56,475676639,"ع56","ذكر","مسلم","ناجح ومنقول","(1 / 6)","لا يوجد","السادس","نصف العام","آخر العام","م",11,""]
[null,null,null,null,null,null,null,null,null,57,657,57,480881720,"ع57","ذكر","مسلم","ناجح ومنقول","(4 / 6)","لا يوجد","السادس","نصف العام","آخر العام","م",11,""]
[null,null,null,null,null,null,null,null,null,58,658,58,475308431,"ع58","ذكر","مسلم","ناجح ومنقول","(2 / 6)","لا يوجد","السادس","نصف العام","آخر العام","م",11,""]
[null,null,null,null,null,null,null,null,null,59,659,59,475394689,"ع59","ذكر","مسلم","ناجح ومنقول","(3 / 6)","لا يوجد","السادس","نصف العام","آخر العام","م",11,""]
[null,null,null,null,null,null,null,null,null,60,660,60,463590195,"ع60","ذكر","مسلم","ناجح ومنقول","(4 / 6)","لا يوجد","السادس","نصف العام","آخر العام","م",11,""]
[null,null,null,null,null,null,null,null,null,61,661,61,474711823,"ع61","ذكر","مسلم","ناجح ومنقول","(1 / 6)","لا يوجد","السادس","نصف العام","آخر العام","م",11,""]
[null,null,null,null,null,null,null,null,null,62,662,62,474444975,"ع62","ذكر","مسلم","ناجح ومنقول","(1 / 6)","لا يوجد","السادس","نصف العام","آخر العام","م",11,""]
[null,null,null,null,null,null,null,null,null,63,663,63,475290935,"ع63","ذكر","مسلم","ناجح ومنقول","(3 / 6)","لا يوجد","السادس","نصف العام","آخر العام","م",11,""]
[null,null,null,null,null,null,null,null,null,64,664,64,469925602,"ع64","ذكر","مسلم","ناجح ومنقول","(1 / 6)","لا يوجد","السادس","نصف العام","آخر العام","م",11,""]
[null,null,null,null,null,null,null,null,null,65,665,65,475332817,"ع65","ذكر","مسلم","ناجح ومنقول","(4 / 6)","لا يوجد","السادس","نصف العام","آخر العام","م",{"$f":"IF(K69=\"\",\"\",VLOOKUP(K69,جلوس,4))","v":11},""]
[null,null,null,null,null,null,null,null,null,66,666,66,474503659,"ع66","ذكر","مسلم","ناجح ومنقول","(3 / 6)","لا يوجد","السادس","نصف العام","آخر العام","م",11,{"$f":"IF(X70=X71,\"\",\"نهاية اللجنة\")","v":""}]
[null,null,null,null,null,null,null,null,null,{"$f":"IF(J70=\"\",\"\",IF(J70+1>$K$2,\"\",J70+1))","v":67},{"$f":"IF(K70=\"\",\"\",IF(K70+1>$K$3,\"\",K70+1))","v":667},67,474940248,"ع67","ذكر","مسلم","ناجح ومنقول","(2 / 6)","لا يوجد","السادس","نصف العام","آخر العام","م",11,""]
[null,null,null,null,null,null,null,null,null,68,668,68,474966265,"ع68","ذكر","مسلم","ناجح ومنقول","(3 / 6)","لا يوجد","السادس","نصف العام","آخر العام","م",11,""]
[null,null,null,null,null,null,null,null,null,69,669,69,474815894,"ع69","ذكر","مسلم","ناجح ومنقول","(3 / 6)","لا يوجد","السادس","نصف العام","آخر العام","م",11,""]
[null,null,null,null,null,null,null,null,null,70,670,70,475394242,"ع70","ذكر","مسلم","ناجح ومنقول","(3 / 6)","لا يوجد","السادس","نصف العام","آخر العام","م",11,""]
[null,null,null,null,null,null,null,null,null,71,671,71,474945406,"ع71","ذكر","مسلم","ناجح ومنقول","(1 / 6)","لا يوجد","السادس","نصف العام","آخر العام","م",11,""]
[null,null,null,null,null,null,null,null,null,72,672,72,474958246,"ع72","ذكر","مسلم","ناجح ومنقول","(2 / 6)","لا يوجد","السادس","نصف العام","آخر العام","م",11,""]
[null,null,null,null,null,null,null,null,null,73,673,73,475400959,"ع73","ذكر","مسلم","ناجح ومنقول","(2 / 6)","لا يوجد","السادس","نصف العام","آخر العام","م",11,""]
[null,null,null,null,null,null,null,null,null,74,674,74,475400826,"ع74","ذكر","مسلم","ناجح ومنقول","(4 / 6)","لا يوجد","السادس","نصف العام","آخر العام","م",11,""]
[null,null,null,null,null,null,null,null,null,75,675,75,472911918,"ع75","ذكر","مسلم","ناجح ومنقول","(4 / 6)","لا يوجد","السادس","نصف العام","آخر العام","م",11,""]
[null,null,null,null,null,null,null,null,null,76,676,76,475394139,"ع76","ذكر","مسلم","ناجح ومنقول","(4 / 6)","لا يوجد","السادس","نصف العام","آخر العام","م",11,""]
[null,null,null,null,null,null,null,null,null,77,677,77,474919134,"ع77","ذكر","مسلم","ناجح ومنقول","(3 / 6)","لا يوجد","السادس","نصف العام","آخر العام","م",11,""]
[null,null,null,null,null,null,null,null,null,78,678,78,481703750,"ع78","ذكر","مسلم","ناجح ومنقول","(3 / 6)","لا يوجد","السادس","نصف العام","آخر العام","م",11,""]
[null,null,null,null,null,null,null,null,null,79,679,79,474735461,"ع79","ذكر","مسلم","ناجح ومنقول","(4 / 6)","لا يوجد","السادس","نصف العام","آخر العام","م",11,""]
[null,null,null,null,null,null,null,null,null,80,680,80,472882931,"ع80","ذكر","مسلم","ناجح ومنقول","(2 / 6)","لا يوجد","السادس","نصف العام","آخر العام","م",11,""]
[null,null,null,null,null,null,null,null,null,81,681,81,474790728,"ع81","ذكر","مسلم","ناجح ومنقول","(1 / 6)","لا يوجد","السادس","نصف العام","آخر العام","م",11,""]
[null,null,null,null,null,null,null,null,null,82,682,82,486983657,"ع82","ذكر","مسلم","ناجح ومنقول","(2 / 6)","لا يوجد","السادس","نصف العام","آخر العام","م",11,""]
[null,null,null,null,null,null,null,null,null,83,683,83,471584155,"ع83","ذكر","مسلم","ناجح ومنقول","(1 / 6)","لا يوجد","السادس","نصف العام","آخر العام","م",11,""]
[null,null,null,null,null,null,null,null,null,84,684,84,474726155,"ع84","ذكر","مسلم","ناجح ومنقول","(3 / 6)","لا يوجد","السادس","نصف العام","آخر العام","م",11,""]
[null,null,null,null,null,null,null,null,null,85,685,85,475644040,"ع85","ذكر","مسلم","ناجح ومنقول","(1 / 6)","لا يوجد","السادس","نصف العام","آخر العام","م",11,""]
[null,null,null,null,null,null,null,null,null,86,686,86,475393736,"ع86","ذكر","مسلم","ناجح ومنقول","(2 / 6)","لا يوجد","السادس","نصف العام","آخر العام","م",11,""]
[null,null,null,null,null,null,null,null,null,87,687,87,474860937,"ع87","ذكر","مسلم","ناجح ومنقول","(2 / 6)","لا يوجد","السادس","نصف العام","آخر العام","م",11,""]
[null,null,null,null,null,null,null,null,null,88,688,88,476828322,"ع88","ذكر","مسلم","ناجح ومنقول","(4 / 6)","لا يوجد","السادس","نصف العام","آخر العام","م",11,""]
[null,null,null,null,null,null,null,null,null,89,689,89,475212566,"ع89","ذكر","مسلم","ناجح ومنقول","(3 / 6)","لا يوجد","السادس","نصف العام","آخر العام","م",11,""]
[null,null,null,null,null,null,null,null,null,90,690,90,472911765,"ع90","ذكر","مسلم","ناجح ومنقول","(1 / 6)","لا يوجد","السادس","نصف العام","آخر العام","م",11,""]
[null,null,null,null,null,null,null,null,null,91,691,91,475394001,"ع91","ذكر","مسلم","ناجح ومنقول","(4 / 6)","لا يوجد","السادس","نصف العام","آخر العام","م",11,""]
[null,null,null,null,null,null,null,null,null,92,692,92,475134394,"ع92","ذكر","مسلم","ناجح ومنقول","(3 / 6)","لا يوجد","السادس","نصف العام","آخر العام","م",11,""]
[null,null,null,null,null,null,null,null,null,93,693,93,476640197,"ع93","ذكر","مسلم","ناجح ومنقول","(2 / 6)","لا يوجد","السادس","نصف العام","آخر العام","م",11,""]
[null,null,null,null,null,null,null,null,null,94,694,94,475274193,"ع94","ذكر","مسلم","ناجح ومنقول","(3 / 6)","لا يوجد","السادس","نصف العام","آخر العام","م",11,""]
[null,null,null,null,null,null,null,null,null,95,695,95,475310035,"ع95","ذكر","مسلم","ناجح ومنقول","(1 / 6)","لا يوجد","السادس","نصف العام","آخر العام","م",11,""]
[null,null,null,null,null,null,null,null,null,96,696,96,475394644,"ع96","ذكر","مسلم","ناجح ومنقول","(3 / 6)","لا يوجد","السادس","نصف العام","آخر العام","م",11,""]
[null,null,null,null,null,null,null,null,null,97,697,97,475245118,"ع97","ذكر","مسلم","ناجح ومنقول","(1 / 6)","لا يوجد","السادس","نصف العام","آخر العام","م",11,""]
[null,null,null,null,null,null,null,null,null,98,698,98,475194699,"ع98","ذكر","مسلم","ناجح ومنقول","(2 / 6)","لا يوجد","السادس","نصف العام","آخر العام","م",11,""]
[null,null,null,null,null,null,null,null,null,99,699,99,475134419,"ع99","ذكر","مسلم","ناجح ومنقول","(3 / 6)","لا يوجد","السادس","نصف العام","آخر العام","م",11,""]
[null,null,null,null,null,null,null,null,null,100,700,100,477297656,"ع100","ذكر","مسلم","ناجح ومنقول","(4 / 6)","لا يوجد","السادس","نصف العام","آخر العام","م",11,""]
[null,null,null,null,null,null,null,null,null,101,701,101,472883431,"ع101","ذكر","مسلم","ناجح ومنقول","(1 / 6)","لا يوجد","السادس","نصف العام","آخر العام","م",11,""]
[null,null,null,null,null,null,null,null,null,102,702,102,475390322,"ع102","ذكر","مسلم","ناجح ومنقول","(4 / 6)","لا يوجد","السادس","نصف العام","آخر العام","م",11,""]
[null,null,null,null,null,null,null,null,null,103,703,103,474951322,"ع103","ذكر","مسلم","ناجح ومنقول","(2 / 6)","لا يوجد","السادس","نصف العام","آخر العام","م",11,""]
[null,null,null,null,null,null,null,null,null,104,704,104,475399707,"ع104","ذكر","مسلم","ناجح ومنقول","(3 / 6)","لا يوجد","السادس","نصف العام","آخر العام","م",11,""]
[null,null,null,null,null,null,null,null,null,105,705,105,474958119,"ع105","ذكر","مسلم","ناجح ومنقول","(2 / 6)","لا يوجد","السادس","نصف العام","آخر العام","م",11,""]
[null,null,null,null,null,null,null,null,null,106,706,106,486227034,"ع106","أنثى","مسلمة","ناجح ومنقول","(2 / 6)","لا يوجد","السادس","نصف العام","آخر العام","م",11,""]
[null,null,null,null,null,null,null,null,null,107,707,107,476261261,"ع107","أنثى","مسلمة","ناجح ومنقول","(4 / 6)","لا يوجد","السادس","نصف العام","آخر العام","م",11,""]
[null,null,null,null,null,null,null,null,null,108,708,108,474875873,"ع108","أنثى","مسلمة","ناجح ومنقول","(4 / 6)","لا يوجد","السادس","نصف العام","آخر العام","م",11,""]
[null,null,null,null,null,null,null,null,null,109,709,109,473670293,"ع109","أنثى","مسلمة","ناجح ومنقول","(4 / 6)","يوجد","السادس","نصف العام","آخر العام","م",11,""]
[null,null,null,null,null,null,null,null,null,110,710,110,475165101,"ع110","أنثى","مسلمة","ناجح ومنقول","(3 / 6)","لا يوجد","السادس","نصف العام","آخر العام","م",11,""]
[null,null,null,null,null,null,null,null,null,111,711,111,475385765,"ع111","أنثى","مسلمة","ناجح ومنقول","(3 / 6)","لا يوجد","السادس","نصف العام","آخر العام","م",11,""]
[null,null,null,null,null,null,null,null,null,112,712,112,481066440,"ع112","أنثى","مسلمة","ناجح ومنقول","(2 / 6)","لا يوجد","السادس","نصف العام","آخر العام","م",11,""]
[null,null,null,null,null,null,null,null,null,113,713,113,475399345,"ع113","أنثى","مسلمة","ناجح ومنقول","(2 / 6)","لا يوجد","السادس","نصف العام","آخر العام","م",11,""]
[null,null,null,null,null,null,null,null,null,114,714,114,475299933,"ع114","أنثى","مسلمة","ناجح ومنقول","(3 / 6)","لا يوجد","السادس","نصف العام","آخر العام","م",11,""]
[null,null,null,null,null,null,null,null,null,115,715,115,474483843,"ع115","أنثى","مسلمة","ناجح ومنقول","(2 / 6)","لا يوجد","السادس","نصف العام","آخر العام","م",11,""]
[null,null,null,null,null,null,null,null,null,116,716,116,474752320,"ع116","أنثى","مسلمة","ناجح ومنقول","(3 / 6)","لا يوجد","السادس","نصف العام","آخر العام","م",11,""]
[null,null,null,null,null,null,null,null,null,117,717,117,474570382,"ع117","أنثى","مسلمة","ناجح ومنقول","(3 / 6)","لا يوجد","السادس","نصف العام","آخر العام","م",11,""]
[null,null,null,null,null,null,null,null,null,118,718,118,472882001,"ع118","أنثى","مسلمة","ناجح ومنقول","(3 / 6)","لا يوجد","السادس","نصف العام","آخر العام","م",11,""]
[null,null,null,null,null,null,null,null,null,119,719,119,475401604,"ع119","أنثى","مسلمة","ناجح ومنقول","(3 / 6)","لا يوجد","السادس","نصف العام","آخر العام","م",11,""]
[null,null,null,null,null,null,null,null,null,120,720,120,480084648,"ع120","أنثى","مسلمة","ناجح ومنقول","(2 / 6)","يوجد","السادس","نصف العام","آخر العام","م",11,""]
[null,null,null,null,null,null,null,null,null,121,721,121,475401554,"ع121","أنثى","مسلمة","ناجح ومنقول","(1 / 6)","لا يوجد","السادس","نصف العام","آخر العام","م",11,""]
[null,null,null,null,null,null,null,null,null,122,722,122,474982276,"ع122","أنثى","مسلمة","ناجح ومنقول","(4 / 6)","لا يوجد","السادس","نصف العام","آخر العام","م",11,""]
[null,null,null,null,null,null,null,null,null,123,723,123,474998944,"ع123","أنثى","مسلمة","ناجح ومنقول","(1 / 6)","لا يوجد","السادس","نصف العام","آخر العام","م",11,""]
[null,null,null,null,null,null,null,null,null,124,724,124,475306305,"ع124","أنثى","مسلمة","ناجح ومنقول","(2 / 6)","لا يوجد","السادس","نصف العام","آخر العام","م",11,""]
[null,null,null,null,null,null,null,null,null,125,725,125,475401592,"ع125","أنثى","مسلمة","ناجح ومنقول","(2 / 6)","لا يوجد","السادس","نصف العام","آخر العام","م",11,""]
[null,null,null,null,null,null,null,null,null,126,726,126,472881678,"ع126","أنثى","مسلمة","ناجح ومنقول","(2 / 6)","لا يوجد","السادس","نصف العام","آخر العام","م",11,""]
[null,null,null,null,null,null,null,null,null,127,727,127,475400741,"ع127","أنثى","مسلمة","ناجح ومنقول","(3 / 3)","لا يوجد","السادس","نصف العام","آخر العام","م",11,""]
[null,null,null,null,null,null,null,null,null,128,728,128,474721506,"ع128","أنثى","مسلمة","ناجح ومنقول","(4 / 6)","لا يوجد","السادس","نصف العام","آخر العام","م",11,""]
[null,null,null,null,null,null,null,null,null,129,729,129,472813828,"ع129","أنثى","مسلمة","ناجح ومنقول","(1 / 6)","لا يوجد","السادس","نصف العام","آخر العام","م",{"$f":"IF(K133=\"\",\"\",VLOOKUP(K133,جلوس,4))","v":11},""]
[null,null,null,null,null,null,null,null,null,130,730,130,476197808,"ع130","أنثى","مسلمة","ناجح ومنقول","(3 / 6)","لا يوجد","السادس","نصف العام","آخر العام","م",11,{"$f":"IF(X134=X135,\"\",\"نهاية اللجنة\")","v":""}]
[null,null,null,null,null,null,null,null,null,{"$f":"IF(J134=\"\",\"\",IF(J134+1>$K$2,\"\",J134+1))","v":131},{"$f":"IF(K134=\"\",\"\",IF(K134+1>$K$3,\"\",K134+1))","v":731},131,474982122,"ع131","أنثى","مسلمة","ناجح ومنقول","(4 / 6)","لا يوجد","السادس","نصف العام","آخر العام","م",11,""]
[null,null,null,null,null,null,null,null,null,132,732,132,474834318,"ع132","أنثى","مسلمة","ناجح ومنقول","(2 / 6)","لا يوجد","السادس","نصف العام","آخر العام","م",11,""]
[null,null,null,null,null,null,null,null,null,133,733,133,474827196,"ع133","أنثى","مسلمة","ناجح ومنقول","(3 / 6)","لا يوجد","السادس","نصف العام","آخر العام","م",11,""]
[null,null,null,null,null,null,null,null,null,134,734,134,472422093,"ع134","أنثى","مسلمة","ناجح ومنقول","(4 / 6)","لا يوجد","السادس","نصف العام","آخر العام","م",11,""]
[null,null,null,null,null,null,null,null,null,135,735,135,474819761,"ع135","أنثى","مسلمة","ناجح ومنقول","(4 / 6)","لا يوجد","السادس","نصف العام","آخر العام","م",11,""]
[null,null,null,null,null,null,null,null,null,136,736,136,475402030,"ع136","أنثى","مسلمة","ناجح ومنقول","(2 / 6)","لا يوجد","السادس","نصف العام","آخر العام","م",11,""]
[null,null,null,null,null,null,null,null,null,137,737,137,473375251,"ع137","أنثى","مسلمة","ناجح ومنقول","(4 / 6)","لا يوجد","السادس","نصف العام","آخر العام","م",11,""]
[null,null,null,null,null,null,null,null,null,138,738,138,475392794,"ع138","أنثى","مسلمة","ناجح ومنقول","(1 / 6)","لا يوجد","السادس","نصف العام","آخر العام","م",11,""]
[null,null,null,null,null,null,null,null,null,139,739,139,475509758,"ع139","أنثى","مسلمة","ناجح ومنقول","(4 / 6)","لا يوجد","السادس","نصف العام","آخر العام","م",11,""]
[null,null,null,null,null,null,null,null,null,140,740,140,474399556,"ع140","أنثى","مسلمة","ناجح ومنقول","(2 / 6)","لا يوجد","السادس","نصف العام","آخر العام","م",11,""]
[null,null,null,null,null,null,null,null,null,141,741,141,475401835,"ع141","أنثى","مسلمة","ناجح ومنقول","(3 / 6)","لا يوجد","السادس","نصف العام","آخر العام","م",11,""]
[null,null,null,null,null,null,null,null,null,142,742,142,475401279,"ع142","أنثى","مسلمة","ناجح ومنقول","(4 / 6)","لا يوجد","السادس","نصف العام","آخر العام","م",11,""]
[null,null,null,null,null,null,null,null,null,143,743,143,475399881,"ع143","أنثى","مسلمة","ناجح ومنقول","(3 / 6)","لا يوجد","السادس","نصف العام","آخر العام","م",11,""]
[null,null,null,null,null,null,null,null,null,144,744,144,475880406,"ع144","أنثى","مسلمة","ناجح ومنقول","(2 / 6)","لا يوجد","السادس","نصف العام","آخر العام","م",11,""]
[null,null,null,null,null,null,null,null,null,145,745,145,476634459,"ع145","أنثى","مسلمة","ناجح ومنقول","(3 / 6)","لا يوجد","السادس","نصف العام","آخر العام","م",11,""]
[null,null,null,null,null,null,null,null,null,146,746,146,480469710,"ع146","أنثى","مسلمة","ناجح ومنقول","(1 / 6)","لا يوجد","السادس","نصف العام","آخر العام","م",11,""]
[null,null,null,null,null,null,null,null,null,147,747,147,475401349,"ع147","أنثى","مسلمة","ناجح ومنقول","(3 / 6)","لا يوجد","السادس","نصف العام","آخر العام","م",11,""]
[null,null,null,null,null,null,null,null,null,148,748,148,471971568,"ع148","أنثى","مسلمة","ناجح ومنقول","(3 / 6)","لا يوجد","السادس","نصف العام","آخر العام","م",11,""]
[null,null,null,null,null,null,null,null,null,149,749,149,475449747,"ع149","أنثى","مسلمة","ناجح ومنقول","(4 / 6)","لا يوجد","السادس","نصف العام","آخر العام","م",11,""]
[null,null,null,null,null,null,null,null,null,150,750,150,475391142,"ع150","أنثى","مسلمة","ناجح ومنقول","(1 / 6)","لا يوجد","السادس","نصف العام","آخر العام","م",11,""]
[null,null,null,null,null,null,null,null,null,151,751,151,475007627,"ع151","أنثى","مسلمة","ناجح ومنقول","(2 / 6)","لا يوجد","السادس","نصف العام","آخر العام","م",11,""]
[null,null,null,null,null,null,null,null,null,152,752,152,472882307,"ع152","أنثى","مسلمة","ناجح ومنقول","(2 / 6)","لا يوجد","السادس","نصف العام","آخر العام","م",11,""]
[null,null,null,null,null,null,null,null,null,153,753,153,474975178,"ع153","أنثى","مسلمة","ناجح ومنقول","(2 / 6)","لا يوجد","السادس","نصف العام","آخر العام","م",11,""]
[null,null,null,null,null,null,null,null,null,154,754,154,475401382,"ع154","أنثى","مسلمة","ناجح ومنقول","(4 / 6)","لا يوجد","السادس","نصف العام","آخر العام","م",11,""]
[null,null,null,null,null,null,null,null,null,155,755,155,475185296,"ع155","أنثى","مسلمة","ناجح ومنقول","(4 / 6)","لا يوجد","السادس","نصف العام","آخر العام","م",11,""]
[null,null,null,null,null,null,null,null,null,156,756,156,475140211,"ع156","أنثى","مسلمة","ناجح ومنقول","(2 / 6)","لا يوجد","السادس","نصف العام","آخر العام","م",11,""]
[null,null,null,null,null,null,null,null,null,157,757,157,474737566,"ع157","أنثى","مسلمة","ناجح ومنقول","(1 / 6)","لا يوجد","السادس","نصف العام","آخر العام","م",11,""]
[null,null,null,null,null,null,null,null,null,158,758,158,475393967,"ع158","أنثى","مسلمة","ناجح ومنقول","(1 / 6)","لا يوجد","السادس","نصف العام","آخر العام","م",11,""]
[null,null,null,null,null,null,null,null,null,159,759,159,474395607,"ع159","أنثى","مسلمة","ناجح ومنقول","(2 / 6)","لا يوجد","السادس","نصف العام","آخر العام","م",11,""]
[null,null,null,null,null,null,null,null,null,160,760,160,474393321,"ع160","أنثى","مسلمة","ناجح ومنقول","(1 / 6)","لا يوجد","السادس","نصف العام","آخر العام","م",11,""]
[null,null,null,null,null,null,null,null,null,161,761,161,472882439,"ع161","أنثى","مسلمة","ناجح ومنقول","(2 / 6)","لا يوجد","السادس","نصف العام","آخر العام","م",11,""]
[null,null,null,null,null,null,null,null,null,162,762,162,474748330,"ع162","أنثى","مسلمة","ناجح ومنقول","(4 / 6)","لا يوجد","السادس","نصف العام","آخر العام","م",11,""]
[null,null,null,null,null,null,null,null,null,163,763,163,468305856,"ع163","أنثى","مسلمة","ناجح ومنقول","(1 / 6)","لا يوجد","السادس","نصف العام","آخر العام","م",11,""]
[null,null,null,null,null,null,null,null,null,164,764,164,477890127,"ع164","أنثى","مسلمة","ناجح ومنقول","(1 / 6)","لا يوجد","السادس","نصف العام","آخر العام","م",11,""]
[null,null,null,null,null,null,null,null,null,165,765,165,477814952,"ع165","أنثى","مسلمة","ناجح ومنقول","(4 / 6)","لا يوجد","السادس","نصف العام","آخر العام","م",11,""]
[null,null,null,null,null,null,null,null,null,166,766,166,476219440,"ع166","أنثى","مسلمة","ناجح ومنقول","(4 / 6)","لا يوجد","السادس","نصف العام","آخر العام","م",11,""]
[null,null,null,null,null,null,null,null,null,167,767,167,474934190,"ع167","أنثى","مسلمة","ناجح ومنقول","(4 / 6)","لا يوجد","السادس","نصف العام","آخر العام","م",11,""]
[null,null,null,null,null,null,null,null,null,168,768,168,472881542,"ع168","أنثى","مسلمة","ناجح ومنقول","(3 / 6)","لا يوجد","السادس","نصف العام","آخر العام","م",11,""]
[null,null,null,null,null,null,null,null,null,169,769,169,475401995,"ع169","أنثى","مسلمة","ناجح ومنقول","(1 / 6)","لا يوجد","السادس","نصف العام","آخر العام","م",11,""]
[null,null,null,null,null,null,null,null,null,170,770,170,475493379,"ع170","أنثى","مسلمة","ناجح ومنقول","(3 / 6)","لا يوجد","السادس","نصف العام","آخر العام","م",11,""]
[null,null,null,null,null,null,null,null,null,171,771,171,472881431,"ع171","أنثى","مسلمة","ناجح ومنقول","(2 / 6)","لا يوجد","السادس","نصف العام","آخر العام","م",11,""]
[null,null,null,null,null,null,null,null,null,172,772,172,472881277,"ع172","أنثى","مسلمة","ناجح ومنقول","(4 / 6)","لا يوجد","السادس","نصف العام","آخر العام","م",11,""]
[null,null,null,null,null,null,null,null,null,173,773,173,475217314,"ع173","أنثى","مسلمة","ناجح ومنقول","(3 / 6)","لا يوجد","السادس","نصف العام","آخر العام","م",11,""]
[null,null,null,null,null,null,null,null,null,174,774,174,474671565,"ع174","أنثى","مسلمة","ناجح ومنقول","(1 / 6)","لا يوجد","السادس","نصف العام","آخر العام","م",11,""]
[null,null,null,null,null,null,null,null,null,175,775,175,475352487,"ع175","أنثى","مسلمة","ناجح ومنقول","(2 / 6)","لا يوجد","السادس","نصف العام","آخر العام","م",11,""]
[null,null,null,null,null,null,null,null,null,176,776,176,474721246,"ع176","أنثى","مسلمة","ناجح ومنقول","(3 / 6)","لا يوجد","السادس","نصف العام","آخر العام","م",11,""]
[null,null,null,null,null,null,null,null,null,177,777,177,474754782,"ع177","أنثى","مسلمة","ناجح ومنقول","(1 / 6)","لا يوجد","السادس","نصف العام","آخر العام","م",11,""]
[null,null,null,null,null,null,null,null,null,178,778,178,472880814,"ع178","أنثى","مسلمة","ناجح ومنقول","(3 / 6)","لا يوجد","السادس","نصف العام","آخر العام","م",11,""]
[null,null,null,null,null,null,null,null,null,179,779,179,472880592,"ع179","أنثى","مسلمة","ناجح ومنقول","(4 / 6)","لا يوجد","السادس","نصف العام","آخر العام","م",11,""]
[null,null,null,null,null,null,null,null,null,180,780,180,472880324,"ع180","أنثى","مسلمة","ناجح ومنقول","(3 / 6)","لا يوجد","السادس","نصف العام","آخر العام","م",11,""]
[null,null,null,null,null,null,null,null,null,181,781,181,475401467,"ع181","أنثى","مسلمة","ناجح ومنقول","(3 / 6)","لا يوجد","السادس","نصف العام","آخر العام","م",11,""]
[null,null,null,null,null,null,null,null,null,182,782,182,477749481,"ع182","أنثى","مسلمة","ناجح ومنقول","(1 / 6)","لا يوجد","السادس","نصف العام","آخر العام","م",11,""]
[null,null,null,null,null,null,null,null,null,183,783,183,474581020,"ع183","أنثى","مسلمة","ناجح ومنقول","(2 / 6)","لا يوجد","السادس","نصف العام","آخر العام","م",11,""]
[null,null,null,null,null,null,null,null,null,184,784,184,485438673,"ع184","أنثى","مسلمة","ناجح ومنقول","(1 / 6)","لا يوجد","السادس","نصف العام","آخر العام","م",11,""]
[null,null,null,null,null,null,null,null,null,185,785,185,474491645,"ع185","أنثى","مسلمة","ناجح ومنقول","(3 / 6)","لا يوجد","السادس","نصف العام","آخر العام","م",11,""]
[null,null,null,null,null,null,null,null,null,186,786,186,475004055,"ع186","أنثى","مسلمة","ناجح ومنقول","(1 / 6)","لا يوجد","السادس","نصف العام","آخر العام","م",11,""]
[null,null,null,null,null,null,null,null,null,187,787,187,475401432,"ع187","أنثى","مسلمة","ناجح ومنقول","(2 / 6)","لا يوجد","السادس","نصف العام","آخر العام","م",11,""]
[null,null,null,null,null,null,null,null,null,188,788,188,472880113,"ع188","أنثى","مسلمة","ناجح ومنقول","(3 / 6)","لا يوجد","السادس","نصف العام","آخر العام","م",11,""]
[null,null,null,null,null,null,null,null,null,189,789,189,475179149,"ع189","أنثى","مسلمة","ناجح ومنقول","(2 / 6)","لا يوجد","السادس","نصف العام","آخر العام","م",11,""]
[null,null,null,null,null,null,null,null,null,190,790,190,475366865,"ع190","أنثى","مسلمة","ناجح ومنقول","(4 / 6)","لا يوجد","السادس","نصف العام","آخر العام","م",11,""]
[null,null,null,null,null,null,null,null,null,191,791,191,474971725,"ع191","أنثى","مسلمة","ناجح ومنقول","(3 / 6)","لا يوجد","السادس","نصف العام","آخر العام","م",11,""]
[null,null,null,null,null,null,null,null,null,192,792,192,472877185,"ع192","أنثى","مسلمة","ناجح ومنقول","(1 / 6)","لا يوجد","السادس","نصف العام","آخر العام","م",11,""]
[null,null,null,null,null,null,null,null,null,193,793,193,472816775,"ع193","أنثى","مسلمة","ناجح ومنقول","(1 / 6)","لا يوجد","السادس","نصف العام","آخر العام","م",{"$f":"IF(K197=\"\",\"\",VLOOKUP(K197,جلوس,4))","v":11},""]
[null,null,null,null,null,null,null,null,null,194,794,194,475398918,"ع194","أنثى","مسلمة","ناجح ومنقول","(2 / 6)","لا يوجد","السادس","نصف العام","آخر العام","م",11,{"$f":"IF(X198=X199,\"\",\"نهاية اللجنة\")","v":""}]
[null,null,null,null,null,null,null,null,null,{"$f":"IF(J198=\"\",\"\",IF(J198+1>$K$2,\"\",J198+1))","v":195},{"$f":"IF(K198=\"\",\"\",IF(K198+1>$K$3,\"\",K198+1))","v":795},195,474796295,"ع195","أنثى","مسلمة","ناجح ومنقول","(2 / 6)","لا يوجد","السادس","نصف العام","آخر العام","م",11,""]
[null,null,null,null,null,null,null,null,null,196,796,196,475771343,"ع196","أنثى","مسلمة","ناجح ومنقول","(1 / 6)","لا يوجد","السادس","نصف العام","آخر العام","م",11,""]
[null,null,null,null,null,null,null,null,null,197,797,197,472813987,"ع197","أنثى","مسلمة","ناجح ومنقول","(3 / 6)","لا يوجد","السادس","نصف العام","آخر العام","م",11,""]
[null,null,null,null,null,null,null,null,null,198,798,198,474444878,"ع198","أنثى","مسلمة","ناجح ومنقول","(1 / 6)","لا يوجد","السادس","نصف العام","آخر العام","م",11,""]
[null,null,null,null,null,null,null,null,null,199,799,199,475381029,"ع199","أنثى","مسلمة","ناجح ومنقول","(1 / 6)","لا يوجد","السادس","نصف العام","آخر العام","م",11,""]
[null,null,null,null,null,null,null,null,null,200,800,200,474735329,"ع200","أنثى","مسلمة","ناجح ومنقول","(4 / 6)","لا يوجد","السادس","نصف العام","آخر العام","م",11,""]
[null,null,null,null,null,null,null,null,null,201,801,201,475402085,"ع201","أنثى","مسلمة","ناجح ومنقول","(2 / 6)","لا يوجد","السادس","نصف العام","آخر العام","م",11,""]
[null,null,null,null,null,null,null,null,null,202,802,202,475401892,"ع202","أنثى","مسلمة","ناجح ومنقول","(3 / 6)","لا يوجد","السادس","نصف العام","آخر العام","م",11,""]
[null,null,null,null,null,null,null,null,null,203,803,203,475401451,"ع203","أنثى","مسلمة","ناجح ومنقول","(1 / 6)","لا يوجد","السادس","نصف العام","آخر العام","م",11,""]
[null,null,null,null,null,null,null,null,null,204,804,204,474919632,"ع204","أنثى","مسلمة","ناجح ومنقول","(4 / 6)","لا يوجد","السادس","نصف العام","آخر العام","م",11,""]
[null,null,null,null,null,null,null,null,null,205,805,205,475401479,"ع205","أنثى","مسلمة","ناجح ومنقول","(4 / 6)","لا يوجد","السادس","نصف العام","آخر العام","م",11,""]
[null,null,null,null,null,null,null,null,null,206,806,206,474828661,"ع206","أنثى","مسلمة","ناجح ومنقول","(1 / 6)","لا يوجد","السادس","نصف العام","آخر العام","م",11,""]
[null,null,null,null,null,null,null,null,null,207,807,207,475385641,"ع207","أنثى","مسلمة","ناجح ومنقول","(3 / 6)","لا يوجد","السادس","نصف العام","آخر العام","م",11,""]
[null,null,null,null,null,null,null,null,null,208,808,208,475493468,"ع208","أنثى","مسلمة","ناجح ومنقول","(2 / 6)","لا يوجد","السادس","نصف العام","آخر العام","م",11,"نهاية اللجنة"]
[null,null,null,null,null,null,null,null,null,"","",null,null,null,null,null,null,null,null,null,null,null,null,"",""]
[null,null,null,null,null,null,null,null,null,"","",null,null,null,null,null,null,null,null,null,null,null,null,"",""]
[null,null,null,null,null,null,null,null,null,"","",null,null,null,null,null,null,null,null,null,null,null,null,"",""]
[null,null,null,null,null,null,null,null,null,"","",null,null,null,null,null,null,null,null,null,null,null,null,"",""]
[null,null,null,null,null,null,null,null,null,"","",null,null,null,null,null,null,null,null,null,null,null,null,"",""]
[null,null,null,null,null,null,null,null,null,"","",null,null,null,null,null,null,null,null,null,null,null,null,"",""]
[null,null,null,null,null,null,null,null,null,"","",null,null,null,null,null,null,null,null,null,null,null,null,"",""]
[null,null,null,null,null,null,null,null,null,null,null,null,null,null,null,null,null,null,null,null,null,null,null,{"$f":"IF(K220=\"\",\"\",VLOOKUP(K220,جلوس,4))","v":""},""]
[null,null,null,null,null,null,null,null,null,null,null,null,null,null,null,null,null,null,null,null,null,null,null,"",""]
[null,null,null,null,null,null,null,null,null,null,null,null,null,null,null,null,null,null,null,null,null,null,null,"",""]
[null,null,null,null,null,null,null,null,null,null,null,null,null,null,null,null,null,null,null,null,null,null,null,"",""]
[null,null,null,null,null,null,null,null,null,null,null,null,null,null,null,null,null,null,null,null,null,null,null,"",""]
[null,null,null,null,null,null,null,null,null,null,null,null,null,null,null,null,null,null,null,null,null,null,null,"",""]
[null,null,null,null,null,null,null,null,null,null,null,null,null,null,null,null,null,null,null,null,null,null,null,"",""]
[null,null,null,null,null,null,null,null,null,null,null,null,null,null,null,null,null,null,null,null,null,null,null,"",""]
[null,null,null,null,null,null,null,null,null,null,null,null,null,null,null,null,null,null,null,null,null,null,null,"",""]
[null,null,null,null,null,null,null,null,null,null,null,null,null,null,null,null,null,null,null,null,null,null,null,"",""]
[null,null,null,null,null,null,null,null,null,null,null,null,null,null,null,null,null,null,null,null,null,null,null,"",""]
[null,null,null,null,null,null,null,null,null,null,null,null,null,null,null,null,null,null,null,null,null,null,null,"",""]
[null,null,null,null,null,null,null,null,null,null,null,null,null,null,null,null,null,null,null,null,null,null,null,"",""]
[null,null,null,null,null,null,null,null,null,null,null,null,null,null,null,null,null,null,null,null,null,null,null,"",""]
[null,null,null,null,null,null,null,null,null,null,null,null,null,null,null,null,null,null,null,null,null,null,null,"",""]
[null,null,null,null,null,null,null,null,null,null,null,null,null,null,null,null,null,null,null,null,null,null,null,"",""]
[null,null,null,null,null,null,null,null,null,null,null,null,null,null,null,null,null,null,null,null,null,null,null,"",""]
[null,null,null,null,null,null,null,null,null,null,null,null,null,null,null,null,null,null,null,null,null,null,null,"",""]
[null,null,null,null,null,null,null,null,null,null,null,null,null,null,null,null,null,null,null,null,null,null,null,"",""]
[null,null,null,null,null,null,null,null,null,null,null,null,null,null,null,null,null,null,null,null,null,null,null,"",""]
[null,null,null,null,null,null,null,null,null,null,null,null,null,null,null,null,null,null,null,null,null,null,null,"",""]
[null,null,null,null,null,null,null,null,null,null,null,null,null,null,null,null,null,null,null,null,null,null,null,"",""]
[null,null,null,null,null,null,null,null,null,null,null,null,null,null,null,null,null,null,null,null,null,null,null,"",""]
[null,null,null,null,null,null,null,null,null,null,null,null,null,null,null,null,null,null,null,null,null,null,null,"",""]
[null,null,null,null,null,null,null,null,null,null,null,null,null,null,null,null,null,null,null,null,null,null,null,"",""]
[null,null,null,null,null,null,null,null,null,null,null,null,null,null,null,null,null,null,null,null,null,null,null,"",""]
[null,null,null,null,null,null,null,null,null,null,null,null,null,null,null,null,null,null,null,null,null,null,null,"",""]
[null,null,null,null,null,null,null,null,null,null,null,null,null,null,null,null,null,null,null,null,null,null,null,"",""]
[null,null,null,null,null,null,null,null,null,null,null,null,null,null,null,null,null,null,null,null,null,null,null,"",""]
[null,null,null,null,null,null,null,null,null,null,null,null,null,null,null,null,null,null,null,null,null,null,null,"",""]
[null,null,null,null,null,null,null,null,null,null,null,null,null,null,null,null,null,null,null,null,null,null,null,"",""]
[null,null,null,null,null,null,null,null,null,null,null,null,null,null,null,null,null,null,null,null,null,null,null,"",""]
[null,null,null,null,null,null,null,null,null,null,null,null,null,null,null,null,null,null,null,null,null,null,null,{"$f":"IF(K252=\"\",\"\",VLOOKUP(K252,جلوس,4))","v":""},""]
[null,null,null,null,null,null,null,null,null,null,null,null,null,null,null,null,null,null,null,null,null,null,null,"",""]
[null,null,null,null,null,null,null,null,null,null,null,null,null,null,null,null,null,null,null,null,null,null,null,"",""]
[null,null,null,null,null,null,null,null,null,null,null,null,null,null,null,null,null,null,null,null,null,null,null,"",""]
[null,null,null,null,null,null,null,null,null,null,null,null,null,null,null,null,null,null,null,null,null,null,null,"",""]
[null,null,null,null,null,null,null,null,null,null,null,null,null,null,null,null,null,null,null,null,null,null,null,"",""]
[null,null,null,null,null,null,null,null,null,null,null,null,null,null,null,null,null,null,null,null,null,null,null,"",""]
[null,null,null,null,null,null,null,null,null,null,null,null,null,null,null,null,null,null,null,null,null,null,null,"",""]
[null,null,null,null,null,null,null,null,null,null,null,null,null,null,null,null,null,null,null,null,null,null,null,"",""]
[null,null,null,null,null,null,null,null,null,null,null,null,null,null,null,null,null,null,null,null,null,null,null,"",""]
[null,null,null,null,null,null,null,null,null,null,null,null,null,null,null,null,null,null,null,null,null,null,null,"",{"$f":"IF(X262=X263,\"\",\"نهاية اللجنة\")","v":""}]
[null,null,null,null,null,null,null,null,null,null,null,null,null,null,null,null,null,null,null,null,null,null,null,"",""]
[null,null,null,null,null,null,null,null,null,null,null,null,null,null,null,null,null,null,null,null,null,null,null,"",""]
[null,null,null,null,null,null,null,null,null,null,null,null,null,null,null,null,null,null,null,null,null,null,null,"",""]
[null,null,null,null,null,null,null,null,null,null,null,null,null,null,null,null,null,null,null,null,null,null,null,"",""]
[null,null,null,null,null,null,null,null,null,null,null,null,null,null,null,null,null,null,null,null,null,null,null,"",""]
[null,null,null,null,null,null,null,null,null,null,null,null,null,null,null,null,null,null,null,null,null,null,null,"",""]
[null,null,null,null,null,null,null,null,null,null,null,null,null,null,null,null,null,null,null,null,null,null,null,"",""]
[null,null,null,null,null,null,null,null,null,null,null,null,null,null,null,null,null,null,null,null,null,null,null,"",""]
[null,null,null,null,null,null,null,null,null,{"$f":"IF(J270=\"\",\"\",IF(J270+1>$K$2,\"\",J270+1))","v":""},null,null,null,null,null,null,null,null,null,null,null,null,null,"",""]
[null,null,null,null,null,null,null,null,null,"",null,null,null,null,null,null,null,null,null,null,null,null,null,"",""]
[null,null,null,null,null,null,null,null,null,"",null,null,null,null,null,null,null,null,null,null,null,null,null,"",""]
[null,null,null,null,null,null,null,null,null,"",null,null,null,null,null,null,null,null,null,null,null,null,null,"",""]
[null,null,null,null,null,null,null,null,null,"",null,null,null,null,null,null,null,null,null,null,null,null,null,"",""]
[null,null,null,null,null,null,null,null,null,"",null,null,null,null,null,null,null,null,null,null,null,null,null,"",""]
[null,null,null,null,null,null,null,null,null,"",null,null,null,null,null,null,null,null,null,null,null,null,null,"",""]
[null,null,null,null,null,null,null,null,null,"",null,null,null,null,null,null,null,null,null,null,null,null,null,"",""]
[null,null,null,null,null,null,null,null,null,"",null,null,null,null,null,null,null,null,null,null,null,null,null,"",""]
[null,null,null,null,null,null,null,null,null,"",null,null,null,null,null,null,null,null,null,null,null,null,null,"",""]
[null,null,null,null,null,null,null,null,null,"",null,null,null,null,null,null,null,null,null,null,null,null,null,"",""]
[null,null,null,null,null,null,null,null,null,"",null,null,null,null,null,null,null,null,null,null,null,null,null,"",""]
[null,null,null,null,null,null,null,null,null,"",null,null,null,null,null,null,null,null,null,null,null,null,null,"",""]
[null,null,null,null,null,null,null,null,null,"",null,null,null,null,null,null,null,null,null,null,null,null,null,{"$f":"IF(K284=\"\",\"\",VLOOKUP(K284,جلوس,4))","v":""},""]
[null,null,null,null,null,null,null,null,null,"",null,null,null,null,null,null,null,null,null,null,null,null,null,"",""]
[null,null,null,null,null,null,null,null,null,"",null,null,null,null,null,null,null,null,null,null,null,null,null,"",""]
[null,null,null,null,null,null,null,null,null,"",null,null,null,null,null,null,null,null,null,null,null,null,null,"",""]
[null,null,null,null,null,null,null,null,null,"",null,null,null,null,null,null,null,null,null,null,null,null,null,"",""]
[null,null,null,null,null,null,null,null,null,"",null,null,null,null,null,null,null,null,null,null,null,null,null,"",""]
[null,null,null,null,null,null,null,null,null,"",null,null,null,null,null,null,null,null,null,null,null,null,null,"",""]
[null,null,null,null,null,null,null,null,null,"",null,null,null,null,null,null,null,null,null,null,null,null,null,"",""]
[null,null,null,null,null,null,null,null,null,"",null,null,null,null,null,null,null,null,null,null,null,null,null,"",""]
[null,null,null,null,null,null,null,null,null,"",null,null,null,null,null,null,null,null,null,null,null,null,null,"",""]
[null,null,null,null,null,null,null,null,null,"",null,null,null,null,null,null,null,null,null,null,null,null,null,"",""]
[null,null,null,null,null,null,null,null,null,"",null,null,null,null,null,null,null,null,null,null,null,null,null,"",""]
[null,null,null,null,null,null,null,null,null,"",null,null,null,null,null,null,null,null,null,null,null,null,null,"",""]
[null,null,null,null,null,null,null,null,null,"",null,null,null,null,null,null,null,null,null,null,null,null,null,"",""]
[]
[]
[null,null,null,null,null,null,null,null,null,"",{"$f":"IF(K299=\"\",\"\",IF(K299+1>$K$3,\"\",K299+1))","v":""},null,null,null,null,null,null,null,null,null,null,null,null,{"$f":"IF(K300=\"\",\"\",VLOOKUP(K300,جلوس,4))","v":""},""]
[null,null,null,null,null,null,null,null,null,"","",null,null,null,null,null,null,null,null,null,null,null,null,"",""]
[null,null,null,null,null,null,null,null,null,"","",null,null,null,null,null,null,null,null,null,null,null,null,"",""]
[null,null,null,null,null,null,null,null,null,"","",null,null,null,null,null,null,null,null,null,null,null,null,"",""]
[null,null,null,null,null,null,null,null,null,"","",null,null,null,null,null,null,null,null,null,null,null,null,"",""]
[null,null,null,null,null,null,null,null,null,"","",null,null,null,null,null,null,null,null,null,null,null,null,"",""]
[null,null,null,null,null,null,null,null,null,"","",null,null,null,null,null,null,null,null,null,null,null,null,"",""]
[null,null,null,null,null,null,null,null,null,"","",null,null,null,null,null,null,null,null,null,null,null,null,"",""]
[null,null,null,null,null,null,null,null,null,"","",null,null,null,null,null,null,null,null,null,null,null,null,"",""]
[null,null,null,null,null,null,null,null,null,"","",null,null,null,null,null,null,null,null,null,null,null,null,"",""]
[null,null,null,null,null,null,null,null,null,"","",null,null,null,null,null,null,null,null,null,null,null,null,"",""]
[null,null,null,null,null,null,null,null,null,"","",null,null,null,null,null,null,null,null,null,null,null,null,"",""]
[null,null,null,null,null,null,null,null,null,"","",null,null,null,null,null,null,null,null,null,null,null,null,"",""]
[null,null,null,null,null,null,null,null,null,"","",null,null,null,null,null,null,null,null,null,null,null,null,"",""]
[null,null,null,null,null,null,null,null,null,"","",null,null,null,null,null,null,null,null,null,null,null,null,"",""]
[null,null,null,null,null,null,null,null,null,"","",null,null,null,null,null,null,null,null,null,null,null,null,"",""]
[null,null,null,null,null,null,null,null,null,"","",null,null,null,null,null,null,null,null,null,null,null,null,"",""]
[null,null,null,null,null,null,null,null,null,"","",null,null,null,null,null,null,null,null,null,null,null,null,"",""]
[null,null,null,null,null,null,null,null,null,"","",null,null,null,null,null,null,null,null,null,null,null,null,"",""]
[null,null,null,null,null,null,null,null,null,"","",null,null,null,null,null,null,null,null,null,null,null,null,"",""]
[null,null,null,null,null,null,null,null,null,"","",null,null,null,null,null,null,null,null,null,null,null,null,"",""]
[null,null,null,null,null,null,null,null,null,"","",null,null,null,null,null,null,null,null,null,null,null,null,"",""]
[null,null,null,null,null,null,null,null,null,"","",null,null,null,null,null,null,null,null,null,null,null,null,"",""]
[null,null,null,null,null,null,null,null,null,"","",null,null,null,null,null,null,null,null,null,null,null,null,"",""]
[null,null,null,null,null,null,null,null,null,"","",null,null,null,null,null,null,null,null,null,null,null,null,"",""]
[null,null,null,null,null,null,null,null,null,"","",null,null,null,null,null,null,null,null,null,null,null,null,"",""]
[null,null,null,null,null,null,null,null,null,"","",null,null,null,null,null,null,null,null,null,null,null,null,"",{"$f":"IF(X326=X327,\"\",\"نهاية اللجنة\")","v":""}]
[null,null,null,null,null,null,null,null,null,"","",null,null,null,null,null,null,null,null,null,null,null,null,"",""]
[null,null,null,null,null,null,null,null,null,"","",null,null,null,null,null,null,null,null,null,null,null,null,"",""]
[null,null,null,null,null,null,null,null,null,"","",null,null,null,null,null,null,null,null,null,null,null,null,"",""]
[null,null,null,null,null,null,null,null,null,"","",null,null,null,null,null,null,null,null,null,null,null,null,"",""]
[null,null,null,null,null,null,null,null,null,"","",null,null,null,null,null,null,null,null,null,null,null,null,"",""]
[null,null,null,null,null,null,null,null,null,"","",null,null,null,null,null,null,null,null,null,null,null,null,"",""]
[null,null,null,null,null,null,null,null,null,"","",null,null,null,null,null,null,null,null,null,null,null,null,"",""]
[null,null,null,null,null,null,null,null,null,"","",null,null,null,null,null,null,null,null,null,null,null,null,"",""]
[null,null,null,null,null,null,null,null,null,{"$f":"IF(J334=\"\",\"\",IF(J334+1>$K$2,\"\",J334+1))","v":""},"",null,null,null,null,null,null,null,null,null,null,null,null,"",""]
[null,null,null,null,null,null,null,null,null,"","",null,null,null,null,null,null,null,null,null,null,null,null,"",""]
[null,null,null,null,null,null,null,null,null,"","",null,null,null,null,null,null,null,null,null,null,null,null,"",""]
[null,null,null,null,null,null,null,null,null,"","",null,null,null,null,null,null,null,null,null,null,null,null,"",""]
[null,null,null,null,null,null,null,null,null,"","",null,null,null,null,null,null,null,null,null,null,null,null,"",""]
[null,null,null,null,null,null,null,null,null,"","",null,null,null,null,null,null,null,null,null,null,null,null,"",""]
[null,null,null,null,null,null,null,null,null,"","",null,null,null,null,null,null,null,null,null,null,null,null,"",""]
[null,null,null,null,null,null,null,null,null,"","",null,null,null,null,null,null,null,null,null,null,null,null,"",""]
[null,null,null,null,null,null,null,null,null,"","",null,null,null,null,null,null,null,null,null,null,null,null,"",""]
[null,null,null,null,null,null,null,null,null,"","",null,null,null,null,null,null,null,null,null,null,null,null,"",""]
[null,null,null,null,null,null,null,null,null,"","",null,null,null,null,null,null,null,null,null,null,null,null,"",""]
[null,null,null,null,null,null,null,null,null,"","",null,null,null,null,null,null,null,null,null,null,null,null,"",""]
[null,null,null,null,null,null,null,null,null,"","",null,null,null,null,null,null,null,null,null,null,null,null,"",""]
[null,null,null,null,null,null,null,null,null,"","",null,null,null,null,null,null,null,null,null,null,null,null,"",""]
[null,null,null,null,null,null,null,null,null,"","",null,null,null,null,null,null,null,null,null,null,null,null,"",""]
[null,null,null,null,null,null,null,null,null,"","",null,null,null,null,null,null,null,null,null,null,null,null,"",""]
[null,null,null,null,null,null,null,null,null,"","",null,null,null,null,null,null,null,null,null,null,null,null,"",""]
[null,null,null,null,null,null,null,null,null,"","",null,null,null,null,null,null,null,null,null,null,null,null,"",""]
[null,null,null,null,null,null,null,null,null,"","",null,null,null,null,null,null,null,null,null,null,null,null,"",""]
[null,null,null,null,null,null,null,null,null,"","",null,null,null,null,null,null,null,null,null,null,null,null,"",""]
[null,null,null,null,null,null,null,null,null,"","",null,null,null,null,null,null,null,null,null,null,null,null,"",""]
[null,null,null,null,null,null,null,null,null,"","",null,null,null,null,null,null,null,null,null,null,null,null,"",""]
[null,null,null,null,null,null,null,null,null,"","",null,null,null,null,null,null,null,null,null,null,null,null,"",""]
[null,null,null,null,null,null,null,null,null,"","",null,null,null,null,null,null,null,null,null,null,null,null,"",""]
[null,null,null,null,null,null,null,null,null,"","",null,null,null,null,null,null,null,null,null,null,null,null,"",""]
[null,null,null,null,null,null,null,null,null,"","",null,null,null,null,null,null,null,null,null,null,null,null,"",""]
[null,null,null,null,null,null,null,null,null,"","",null,null,null,null,null,null,null,null,null,null,null,null,"",""]
[null,null,null,null,null,null,null,null,null,"","",null,null,null,null,null,null,null,null,null,null,null,null,"",""]
[null,null,null,null,null,null,null,null,null,"","",null,null,null,null,null,null,null,null,null,null,null,null,"",""]
[null,null,null,null,null,null,null,null,null,"",{"$f":"IF(K363=\"\",\"\",IF(K363+1>$K$3,\"\",K363+1))","v":""},null,null,null,null,null,null,null,null,null,null,null,null,{"$f":"IF(K364=\"\",\"\",VLOOKUP(K364,جلوس,4))","v":""},""]
[null,null,null,null,null,null,null,null,null,"","",null,null,null,null,null,null,null,null,null,null,null,null,"",""]
[null,null,null,null,null,null,null,null,null,"","",null,null,null,null,null,null,null,null,null,null,null,null,"",""]
[null,null,null,null,null,null,null,null,null,"","",null,null,null,null,null,null,null,null,null,null,null,null,"",""]
[null,null,null,null,null,null,null,null,null,"","",null,null,null,null,null,null,null,null,null,null,null,null,"",""]
[null,null,null,null,null,null,null,null,null,"","",null,null,null,null,null,null,null,null,null,null,null,null,"",""]
[null,null,null,null,null,null,null,null,null,"","",null,null,null,null,null,null,null,null,null,null,null,null,"",""]
[null,null,null,null,null,null,null,null,null,"","",null,null,null,null,null,null,null,null,null,null,null,null,"",""]
[null,null,null,null,null,null,null,null,null,"","",null,null,null,null,null,null,null,null,null,null,null,null,"",""]
[null,null,null,null,null,null,null,null,null,"","",null,null,null,null,null,null,null,null,null,null,null,null,"",""]
[null,null,null,null,null,null,null,null,null,"","",null,null,null,null,null,null,null,null,null,null,null,null,"",""]
[null,null,null,null,null,null,null,null,null,"","",null,null,null,null,null,null,null,null,null,null,null,null,"",""]
[null,null,null,null,null,null,null,null,null,"","",null,null,null,null,null,null,null,null,null,null,null,null,"",""]
[null,null,null,null,null,null,null,null,null,"","",null,null,null,null,null,null,null,null,null,null,null,null,"",""]
[null,null,null,null,null,null,null,null,null,"","",null,null,null,null,null,null,null,null,null,null,null,null,"",""]
[null,null,null,null,null,null,null,null,null,"","",null,null,null,null,null,null,null,null,null,null,null,null,"",""]
[null,null,null,null,null,null,null,null,null,"","",null,null,null,null,null,null,null,null,null,null,null,null,"",""]
[null,null,null,null,null,null,null,null,null,"","",null,null,null,null,null,null,null,null,null,null,null,null,"",""]
[null,null,null,null,null,null,null,null,null,"","",null,null,null,null,null,null,null,null,null,null,null,null,"",""]
[null,null,null,null,null,null,null,null,null,"","",null,null,null,null,null,null,null,null,null,null,null,null,"",""]
[null,null,null,null,null,null,null,null,null,"","",null,null,null,null,null,null,null,null,null,null,null,null,"",""]
[null,null,null,null,null,null,null,null,null,"","",null,null,null,null,null,null,null,null,null,null,null,null,"",""]
[null,null,null,null,null,null,null,null,null,"","",null,null,null,null,null,null,null,null,null,null,null,null,"",""]
[null,null,null,null,null,null,null,null,null,"","",null,null,null,null,null,null,null,null,null,null,null,null,"",""]
[null,null,null,null,null,null,null,null,null,"","",null,null,null,null,null,null,null,null,null,null,null,null,"",""]
[null,null,null,null,null,null,null,null,null,"","",null,null,null,null,null,null,null,null,null,null,null,null,"",""]
[null,null,null,null,null,null,null,null,null,"","",null,null,null,null,null,null,null,null,null,null,null,null,"",{"$f":"IF(X390=X391,\"\",\"نهاية اللجنة\")","v":""}]
[null,null,null,null,null,null,null,null,null,"","",null,null,null,null,null,null,null,null,null,null,null,null,"",""]
[null,null,null,null,null,null,null,null,null,"","",null,null,null,null,null,null,null,null,null,null,null,null,"",""]
[null,null,null,null,null,null,null,null,null,"","",null,null,null,null,null,null,null,null,null,null,null,null,"",""]
[null,null,null,null,null,null,null,null,null,"","",null,null,null,null,null,null,null,null,null,null,null,null,"",""]
[null,null,null,null,null,null,null,null,null,"","",null,null,null,null,null,null,null,null,null,null,null,null,"",""]
[null,null,null,null,null,null,null,null,null,"","",null,null,null,null,null,null,null,null,null,null,null,null,"",""]
[null,null,null,null,null,null,null,null,null,"","",null,null,null,null,null,null,null,null,null,null,null,null,"",""]
[null,null,null,null,null,null,null,null,null,"","",null,null,null,null,null,null,null,null,null,null,null,null,"",""]
[null,null,null,null,null,null,null,null,null,{"$f":"IF(J398=\"\",\"\",IF(J398+1>$K$2,\"\",J398+1))","v":""},"",null,null,null,null,null,null,null,null,null,null,null,null,"",""]
[null,null,null,null,null,null,null,null,null,"","",null,null,null,null,null,null,null,null,null,null,null,null,"",""]
[null,null,null,null,null,null,null,null,null,"","",null,null,null,null,null,null,null,null,null,null,null,null,"",""]
[null,null,null,null,null,null,null,null,null,"","",null,null,null,null,null,null,null,null,null,null,null,null,"",""]
[null,null,null,null,null,null,null,null,null,"","",null,null,null,null,null,null,null,null,null,null,null,null,"",""]
[null,null,null,null,null,null,null,null,null,"","",null,null,null,null,null,null,null,null,null,null,null,null,"",""]
[null,null,null,null,null,null,null,null,null,"","",null,null,null,null,null,null,null,null,null,null,null,null,"",""]
[null,null,null,null,null,null,null,null,null,"","",null,null,null,null,null,null,null,null,null,null,null,null,"",""]
[null,null,null,null,null,null,null,null,null,"","",null,null,null,null,null,null,null,null,null,null,null,null,"",""]
[null,null,null,null,null,null,null,null,null,"","",null,null,null,null,null,null,null,null,null,null,null,null,"",""]
[null,null,null,null,null,null,null,null,null,"","",null,null,null,null,null,null,null,null,null,null,null,null,"",""]
[null,null,null,null,null,null,null,null,null,"","",null,null,null,null,null,null,null,null,null,null,null,null,"",""]
[null,null,null,null,null,null,null,null,null,"","",null,null,null,null,null,null,null,null,null,null,null,null,"",""]
[null,null,null,null,null,null,null,null,null,"","",null,null,null,null,null,null,null,null,null,null,null,null,"",""]
[null,null,null,null,null,null,null,null,null,"","",null,null,null,null,null,null,null,null,null,null,null,null,"",""]
[null,null,null,null,null,null,null,null,null,"","",null,null,null,null,null,null,null,null,null,null,null,null,"",""]
[null,null,null,null,null,null,null,null,null,"","",null,null,null,null,null,null,null,null,null,null,null,null,"",""]
[null,null,null,null,null,null,null,null,null,"","",null,null,null,null,null,null,null,null,null,null,null,null,"",""]
[null,null,null,null,null,null,null,null,null,"","",null,null,null,null,null,null,null,null,null,null,null,null,"",""]
[null,null,null,null,null,null,null,null,null,"","",null,null,null,null,null,null,null,null,null,null,null,null,"",""]
[null,null,null,null,null,null,null,null,null,"","",null,null,null,null,null,null,null,null,null,null,null,null,"",""]
[null,null,null,null,null,null,null,null,null,"","",null,null,null,null,null,null,null,null,null,null,null,null,"",""]
[null,null,null,null,null,null,null,null,null,"","",null,null,null,null,null,null,null,null,null,null,null,null,"",""]
[null,null,null,null,null,null,null,null,null,"","",null,null,null,null,null,null,null,null,null,null,null,null,"",""]
[null,null,null,null,null,null,null,null,null,"","",null,null,null,null,null,null,null,null,null,null,null,null,"",""]
[null,null,null,null,null,null,null,null,null,"","",null,null,null,null,null,null,null,null,null,null,null,null,"",""]
[null,null,null,null,null,null,null,null,null,"","",null,null,null,null,null,null,null,null,null,null,null,null,"",""]
[null,null,null,null,null,null,null,null,null,"","",null,null,null,null,null,null,null,null,null,null,null,null,"",""]
[null,null,null,null,null,null,null,null,null,"","",null,null,null,null,null,null,null,null,null,null,null,null,"",""]
[null,null,null,null,null,null,null,null,null,"",{"$f":"IF(K427=\"\",\"\",IF(K427+1>$K$3,\"\",K427+1))","v":""},null,null,null,null,null,null,null,null,null,null,null,null,{"$f":"IF(K428=\"\",\"\",VLOOKUP(K428,جلوس,4))","v":""},""]
[null,null,null,null,null,null,null,null,null,"","",null,null,null,null,null,null,null,null,null,null,null,null,"",""]
[null,null,null,null,null,null,null,null,null,"","",null,null,null,null,null,null,null,null,null,null,null,null,"",""]
[null,null,null,null,null,null,null,null,null,"","",null,null,null,null,null,null,null,null,null,null,null,null,"",""]
[null,null,null,null,null,null,null,null,null,"","",null,null,null,null,null,null,null,null,null,null,null,null,"",""]
[null,null,null,null,null,null,null,null,null,"","",null,null,null,null,null,null,null,null,null,null,null,null,"",""]
[null,null,null,null,null,null,null,null,null,"","",null,null,null,null,null,null,null,null,null,null,null,null,"",""]
[null,null,null,null,null,null,null,null,null,"","",null,null,null,null,null,null,null,null,null,null,null,null,"",""]
[null,null,null,null,null,null,null,null,null,"","",null,null,null,null,null,null,null,null,null,null,null,null,"",""]
[null,null,null,null,null,null,null,null,null,"","",null,null,null,null,null,null,null,null,null,null,null,null,"",""]
[null,null,null,null,null,null,null,null,null,"","",null,null,null,null,null,null,null,null,null,null,null,null,"",""]
[null,null,null,null,null,null,null,null,null,"","",null,null,null,null,null,null,null,null,null,null,null,null,"",""]
[null,null,null,null,null,null,null,null,null,"","",null,null,null,null,null,null,null,null,null,null,null,null,"",""]
[null,null,null,null,null,null,null,null,null,"","",null,null,null,null,null,null,null,null,null,null,null,null,"",""]
[null,null,null,null,null,null,null,null,null,"","",null,null,null,null,null,null,null,null,null,null,null,null,"",""]
[null,null,null,null,null,null,null,null,null,"","",null,null,null,null,null,null,null,null,null,null,null,null,"",""]
[null,null,null,null,null,null,null,null,null,"","",null,null,null,null,null,null,null,null,null,null,null,null,"",""]
[null,null,null,null,null,null,null,null,null,"","",null,null,null,null,null,null,null,null,null,null,null,null,"",""]
[null,null,null,null,null,null,null,null,null,"","",null,null,null,null,null,null,null,null,null,null,null,null,"",""]
[null,null,null,null,null,null,null,null,null,"","",null,null,null,null,null,null,null,null,null,null,null,null,"",""]
[null,null,null,null,null,null,null,null,null,"","",null,null,null,null,null,null,null,null,null,null,null,null,"",""]
[null,null,null,null,null,null,null,null,null,"","",null,null,null,null,null,null,null,null,null,null,null,null,"",""]
[null,null,null,null,null,null,null,null,null,"","",null,null,null,null,null,null,null,null,null,null,null,null,"",""]
[null,null,null,null,null,null,null,null,null,"","",null,null,null,null,null,null,null,null,null,null,null,null,"",""]
[null,null,null,null,null,null,null,null,null,"","",null,null,null,null,null,null,null,null,null,null,null,null,"",""]
[null,null,null,null,null,null,null,null,null,"","",null,null,null,null,null,null,null,null,null,null,null,null,"",""]
[null,null,null,null,null,null,null,null,null,"","",null,null,null,null,null,null,null,null,null,null,null,null,"",{"$f":"IF(X454=X455,\"\",\"نهاية اللجنة\")","v":""}]
[null,null,null,null,null,null,null,null,null,"","",null,null,null,null,null,null,null,null,null,null,null,null,"",""]
[null,null,null,null,null,null,null,null,null,"","",null,null,null,null,null,null,null,null,null,null,null,null,"",""]
[null,null,null,null,null,null,null,null,null,"","",null,null,null,null,null,null,null,null,null,null,null,null,"",""]
[null,null,null,null,null,null,null,null,null,"","",null,null,null,null,null,null,null,null,null,null,null,null,"",""]
[null,null,null,null,null,null,null,null,null,"","",null,null,null,null,null,null,null,null,null,null,null,null,"",""]
[null,null,null,null,null,null,null,null,null,"","",null,null,null,null,null,null,null,null,null,null,null,null,"",""]
[null,null,null,null,null,null,null,null,null,"","",null,null,null,null,null,null,null,null,null,null,null,null,"",""]
[null,null,null,null,null,null,null,null,null,"","",null,null,null,null,null,null,null,null,null,null,null,null,"",""]
[null,null,null,null,null,null,null,null,null,{"$f":"IF(J462=\"\",\"\",IF(J462+1>$K$2,\"\",J462+1))","v":""},"",null,null,null,null,null,null,null,null,null,null,null,null,"",""]
[null,null,null,null,null,null,null,null,null,"","",null,null,null,null,null,null,null,null,null,null,null,null,"",""]
[null,null,null,null,null,null,null,null,null,"","",null,null,null,null,null,null,null,null,null,null,null,null,"",""]
[null,null,null,null,null,null,null,null,null,"","",null,null,null,null,null,null,null,null,null,null,null,null,"",""]
[null,null,null,null,null,null,null,null,null,"","",null,null,null,null,null,null,null,null,null,null,null,null,"",""]
[null,null,null,null,null,null,null,null,null,"","",null,null,null,null,null,null,null,null,null,null,null,null,"",""]
[null,null,null,null,null,null,null,null,null,"","",null,null,null,null,null,null,null,null,null,null,null,null,"",""]
[null,null,null,null,null,null,null,null,null,"","",null,null,null,null,null,null,null,null,null,null,null,null,"",""]
[null,null,null,null,null,null,null,null,null,"","",null,null,null,null,null,null,null,null,null,null,null,null,"",""]
[null,null,null,null,null,null,null,null,null,"","",null,null,null,null,null,null,null,null,null,null,null,null,"",""]
[null,null,null,null,null,null,null,null,null,"","",null,null,null,null,null,null,null,null,null,null,null,null,"",""]
[null,null,null,null,null,null,null,null,null,"","",null,null,null,null,null,null,null,null,null,null,null,null,"",""]
[null,null,null,null,null,null,null,null,null,"","",null,null,null,null,null,null,null,null,null,null,null,null,"",""]
[null,null,null,null,null,null,null,null,null,"","",null,null,null,null,null,null,null,null,null,null,null,null,"",""]
[null,null,null,null,null,null,null,null,null,"","",null,null,null,null,null,null,null,null,null,null,null,null,"",""]
[null,null,null,null,null,null,null,null,null,"","",null,null,null,null,null,null,null,null,null,null,null,null,"",""]
[null,null,null,null,null,null,null,null,null,"","",null,null,null,null,null,null,null,null,null,null,null,null,"",""]
[null,null,null,null,null,null,null,null,null,"","",null,null,null,null,null,null,null,null,null,null,null,null,"",""]
[null,null,null,null,null,null,null,null,null,"","",null,null,null,null,null,null,null,null,null,null,null,null,"",""]
[null,null,null,null,null,null,null,null,null,"","",null,null,null,null,null,null,null,null,null,null,null,null,"",""]
[null,null,null,null,null,null,null,null,null,"","",null,null,null,null,null,null,null,null,null,null,null,null,"",""]
[null,null,null,null,null,null,null,null,null,"","",null,null,null,null,null,null,null,null,null,null,null,null,"",""]
[null,null,null,null,null,null,null,null,null,"","",null,null,null,null,null,null,null,null,null,null,null,null,"",""]
[null,null,null,null,null,null,null,null,null,"","",null,null,null,null,null,null,null,null,null,null,null,null,"",""]
[null,null,null,null,null,null,null,null,null,"","",null,null,null,null,null,null,null,null,null,null,null,null,"",""]
[null,null,null,null,null,null,null,null,null,"","",null,null,null,null,null,null,null,null,null,null,null,null,"",""]
[null,null,null,null,null,null,null,null,null,"","",null,null,null,null,null,null,null,null,null,null,null,null,"",""]
[null,null,null,null,null,null,null,null,null,"","",null,null,null,null,null,null,null,null,null,null,null,null,"",""]
[null,null,null,null,null,null,null,null,null,"","",null,null,null,null,null,null,null,null,null,null,null,null,"",""]
[null,null,null,null,null,null,null,null,null,"",{"$f":"IF(K491=\"\",\"\",IF(K491+1>$K$3,\"\",K491+1))","v":""},null,null,null,null,null,null,null,null,null,null,null,null,{"$f":"IF(K492=\"\",\"\",VLOOKUP(K492,جلوس,4))","v":""},""]
[null,null,null,null,null,null,null,null,null,"","",null,null,null,null,null,null,null,null,null,null,null,null,"",""]
[null,null,null,null,null,null,null,null,null,"","",null,null,null,null,null,null,null,null,null,null,null,null,"",""]
[null,null,null,null,null,null,null,null,null,"","",null,null,null,null,null,null,null,null,null,null,null,null,"",""]
[null,null,null,null,null,null,null,null,null,"","",null,null,null,null,null,null,null,null,null,null,null,null,"",""]
[null,null,null,null,null,null,null,null,null,"","",null,null,null,null,null,null,null,null,null,null,null,null,"",""]
[null,null,null,null,null,null,null,null,null,"","",null,null,null,null,null,null,null,null,null,null,null,null,"",""]
[null,null,null,null,null,null,null,null,null,"","",null,null,null,null,null,null,null,null,null,null,null,null,"",""]
[null,null,null,null,null,null,null,null,null,"","",null,null,null,null,null,null,null,null,null,null,null,null,"",""]
[null,null,null,null,null,null,null,null,null,"","",null,null,null,null,null,null,null,null,null,null,null,null,"",""]
[null,null,null,null,null,null,null,null,null,"","",null,null,null,null,null,null,null,null,null,null,null,null,"",""]
[null,null,null,null,null,null,null,null,null,"","",null,null,null,null,null,null,null,null,null,null,null,null,"",""]
[null,null,null,null,null,null,null,null,null,"","",null,null,null,null,null,null,null,null,null,null,null,null,"",""]
[null,null,null,null,null,null,null,null,null,"","",null,null,null,null,null,null,null,null,null,null,null,null,"",""]
[null,null,null,null,null,null,null,null,null,"","",null,null,null,null,null,null,null,null,null,null,null,null,"",""]
[null,null,null,null,null,null,null,null,null,"","",null,null,null,null,null,null,null,null,null,null,null,null,"",""]
[null,null,null,null,null,null,null,null,null,"","",null,null,null,null,null,null,null,null,null,null,null,null,"",""]
[null,null,null,null,null,null,null,null,null,"","",null,null,null,null,null,null,null,null,null,null,null,null,"",""]
[null,null,null,null,null,null,null,null,null,"","",null,null,null,null,null,null,null,null,null,null,null,null,"",""]
[null,null,null,null,null,null,null,null,null,"","",null,null,null,null,null,null,null,null,null,null,null,null,"",""]
[null,null,null,null,null,null,null,null,null,"","",null,null,null,null,null,null,null,null,null,null,null,null,"",""]
[null,null,null,null,null,null,null,null,null,"","",null,null,null,null,null,null,null,null,null,null,null,null,"",""]
[null,null,null,null,null,null,null,null,null,"","",null,null,null,null,null,null,null,null,null,null,null,null,"",""]
[null,null,null,null,null,null,null,null,null,"","",null,null,null,null,null,null,null,null,null,null,null,null,"",""]
[null,null,null,null,null,null,null,null,null,"","",null,null,null,null,null,null,null,null,null,null,null,null,"",""]
[null,null,null,null,null,null,null,null,null,"","",null,null,null,null,null,null,null,null,null,null,null,null,"",""]
[null,null,null,null,null,null,null,null,null,"","",null,null,null,null,null,null,null,null,null,null,null,null,"",{"$f":"IF(X518=X519,\"\",\"نهاية اللجنة\")","v":""}]
[null,null,null,null,null,null,null,null,null,"","",null,null,null,null,null,null,null,null,null,null,null,null,"",""]
[null,null,null,null,null,null,null,null,null,"","",null,null,null,null,null,null,null,null,null,null,null,null,"",""]
[null,null,null,null,null,null,null,null,null,"","",null,null,null,null,null,null,null,null,null,null,null,null,"",""]
[null,null,null,null,null,null,null,null,null,"","",null,null,null,null,null,null,null,null,null,null,null,null,"",""]
[null,null,null,null,null,null,null,null,null,"","",null,null,null,null,null,null,null,null,null,null,null,null,"",""]
[null,null,null,null,null,null,null,null,null,"","",null,null,null,null,null,null,null,null,null,null,null,null,"",""]
[null,null,null,null,null,null,null,null,null,"","",null,null,null,null,null,null,null,null,null,null,null,null,"",""]
[null,null,null,null,null,null,null,null,null,"","",null,null,null,null,null,null,null,null,null,null,null,null,"",""]
[null,null,null,null,null,null,null,null,null,{"$f":"IF(J526=\"\",\"\",IF(J526+1>$K$2,\"\",J526+1))","v":""},"",null,null,null,null,null,null,null,null,null,null,null,null,"",""]
[null,null,null,null,null,null,null,null,null,"","",null,null,null,null,null,null,null,null,null,null,null,null,"",""]
[null,null,null,null,null,null,null,null,null,"","",null,null,null,null,null,null,null,null,null,null,null,null,"",""]
[null,null,null,null,null,null,null,null,null,"","",null,null,null,null,null,null,null,null,null,null,null,null,"",""]
[null,null,null,null,null,null,null,null,null,"","",null,null,null,null,null,null,null,null,null,null,null,null,"",""]
[null,null,null,null,null,null,null,null,null,"","",null,null,null,null,null,null,null,null,null,null,null,null,"",""]
[null,null,null,null,null,null,null,null,null,"","",null,null,null,null,null,null,null,null,null,null,null,null,"",""]
[null,null,null,null,null,null,null,null,null,"","",null,null,null,null,null,null,null,null,null,null,null,null,"",""]
[null,null,null,null,null,null,null,null,null,"","",null,null,null,null,null,null,null,null,null,null,null,null,"",""]
[null,null,null,null,null,null,null,null,null,"","",null,null,null,null,null,null,null,null,null,null,null,null,"",""]
[null,null,null,null,null,null,null,null,null,"","",null,null,null,null,null,null,null,null,null,null,null,null,"",""]
[null,null,null,null,null,null,null,null,null,"","",null,null,null,null,null,null,null,null,null,null,null,null,"",""]
[null,null,null,null,null,null,null,null,null,"","",null,null,null,null,null,null,null,null,null,null,null,null,"",""]
[null,null,null,null,null,null,null,null,null,"","",null,null,null,null,null,null,null,null,null,null,null,null,"",""]
[null,null,null,null,null,null,null,null,null,"","",null,null,null,null,null,null,null,null,null,null,null,null,"",""]
[null,null,null,null,null,null,null,null,null,"","",null,null,null,null,null,null,null,null,null,null,null,null,"",""]
[null,null,null,null,null,null,null,null,null,"","",null,null,null,null,null,null,null,null,null,null,null,null,"",""]
[null,null,null,null,null,null,null,null,null,"","",null,null,null,null,null,null,null,null,null,null,null,null,"",""]
[null,null,null,null,null,null,null,null,null,"","",null,null,null,null,null,null,null,null,null,null,null,null,"",""]
[null,null,null,null,null,null,null,null,null,"","",null,null,null,null,null,null,null,null,null,null,null,null,"",""]
[null,null,null,null,null,null,null,null,null,"","",null,null,null,null,null,null,null,null,null,null,null,null,"",""]
[null,null,null,null,null,null,null,null,null,"","",null,null,null,null,null,null,null,null,null,null,null,null,"",""]
[null,null,null,null,null,null,null,null,null,"","",null,null,null,null,null,null,null,null,null,null,null,null,"",""]
[null,null,null,null,null,null,null,null,null,"","",null,null,null,null,null,null,null,null,null,null,null,null,"",""]
[null,null,null,null,null,null,null,null,null,"","",null,null,null,null,null,null,null,null,null,null,null,null,"",""]
[null,null,null,null,null,null,null,null,null,"","",null,null,null,null,null,null,null,null,null,null,null,null,"",""]
[null,null,null,null,null,null,null,null,null,"","",null,null,null,null,null,null,null,null,null,null,null,null,"",""]
[null,null,null,null,null,null,null,null,null,"","",null,null,null,null,null,null,null,null,null,null,null,null,"",""]
[null,null,null,null,null,null,null,null,null,"","",null,null,null,null,null,null,null,null,null,null,null,null,"",""]
[null,null,null,null,null,null,null,null,null,"",{"$f":"IF(K555=\"\",\"\",IF(K555+1>$K$3,\"\",K555+1))","v":""},null,null,null,null,null,null,null,null,null,null,null,null,{"$f":"IF(K556=\"\",\"\",VLOOKUP(K556,جلوس,4))","v":""},""]
[null,null,null,null,null,null,null,null,null,"","",null,null,null,null,null,null,null,null,null,null,null,null,"",""]
[null,null,null,null,null,null,null,null,null,"","",null,null,null,null,null,null,null,null,null,null,null,null,"",""]
[null,null,null,null,null,null,null,null,null,"","",null,null,null,null,null,null,null,null,null,null,null,null,"",""]
[null,null,null,null,null,null,null,null,null,"","",null,null,null,null,null,null,null,null,null,null,null,null,"",""]
[null,null,null,null,null,null,null,null,null,"","",null,null,null,null,null,null,null,null,null,null,null,null,"",""]
[null,null,null,null,null,null,null,null,null,"","",null,null,null,null,null,null,null,null,null,null,null,null,"",""]
[null,null,null,null,null,null,null,null,null,"","",null,null,null,null,null,null,null,null,null,null,null,null,"",""]
[null,null,null,null,null,null,null,null,null,"","",null,null,null,null,null,null,null,null,null,null,null,null,"",""]
[null,null,null,null,null,null,null,null,null,"","",null,null,null,null,null,null,null,null,null,null,null,null,"",""]
[null,null,null,null,null,null,null,null,null,"","",null,null,null,null,null,null,null,null,null,null,null,null,"",""]
[null,null,null,null,null,null,null,null,null,"","",null,null,null,null,null,null,null,null,null,null,null,null,"",""]
[null,null,null,null,null,null,null,null,null,"","",null,null,null,null,null,null,null,null,null,null,null,null,"",""]
[null,null,null,null,null,null,null,null,null,"","",null,null,null,null,null,null,null,null,null,null,null,null,"",""]
[null,null,null,null,null,null,null,null,null,"","",null,null,null,null,null,null,null,null,null,null,null,null,"",""]
[null,null,null,null,null,null,null,null,null,"","",null,null,null,null,null,null,null,null,null,null,null,null,"",""]
[null,null,null,null,null,null,null,null,null,"","",null,null,null,null,null,null,null,null,null,null,null,null,"",""]
[null,null,null,null,null,null,null,null,null,"","",null,null,null,null,null,null,null,null,null,null,null,null,"",""]
[null,null,null,null,null,null,null,null,null,"","",null,null,null,null,null,null,null,null,null,null,null,null,"",""]
[null,null,null,null,null,null,null,null,null,"","",null,null,null,null,null,null,null,null,null,null,null,null,"",""]
[null,null,null,null,null,null,null,null,null,"","",null,null,null,null,null,null,null,null,null,null,null,null,"",""]
[null,null,null,null,null,null,null,null,null,"","",null,null,null,null,null,null,null,null,null,null,null,null,"",""]
[null,null,null,null,null,null,null,null,null,"","",null,null,null,null,null,null,null,null,null,null,null,null,"",""]
[null,null,null,null,null,null,null,null,null,"","",null,null,null,null,null,null,null,null,null,null,null,null,"",""]
[null,null,null,null,null,null,null,null,null,"","",null,null,null,null,null,null,null,null,null,null,null,null,"",""]
[null,null,null,null,null,null,null,null,null,"","",null,null,null,null,null,null,null,null,null,null,null,null,"",""]
[null,null,null,null,null,null,null,null,null,"","",null,null,null,null,null,null,null,null,null,null,null,null,"",{"$f":"IF(X582=X583,\"\",\"نهاية اللجنة\")","v":""}]
[null,null,null,null,null,null,null,null,null,"","",null,null,null,null,null,null,null,null,null,null,null,null,"",""]
[null,null,null,null,null,null,null,null,null,"","",null,null,null,null,null,null,null,null,null,null,null,null,"",""]
[null,null,null,null,null,null,null,null,null,"","",null,null,null,null,null,null,null,null,null,null,null,null,"",""]
[null,null,null,null,null,null,null,null,null,"","",null,null,null,null,null,null,null,null,null,null,null,null,"",""]
[null,null,null,null,null,null,null,null,null,"","",null,null,null,null,null,null,null,null,null,null,null,null,"",""]
[null,null,null,null,null,null,null,null,null,"","",null,null,null,null,null,null,null,null,null,null,null,null,"",""]
[null,null,null,null,null,null,null,null,null,"","",null,null,null,null,null,null,null,null,null,null,null,null,"",""]
[null,null,null,null,null,null,null,null,null,"","",null,null,null,null,null,null,null,null,null,null,null,null,"",""]
[null,null,null,null,null,null,null,null,null,{"$f":"IF(J590=\"\",\"\",IF(J590+1>$K$2,\"\",J590+1))","v":""},"",null,null,null,null,null,null,null,null,null,null,null,null,"",""]
[null,null,null,null,null,null,null,null,null,"","",null,null,null,null,null,null,null,null,null,null,null,null,"",""]
[null,null,null,null,null,null,null,null,null,"","",null,null,null,null,null,null,null,null,null,null,null,null,"",""]
[null,null,null,null,null,null,null,null,null,"","",null,null,null,null,null,null,null,null,null,null,null,null,"",""]
[null,null,null,null,null,null,null,null,null,"","",null,null,null,null,null,null,null,null,null,null,null,null,"",""]
[null,null,null,null,null,null,null,null,null,"","",null,null,null,null,null,null,null,null,null,null,null,null,"",""]
[null,null,null,null,null,null,null,null,null,"","",null,null,null,null,null,null,null,null,null,null,null,null,"",""]
[null,null,null,null,null,null,null,null,null,"","",null,null,null,null,null,null,null,null,null,null,null,null,"",""]
[null,null,null,null,null,null,null,null,null,"","",null,null,null,null,null,null,null,null,null,null,null,null,"",""]
[null,null,null,null,null,null,null,null,null,"","",null,null,null,null,null,null,null,null,null,null,null,null,"",""]
[null,null,null,null,null,null,null,null,null,"","",null,null,null,null,null,null,null,null,null,null,null,null,"",""]
[null,null,null,null,null,null,null,null,null,"","",null,null,null,null,null,null,null,null,null,null,null,null,"",""]
[null,null,null,null,null,null,null,null,null,"","",null,null,null,null,null,null,null,null,null,null,null,null,"",""]
[null,null,null,null,null,null,null,null,null,"","",null,null,null,null,null,null,null,null,null,null,null,null,"",""]

{"sheet":"Sheet6","index":3,"n_rows":0,"n_cols":0,"rows_kept":0,"cut":false,"hidden":false,"merged":[]}

{"sheet":"Sheet7","index":4,"n_rows":0,"n_cols":0,"rows_kept":0,"cut":false,"hidden":false,"merged":[]}

{"sheet":"saad","index":5,"n_rows":0,"n_cols":0,"rows_kept":0,"cut":false,"hidden":false,"merged":[]}